{"text_format":"1","workbook":"xlsx","n_sheets":6,"sheets":["تقرير حركة يومية","فصل شيفت","جرد الأيس كريم","رصيد المخزن","اذون صرف واستلام","تحويل"],"not_rendered":{"charts":0,"images":1,"macros":1,"external_links":0,"defined_names":12,"comments":0,"pivot_tables":0},"unopened":[],"bounds":{"document_bytes":16777216,"sheet_cells":100000,"rows_first":2000,"rows_last":500,"rows_between":2000,"halvings":0,"cell_chars":16384,"cell_head_chars":4096},"cells_cut":0,"cells_raw":0,"read":"whole","date_system":"1900"}

{"sheet":"تقرير حركة يومية","index":0,"n_rows":284,"n_cols":39,"rows_kept":284,"cut":false,"hidden":false,"merged":[[6,35,6,38],[0,1,1,1],[6,20,6,25],[6,27,6,33],[6,17,6,18],[3,12,3,13],[4,12,4,13],[3,6,3,7],[0,27,1,32]]}
[null,"الإدارة المالية"]
[null,null,null,"تحـــليــل  جـــــرد  فــــــــرع شــــــكـــرى القــــــــــوتـــــــلى  بــــــتـــــــاريــــــخ",null,null,null,null,null,null,null,null,null,null,"2025-11-12"]
[null,"بيـــــــــــــــــــان","تسجيل الرصيد",null,null,null,"  "]
[null,"رصيد اول المدة","نعم",null," "," ","إجمالي وزن الكازرولات",null,0,{"$f":"I4+(I4*0.1)","v":0},null,null,"سيخ شاورما فراخ ",null,null,{"$f":"((O4)-40/100*O4)","v":0}]
[null,"رصيد اخر المدة ","نعم",null,null,null,null,null,null,null,null,null,"سيخ شاورما لحم ",null,null,{"$f":"((O5)-25/100*O5)","v":0},null,null,null,null,null,null,null,null,null,{"$f":"SUBTOTAL(9,Z7:Z281)","v":441.62999999999994},null,{"$f":"SUBTOTAL(9,AB7:AB281)","v":527.4},1300.79,1119.925,337.39499999999992,0,0,202,null,{"$f":"SUBTOTAL(9,AJ9:AJ283)","v":144735.24000000002},{"$f":"SUBTOTAL(9,AK9:AK283)","v":2980.62},{"$f":"SUBTOTAL(9,AL9:AL283)","v":9641.3000000000011},{"$f":"SUBTOTAL(9,AM9:AM283)","v":157357.16000000003}]
[]
[null,null,{"$f":"SUBTOTAL(9,C9:C283)","v":1464.69},{"$f":"SUBTOTAL(9,D9:D283)","v":3507.51},{"$f":"SUBTOTAL(9,E9:E283)","v":221.62},2078.0500000000002,15711.72,2672.53,15707.164999999999,213,12.795,0,2664.29,28683.767000000003,149328.31749999998,157144.16000000003,7815.8425000000025,"مـــلاحظــــــــــــــــة",null,null,"اجمالى المنصرف للفرع  ( 6 )",null,null,null,null,null,null,"اجمالى وارد السيارات  ( 2 )",null,null,null,null,null,null,null,"شرايط المبيعات"]
["التصنيف",null,"رصيد اول المدة المخزن","اجمالى الوارد","تصنيع / تحويلات","صافى رصيد المخزن","رصيد اول المدة الفرع","إجمالي المنصرف للفرع","رصيد اخر المدة","مردودات مبيعات","مرتجعات للمصنع","التسويات تبديل في المبيعات","الفرق","السعر","قيمة المباع 10*11","قيمة داخل شريط الجرد","فرق القيمة","عجز","زيادة",null,"صرف 1","صرف 2","صرف 3","صرف 4","صرف 5","مرتجع للمخزن",null,"سيارة 1","سيارة 2","سيارة 3","سيارة 4","سيارة 5","سيارة 6","وارد مشتريات خارجية",null,"عمومي","كافيتريا","دليفري","الإجمالي"]
["جاتوه","قطعه جاتوه كلاسيك",203,{"$f":"SUM(AB9:AH9)","v":899},18,{"$f":"C9+D9-E9-H9","v":471},0,{"$f":"SUM(U9:Y9)-Z9","v":613},13,null,null,null,{"$f":"H9+G9-I9-K9-L9","v":600},27,{"$f":"N9*M9","v":16200},{"$f":"AM9-J9","v":16254},{"$f":"P9-O9","v":54},{"$f":"IF(Q9<0,Q9/N9,\"_\")","v":"_"},{"$f":"IF(Q9>0,Q9/N9,\"_\")","v":2},null,329,42,56,386,null,{"$f":"18+18+35+21+34+42+5+27","v":200},null,168,210,410,{"$f":"34+40+21+16","v":111},null,null,null,null,{"$f":"7128+8100","v":15228},135,{"$f":"324+567","v":891},{"$f":"SUM(AJ9:AL9)","v":16254}]
["جاتوه","قطعه جاتوه موس",38,{"$f":"SUM(AB10:AH10)","v":89},1,0,0,126,6,null,null,null,{"$f":"H10+G10-I10-K10-L10","v":120},39,4680,4641,-39,{"$f":"IF(Q10<0,Q10/N10,\"_\")","v":-1},"_",null,18,20,89,null,null,1,null,null,null,89,null,null,null,null,null,4641,null,null,{"$f":"SUM(AJ10:AL10)","v":4641}]
["جاتوه","جاتوة سواريه",0,1.66,null,0,0,1.66,0,null,null,null,1.66,315,522.9,521.29999999999995,-1.6000000000000227,-5.0793650793651514E-3,"_",null,1.66,null,null,null,null,null,null,null,null,null,1.66,null,null,null,null,521.29999999999995,null,null,521.29999999999995]
["نواشف حلو","اكلير / دنش",25,99,null,11,0,113,0,null,null,null,113,27,3051,3024,-27,-1,"_",null,85,10,29,null,null,11,null,null,70,29,null,null,null,null,null,2700,27,297,3024]
["نواشف حلو","ملفاى",0,28,12,0,0,16,0,null,null,null,16,30,480,480,0,"_","_",null,16,12,null,null,null,12,null,null,28,null,null,null,null,null,null,480,null,null,480]
["نواشف حلو","شوهات",0,18,6,0,0,12,0,null,null,null,12,30,360,360,0,"_","_",null,12,6,null,null,null,6,null,null,null,18,null,null,null,null,null,360,null,null,360]
["نواشف حلو","كب  جار بوبس",0,0,null,0,0,0,null,null,null,null,0,40,0,0,0,"_","_",null,null,null,null,null,null,null,null,null,null,null,null,null,null,null,null,null,null,null,0]
[null,"تورته اوستيك موس / فادج",0,0,null,0,0,0,null,null,null,null,0,480,0,0,0,"_","_",null,null,null,null,null,null,null,null,null,null,null,null,null,null,null,null,null,null,null,0]
["تورت","تورتة ميني موس 210",0,0,null,0,0,0,null,null,null,null,0,210,0,0,0,"_","_",null,null,null,null,null,null,null,null,null,null,null,null,null,null,null,null,null,null,null,0]
["تورت","تورتة مينى شوكلت كيك 320",0,0,null,0,0,0,null,null,null,null,0,320,0,0,0,"_","_",null,null,null,null,null,null,null,null,null,null,null,null,null,null,null,null,null,null,null,0]
["تورت","تورته دائري شوكلت كاملة ",0,2,null,0,0,2,null,null,null,null,2,400,800,0,-800,-2,"_",null,null,2,null,null,null,null,null,null,null,null,2,null,null,null,null,null,null,null,0]
["تورت","تورته مربع صغير310",2,11,null,6,0,7,4,null,null,null,3,310,930,930,0,"_","_",null,null,7,null,null,null,null,null,null,11,null,null,null,null,null,null,930,null,null,930]
["تورت","تورتة هاف دائرى  / فاكهة كاملة   380   ",0,27,null,6,0,{"$f":"SUM(U21:Y21)-Z21","v":21},3,null,null,null,18,380,6840,6840,0,"_","_",null,7,14,null,null,null,null,null,null,9,9,9,null,null,null,null,6460,null,380,6840]
["تورت","تورته فور سيزون  440",0,4,null,0,0,4,1,null,null,null,3,440,1320,1320,0,"_","_",null,3,1,null,null,null,null,null,null,4,null,null,null,null,null,null,1320,null,null,1320]
["تورت","تورته مربع كبير 435",0,8,null,2,0,6,2,null,null,null,4,435,1740,1740,0,"_","_",null,3,3,null,null,null,null,null,null,4,null,4,null,null,null,null,1740,null,null,1740]
["تورت","تورته هاف كيت كات / روشيه / ويفر  430",0,11,null,1,0,10,1,null,null,null,9,430,3870,3870,0,"_","_",null,4,{"$f":"2+4","v":6},null,null,null,null,null,null,5,4,2,null,null,null,null,3870,null,null,3870]
["تورت","تورته قلب كبير   445",0,11,null,2,0,9,1,null,null,null,8,445,3560,3560,0,"_","_",null,2,7,null,null,null,null,null,null,2,null,9,null,null,null,null,3115,null,445,3560]
["تورت","تورته فونتانا   480",0,0,null,0,0,0,null,null,null,null,0,480,0,0,0,"_","_",null,null,null,null,null,null,null,null,null,null,null,null,null,null,null,null,null,null,null,0]
[null,"تورته دويــــــتـــــــو    30*30   (500)",0,0,null,0,0,0,null,null,null,null,0,500,0,0,0,"_","_",null,null,null,null,null,null,null,null,null,null,null,null,null,null,null,null,null,null,null,0]
["تورت","تورتة هاف 20*40  (550)",0,0,null,0,0,0,null,null,null,null,0,600,0,0,0,"_","_",null,null,null,null,null,null,null,null,null,null,null,null,null,null,null,null,null,null,null,0]
["تورت ايس","تورته ايس سوسرول 245",0,3,null,0,4,3,6,null,null,null,1,245,245,244,-1,-4.0816326530612249E-3,"_",null,3,null,null,null,null,null,null,null,null,3,null,null,null,null,null,null,null,244,244]
["تورت ايس","تورته ايس كاساتا  315",0,3,null,0,4,3,6,null,null,null,1,315,315,315,0,{"$f":"IF(Q30<0,Q30/N30,\"_\")","v":"_"},"_",null,3,null,null,null,null,null,null,null,null,3,null,null,null,null,null,315,null,null,315]
["كبات","كب بوبس ( دبل سوفت - ديو )",25,155,null,0,24,180,0,33,3,null,201,33,6633,6600,-33,{"$f":"IF(Q31<0,Q31/N31,\"_\")","v":-1},"_",null,120,25,35,null,null,null,null,39,81,35,null,null,null,null,null,6237,null,396,6633]
["كبات","كب مينى ديسباسيتو",0,10,null,0,7,10,2,null,null,null,15,33,495,495,0,"_","_",null,10,null,null,null,null,null,null,10,null,null,null,null,null,null,null,462,33,null,495]
["كبات","كب شوكلت كيك",30,52,null,0,0,82,0,null,null,null,82,28,2296,2296,0,"_","_",null,33,30,19,null,null,null,null,null,33,19,null,null,null,null,null,2296,null,null,2296]
["كبات","ترايفل",10,93,20,0,0,83,0,null,null,null,83,15,1245,1245,0,"_","_",null,93,10,null,null,null,20,null,null,null,null,{"$f":"13+80","v":93},null,null,null,null,1245,null,null,1245]
["كبات","كب اساتوك دبي",0,5,null,0,0,5,0,null,null,null,5,35,175,175,0,"_","_",null,5,null,null,null,null,null,null,null,null,5,null,null,null,null,null,175,null,null,175]
["كبات","ديسباسيتو",5,10,null,0,2,15,0,null,null,null,17,80,1360,1360,0,"_","_",null,10,5,null,null,null,null,null,10,null,null,null,null,null,null,null,960,400,null,1360]
["كبات","مولتن كيك",5,10,null,0,0,15,6,null,null,null,9,65,585,650,65,"_",1,null,15,null,null,null,null,null,null,null,10,null,null,null,null,null,null,650,null,null,650]
["كبات","باباز",0,5,null,0,0,5,0,null,null,null,5,30,150,150,0,"_","_",null,5,null,null,null,null,null,null,null,null,5,null,null,null,null,null,150,null,null,150]
["كبات","كوكتيل",0,0,null,0,0,0,null,null,null,null,0,25,0,0,0,"_",{"$f":"IF(Q39>0,Q39/N39,\"_\")","v":"_"},null,null,null,null,null,null,null,null,null,null,null,null,null,null,null,null,null,null,null,0]
["كبات","كب قشطوطة صغير",0,35,null,0,3,35,0,null,null,null,38,30,1140,1200,60,"_",2,null,35,null,null,null,null,null,null,null,null,35,null,null,null,null,null,1170,null,30,1200]
[null,"كب قشطوطة كاندي /بسبوسه /ليزي كيك ",0,3,null,0,3,3,2,null,null,null,4,35,140,140,0,"_","_",null,3,null,null,null,null,null,null,null,null,3,null,null,null,null,null,35,null,105,140]
["البان","ام علي ساده",0,11,null,0,0,11,1,null,null,null,10,25,250,250,0,"_","_",null,11,null,null,null,null,null,null,null,11,null,null,null,null,null,null,250,null,null,250]
["البان","ارز بلبن اسبيشيال عفروتو",0,0,-5,0,2,5,6,null,null,null,1,75,75,75,0,"_","_",null,5,null,null,null,null,null,null,null,null,null,null,null,null,null,null,null,null,75,75]
["البان","ارز بلبن اسبشيال مكسرات وقشطة",0,0,-30,0,0,30,4,null,null,null,26,55,1430,1430,0,"_","_",null,30,null,null,null,null,null,null,null,null,null,null,null,null,null,null,880,null,550,1430]
["البان","ارز بلبن اسبيشيال اوريو",0,0,-10,0,2,10,2,null,null,null,10,55,550,550,0,"_","_",null,10,null,null,null,null,null,null,null,null,null,null,null,null,null,null,550,null,null,550]
["البان","ارز بلبن اسبيشيال قراصيا",0,0,null,0,0,0,null,null,null,null,0,60,0,0,0,"_","_",null,null,null,null,null,null,null,null,null,null,null,null,null,null,null,null,null,null,null,0]
["البان","ارز بلبن اسبيشيال لوتس",2,0,-10,0,0,12,6,null,null,null,6,55,330,330,0,"_","_",null,10,2,null,null,null,null,null,null,null,null,null,null,null,null,null,330,null,null,330]
["البان","ارز بلبن اسبيشيال نوتيلا",2,0,-10,0,0,12,2,null,null,null,10,55,550,550,0,"_","_",null,10,2,null,null,null,null,null,null,null,null,null,null,null,null,null,550,null,null,550]
["البان","ارز بلبن بسابيسو",0,0,null,0,0,0,null,null,null,null,0,65,0,0,0,"_","_",null,null,null,null,null,null,null,null,null,null,null,null,null,null,null,null,null,null,null,0]
["البان","ارز بلبن خدود الست",0,0,null,0,0,0,null,null,null,null,0,60,0,0,0,"_","_",null,null,null,null,null,null,null,null,null,null,null,null,null,null,null,null,null,null,null,0]
["البان","ارز بلبن ساده",0,120,85,0,0,35,5,null,null,null,30,25,750,750,0,"_","_",null,15,20,null,null,null,null,null,120,null,null,null,null,null,null,null,625,50,75,750]
["البان","ارز بلبن مكس الصياد",0,0,-10,0,0,10,0,null,null,null,10,60,600,600,0,"_","_",null,10,null,null,null,null,null,null,null,null,null,null,null,null,null,null,540,60,null,600]
["البان","ارز اسبيشيال كنافة مانجو",0,0,null,0,0,0,null,null,null,null,0,50,0,0,0,"_","_",null,null,null,null,null,null,null,null,null,null,null,null,null,null,null,null,null,null,null,0]
["البان","ارز قنبلة فراوله",0,0,-10,0,0,10,0,null,null,null,10,65,650,650,0,"_","_",null,10,null,null,null,null,null,null,null,null,null,null,null,null,null,null,585,null,65,650]
["البان","ارز قنبلة موز وكراميل",0,0,null,0,0,0,null,null,null,null,0,60,0,0,0,"_","_",null,null,null,null,null,null,null,null,null,null,null,null,null,null,null,null,null,null,null,0]
["قشطوطة","ارز قشطوطة سادة",0,45,45,0,0,0,null,null,null,null,0,1,0,0,0,"_","_",null,null,null,null,null,null,null,null,45,null,null,null,null,null,null,null,null,null,null,0]
["قشطوطة","قشطوطة فراولة",0,0,null,0,0,0,null,null,null,null,0,55,0,0,0,"_","_",null,null,null,null,null,null,null,null,null,null,null,null,null,null,null,null,null,null,null,0]
["قشطوطة","قشطوطة كراميل",0,0,null,0,0,0,null,null,null,null,0,50,0,0,0,"_","_",null,null,null,null,null,null,null,null,null,null,null,null,null,null,null,null,null,null,null,0]
["قشطوطة","قشطوطه لوتس",2,0,-10,0,0,12,4,null,null,null,8,60,480,480,0,"_","_",null,10,2,null,null,null,null,null,null,null,null,null,null,null,null,null,480,null,null,480]
["قشطوطة","قشطوطه مانجو / فاكهة",4,0,-15,0,0,19,3,null,null,null,16,60,960,960,0,"_","_",null,15,4,null,null,null,null,null,null,null,null,null,null,null,null,null,960,null,null,960]
["قشطوطة","قشطوطه نوتيلا",5,0,-20,0,2,25,10,60,null,null,17,60,1020,1020,0,"_","_",null,20,5,null,null,null,null,null,null,null,null,null,null,null,null,null,{"$f":"480+600","v":1080},null,null,1080]
["قشطوطة","قشطوطة دندو",0,0,null,0,0,0,null,null,null,null,0,60,0,0,0,"_","_",null,null,null,null,null,null,null,null,null,null,null,null,null,null,null,null,null,null,null,0]
["قشطوطة","قشطوطة كراميل صواني",0,0,null,0,0,0,null,null,null,null,0,1,0,0,0,"_","_",null,null,null,null,null,null,null,null,null,null,null,null,null,null,null,null,null,null,null,0]
["قشطوطة","قشطوطة كريمة صواني",0,45,45,0,0,0,null,null,null,null,0,1,0,0,0,"_","_",null,null,null,null,null,null,null,null,null,45,null,null,null,null,null,null,null,null,null,0]
["ايس كريم","ايس كريم كافيتريا - خام عادي ",0,0,{"$f":"-14.1+10.83","v":-3.2699999999999996},0,0,3.2699999999999996,0,null,null,null,3.2699999999999996,220,719.39999999999986,720,0.60000000000013642,"_",2.7272727272733472E-3,null,14.1,null,null,null,null,10.83,null,null,null,null,null,null,null,null,null,null,{"$f":"60+3*60+5*60+80+60+40","v":720},null,720]
["ايس كريم","ايس كريم كافيتريا - خام اسبيشيال ",0,0,null,0,0,0,null,null,null,null,0,280,0,0,0,"_","_",null,null,null,null,null,null,null,null,null,null,null,null,null,null,null,null,null,null,null,0]
["ايس كريم","ايس كريم - خام عادي 180",0,71.95,{"$f":"-185.95+14.1-10.83","v":-182.68},0,125.45,254.63,175.75,null,null,null,204.32999999999998,205,41887.649999999994,42500,612.35000000000582,{"$f":"IF(Q67<0,Q67/N67,\"_\")","v":"_"},2.9870731707317355,null,57.85,185.95,10.83,null,null,null,null,null,68.55,3.4,null,null,null,null,null,{"$f":"17940+2320+720+21200-33*20-4*100","v":41120},null,{"$f":"80+13*100","v":1380},42500]
["ايس كريم","ايس كريم - خام اسبيشيال 250",0,19.5,null,0,6,19.5,7.5,null,null,null,18,308,5544,5208,-336,{"$f":"IF(Q68<0,Q68/N68,\"_\")","v":-1.0909090909090908},"_",null,12.2,7.3,null,null,null,null,null,null,12.2,7.3,null,null,null,null,null,{"$f":"33*28+4*140+1036+13*140","v":4340},{"$f":"6*28","v":168},{"$f":"5*140","v":700},5208]
["ايس كريم","كزرولة لبن ص 5.800",0,30.099999999999998,30.099999999999998,0,0,0,null,null,null,null,0,1,0,0,0,"_","_",null,null,null,null,null,null,null,null,30.099999999999998,null,null,null,null,null,null,null,null,null,null,0]
["ايس كريم","كزرولة لبن ك 3.600",0,0,null,0,0,0,null,null,null,null,0,1,0,0,0,"_","_",null,null,null,null,null,null,null,null,null,null,null,null,null,null,null,null,null,null,null,0]
["ايس كريم","كزرولة لبن ك 6.300",0,0,null,0,0,0,null,null,null,null,0,1,0,0,0,"_","_",null,null,null,null,null,null,null,null,null,null,null,null,null,null,null,null,null,null,null,0]
["ايس كريم","كزرولة لبن ك 6.600",0,155.85,155.85,0,0,0,null,null,null,null,0,1,0,0,0,"_","_",null,null,null,null,null,null,null,null,40.449999999999996,37.949999999999996,38.699999999999996,38.75,null,null,null,null,null,null,null,0]
["مكسرات","مكسرات أيس",83,50,48,{"$f":"C73+D73-E73-H73","v":85},0,0,null,null,null,null,0,1,0,0,0,"_",{"$f":"IF(Q73>0,Q73/N73,\"_\")","v":"_"},null,null,null,null,null,null,null,null,null,50,null,null,null,null,null,null,null,null,null,0]
["فطير ","بسكوت اوريو مطحون فطير",0,{"$f":"SUM(AB74:AH74)","v":0},null,0,0.5,{"$f":"SUM(U74:Y74)-Z74","v":0},0.2,null,null,null,{"$f":"H74+G74-I74-K74-L74","v":0.3},1,{"$f":"N74*M74","v":0.3},{"$f":"AM74-J74","v":0},{"$f":"P74-O74","v":-0.3},{"$f":"IF(Q74<0,Q74/N74,\"_\")","v":-0.3},"_",null,null,null,null,null,null,null,null,null,null,null,null,null,null,null,null,null,null,null,{"$f":"SUM(AJ74:AL74)","v":0}]
["فطير ","بسكوت لوتس مطحون فطير",0,0,null,0,0.25,0,0,null,null,null,0.25,1,0.25,0.85000000000000009,0.60000000000000009,{"$f":"IF(Q75<0,Q75/N75,\"_\")","v":"_"},0.60000000000000009,null,null,null,null,null,null,null,null,null,null,null,null,null,null,null,null,{"$f":"16*0.05","v":0.8},null,0.05,0.85000000000000009]
["فطير ","صوص شوكلت وايت فطير",0,0,null,0,2.5,0,2.4,null,null,null,0.10000000000000009,1,0.10000000000000009,0,-0.10000000000000009,-0.10000000000000009,"_",null,null,null,null,null,null,null,null,null,null,null,null,null,null,null,null,null,null,null,0]
["فطير ","صوص نوتيلا فطير",0,0,-2.5,0,1,2.5,2.2999999999999998,null,null,null,1.2000000000000002,1,1.2000000000000002,2.35,1.1499999999999999,"_",1.1499999999999999,null,2.5,null,null,null,null,null,null,null,null,null,null,null,null,null,null,{"$f":"44*0.05","v":2.2000000000000002},null,0.15,2.35]
["فطير ","صوص لوتس فطير",0,0,null,0,3,0,2,null,null,null,1,1,1,0.85000000000000009,-0.14999999999999991,-0.14999999999999991,"_",null,null,null,null,null,null,null,null,null,null,null,null,null,null,null,null,{"$f":"16*0.05","v":0.8},null,0.05,0.85000000000000009]
["فطير ","علب مكسرات فطير",0,0,null,0,9,0,4,null,null,-1,6,25,150,150,0,{"$f":"IF(Q79<0,Q79/N79,\"_\")","v":"_"},"_",null,null,null,null,null,null,null,null,null,null,null,null,null,null,null,null,75,75,null,150]
["مكسرات","علب مكسرات ارز فرع",72,45,30,87,2,0,0,null,null,1,1,25,25,25,0,"_","_",null,null,null,null,null,null,null,null,null,45,null,null,null,null,null,null,null,null,25,25]
[null,"علب مكسرات  بليلة",0,0,null,0,0,0,null,null,null,null,0,1,0,0,0,"_","_",null,null,null,null,null,null,null,null,null,null,null,null,null,null,null,null,null,null,null,0]
["مكسرات","كيس مكسرات بليلة",0,0,null,0,0,0,null,null,null,null,0,1,0,0,0,"_","_",null,null,null,null,null,null,null,null,null,null,null,null,null,null,null,null,null,null,null,0]
["شرقي","مشبك دمياطي",0,5,null,0,7,5,11,null,null,null,1,60,60,60,0,"_","_",null,5,null,null,null,null,null,null,5,null,null,null,null,null,null,null,60,null,null,60]
["اطباق مشكله","ساليزونات مشكله",0,1.9,null,0,1.27,1.9,1.165,null,null,null,2.0049999999999999,190,380.95,391.4,10.449999999999989,"_",5.4999999999999938E-2,null,1.9,null,null,null,null,null,null,null,null,1.9,null,null,null,null,null,319.2,null,72.2,391.4]
[null,"اسبيشيال لوكس 1/2 كيلو",0,0,null,0,0,0,null,null,null,null,0,137.5,0,0,0,"_","_",null,null,null,null,null,null,null,null,null,null,null,null,null,null,null,null,null,null,null,0]
["اطباق مشكله","اسبيشيال لوكس",0,13.685,null,0,6.2549999999999999,13.685,5.88,null,null,null,14.060000000000002,290,4077.4000000000005,4083.2,5.7999999999992724,"_",1.9999999999997492E-2,null,11.55,2.1349999999999998,null,null,null,null,null,null,null,11.55,2.1349999999999998,null,null,null,null,4083.2,null,null,4083.2]
[null,"مشكل شعبيات",0,0,null,0,0,0,null,null,null,null,0,150,0,0,0,"_","_",null,null,null,null,null,null,null,null,null,null,null,null,null,null,null,null,null,null,null,0]
["كنافات ومكرونه","كنافه كريمه",0,2.77,null,0,0,2.77,0,null,null,null,2.77,135,373.95,372.6,-1.3499999999999659,-9.9999999999997469E-3,"_",null,2.77,null,null,null,null,null,null,null,2.77,null,null,null,null,null,null,372.6,null,null,372.6]
["كنافات ومكرونه","كنافه مكسرات",0,2,null,0,0.51,2,0.67,null,null,null,1.8399999999999999,185,340.4,333,-7.3999999999999773,-3.9999999999999876E-2,"_",null,2,null,null,null,null,null,null,null,2,null,null,null,null,null,null,333,null,null,333]
["كنافات ومكرونه","لينزا",0,2.6,null,0,0,2.6,1.85,null,null,null,0.75,175,131.25,105.9,-25.349999999999994,-0.14485714285714282,"_",null,2.6,null,null,null,null,null,null,null,null,2.6,null,null,null,null,null,105.9,null,null,105.9]
["كنافات ومكرونه","مكرونه",0,2.7,null,0,0,2.7,0,null,null,null,2.7,130,351,334.7,-16.300000000000011,-0.12538461538461548,"_",null,2.7,null,null,null,null,null,null,null,null,2.7,null,null,null,null,null,270.39999999999998,null,64.3,334.7]
["بسبـــــــــوســات","بسبوسه ساده",0,8.64,0.97499999999999998,0,0.51,7.6649999999999991,0,null,null,null,8.1749999999999989,150,1226.2499999999998,1250.3,24.050000000000182,"_",0.16033333333333455,null,8.27,null,null,null,null,0.60499999999999998,null,null,8.64,null,null,null,null,null,null,1169.3,null,81,1250.3]
["موسم رمضان","رواني سادة بالعسل",0,0,null,0,0,0,null,null,null,null,0,180,0,0,0,"_","_",null,null,null,null,null,null,null,null,null,null,null,null,null,null,null,null,null,null,null,0]
["بسبـــــــــوســات","هريسه حشو مكسرات",0,3.4,null,0,0.93,3.4,0.68,null,null,null,3.65,150,547.5,568.5,21,"_",0.14000000000000001,null,3.4,null,null,null,null,null,null,null,3.4,null,null,null,null,null,null,568.5,null,null,568.5]
["بسبـــــــــوســات","بسبوسه مكسرات",0,13.969999999999999,null,0,2.88,13.97,0,null,null,null,16.850000000000001,185,3117.2500000000005,3144.9,27.649999999999636,"_",0.14945945945945749,null,13.97,null,null,null,null,null,null,null,13.969999999999999,null,null,null,null,null,null,2674.1,null,470.8,3144.9]
["بسبـــــــــوســات","بسبوسه فستق",0,0,null,0,0,0,null,null,null,null,0,280,0,0,0,"_","_",null,null,null,null,null,null,null,null,null,null,null,null,null,null,null,null,null,null,null,0]
["قشطات","قشطات / بقلاوة كريمة",5.7399999999999967,35.630000000000003,null,3.4499999999999957,2.92,37.92,{"$f":"0.78+2.535+0.36","v":3.6750000000000003},null,0.19500000000000001,null,36.970000000000006,230,8503.1000000000022,8496.2000000000007,-6.9000000000014552,-3.0000000000006327E-2,"_",null,15.18,20.49,5.7,null,null,{"$f":"6.75-3.3","v":3.45},null,null,14.75,15.18,{"$f":"1.6+1.4+2.7","v":5.7},null,null,null,null,8143.1,null,353.1,8496.2000000000007]
["زيوت قشطات","بلح شام قشطه /فواكهه",0,0.9,null,0,0,0.9,0,null,null,null,0.9,230,207,192.1,-14.900000000000006,-6.4782608695652194E-2,"_",null,0.9,null,null,null,null,null,null,null,null,0.9,null,null,null,null,null,192.1,null,null,192.1]
["موسم رمضان","قطايف قشطة",0,0,null,0,0,0,null,null,null,null,0,210,0,0,0,"_","_",null,null,null,null,null,null,null,null,null,null,null,null,null,null,null,null,null,null,null,0]
["بقـــــلاوات","بقلاوة مكسرات",0,2.7800000000000002,null,0,1.095,2.78,1.1850000000000001,null,null,null,2.69,325,874.25,919.7,45.450000000000045,"_",0.13984615384615398,null,2.78,null,null,null,null,null,null,null,2.7800000000000002,null,null,null,null,null,null,919.7,null,null,919.7]
["سرافيس كنافه","اساور تاج مكسرات",0,0,null,0,0,0,null,null,null,null,0,370,0,0,0,"_","_",null,null,null,null,null,null,null,null,null,null,null,null,null,null,null,null,null,null,null,0]
["سرافيس كنافه","كنافه سيخ بندق",0,0,null,0,0,0,null,null,null,null,0,510,0,0,0,"_","_",null,null,null,null,null,null,null,null,null,null,null,null,null,null,null,null,null,null,null,0]
["سرافيس كنافه","كنافه سيخ ساده",0,1.28,0.14499999999999999,0,0,1.135,1.17,null,null,null,-3.499999999999992E-2,200,-6.999999999999984,51,57.999999999999986,"_",0.28999999999999992,null,1.28,null,null,null,null,0.14499999999999999,null,null,1.28,null,null,null,null,null,null,51,null,null,51]
["سرافيس كنافه","كنافه عجوه",0,0,null,0,0,0,null,null,null,null,0,230,0,0,0,"_","_",null,null,null,null,null,null,null,null,null,null,null,null,null,null,null,null,null,null,null,0]
["سرافيس كنافه","كنافه بورمه فستق",0,0,null,0,0,0,null,null,null,null,0,650,0,0,0,"_","_",null,null,null,null,null,null,null,null,null,null,null,null,null,null,null,null,null,null,null,0]
["سرافيس كنافه","كنافه بورمه بندق",0,0,null,0,0,0,null,null,null,null,0,500,0,0,0,"_","_",null,null,null,null,null,null,null,null,null,null,null,null,null,null,null,null,null,null,null,0]
["سرافيس كنافه","كنافه دمياطي",0,0,null,0,0,0,null,null,null,null,0,420,0,0,0,"_","_",null,null,null,null,null,null,null,null,null,null,null,null,null,null,null,null,null,null,null,0]
["رفـــايــــــــع","رموش / هريسه",0,2,null,0,1.81,2,2.5,null,null,null,1.31,200,262,175,-87,-0.435,"_",null,1,1,null,null,null,null,null,null,1,1,null,null,null,null,null,175,null,null,175]
["رفـــايــــــــع","كـنـافـة تـمـر سـعـودي",0,0,null,0,0,0,null,null,null,null,0,170,0,0,0,"_","_",null,null,null,null,null,null,null,null,null,null,null,null,null,null,null,null,null,null,null,0]
["فـــــــــــورم","رطب شو",0,5,null,0,3,5,3,null,null,null,5,70,350,350,0,"_","_",null,5,null,null,null,null,null,null,null,null,null,5,null,null,null,null,280,null,70,350]
["فـــــــــــورم","فورمه بسبوسه ساده",0,2,null,0,0,2,0,null,null,null,2,130,260,260,0,"_","_",null,2,null,null,null,null,null,null,null,null,2,null,null,null,null,null,130,null,130,260]
["فـــــــــــورم","فورمه بسبوسه مكسرات",0,2,null,0,0,2,0,null,null,null,2,155,310,310,0,"_","_",null,2,null,null,null,null,null,null,null,null,2,null,null,null,null,null,310,null,null,310]
["فـــــــــــورم","فورمه كنافه كريمه",0,2,null,0,0,2,0,null,null,null,2,135,270,270,0,"_","_",null,2,null,null,null,null,null,null,null,2,null,null,null,null,null,null,135,null,135,270]
["فـــــــــــورم","فورمه كنافه مكسرات",0,2,null,0,1,2,0,null,null,null,3,185,555,555,0,"_","_",null,2,null,null,null,null,null,null,null,2,null,null,null,null,null,null,555,null,null,555]
[null,"مشكل مقليات",0,0,null,0,0,0,null,null,null,null,0,170,0,0,0,"_","_",null,null,null,null,null,null,null,null,null,null,null,null,null,null,null,null,null,null,null,0]
["زيــــــــــوت","صوابع زينب / زلابيا",0,0,null,0,0,0,null,null,null,null,0,170,0,0,0,"_","_",null,null,null,null,null,null,null,null,null,null,null,null,null,null,null,null,null,null,null,0]
["زيــــــــــوت","بلح شام ساده",0,1.1499999999999999,null,0,0,1.1499999999999999,0,null,null,null,1.1499999999999999,170,195.49999999999997,188.7,-6.7999999999999829,-3.9999999999999897E-2,"_",null,1.1499999999999999,null,null,null,null,null,null,null,null,null,1.1499999999999999,null,null,null,null,188.7,null,null,188.7]
["موسم رمضان","أصابع السلطان",0,0,null,0,0,0,null,null,null,null,0,170,0,0,0,"_","_",null,null,null,null,null,null,null,null,null,null,null,null,null,null,null,null,null,null,null,0]
["موسم رمضان","قطايف مكسرات",0,0,null,0,0,0,null,null,null,null,0,170,0,0,0,"_","_",null,null,null,null,null,null,null,null,null,null,null,null,null,null,null,null,null,null,null,0]
["موسم رمضان","بغاشا",0,0,null,0,0,0,null,null,null,null,0,200,0,0,0,"_","_",null,null,null,null,null,null,null,null,null,null,null,null,null,null,null,null,null,null,null,0]
[null,"خبز دايت",0,0,null,0,0,0,null,null,null,null,0,40,0,0,0,"_","_",null,null,null,null,null,null,null,null,null,null,null,null,null,null,null,null,null,null,null,0]
["زيوت قشطات","ميني بان 1/2 كيلو ",1,10,5,0,0,6,0,null,null,null,6,98,588,588,0,"_","_",null,10,1,null,null,null,5,null,null,null,10,null,null,null,null,null,588,null,null,588]
["حــــــــــــــوادق","ميني بان",0,0,null,0,0,0,null,null,null,null,0,195,0,0,0,"_","_",null,null,null,null,null,null,null,null,null,null,null,null,null,null,null,null,null,null,null,0]
["حــــــــــــــوادق","ميني بيتزا",5,7,null,0,5,12,1,null,null,null,16,27,432,432,0,"_","_",null,7,5,null,null,null,null,null,null,null,7,null,null,null,null,null,432,null,null,432]
["حــــــــــــــوادق","مبنى ديب",7,5,5,0,0,7,0,null,null,null,7,85,595,510,-85,-1,"_",null,5,7,null,null,null,5,null,null,null,5,null,null,null,null,null,425,null,85,510]
["حــــــــــــــوادق","كرواسون حوادق",0,0,null,0,4,0,2,null,null,null,2,27,54,54,0,"_","_",null,null,null,null,null,null,null,null,null,null,null,null,null,null,null,null,54,null,null,54]
["نواعم","كيك شاى 1/2 ك",0,0,null,0,0,0,null,null,null,null,0,60,0,0,0,"_","_",null,null,null,null,null,null,null,null,null,null,null,null,null,null,null,null,null,null,null,0]
["نواعم","قالب كيك",0,8,null,0,0,8,3,null,null,null,5,50,250,100,-150,{"$f":"IF(Q128<0,Q128/N128,\"_\")","v":-3},"_",null,8,null,null,null,null,null,null,null,null,8,null,null,null,null,null,null,null,100,100]
["نواعم","قراقيش ساده /رايب",0,10,null,0,11,10,2,null,null,null,19,95,1805,1805,0,"_","_",null,10,null,null,null,null,null,null,null,null,null,10,null,null,null,null,570,null,1235,1805]
["نواعم","قراقيش عجوه",0,0,null,0,9,0,7,null,null,null,2,110,220,220,0,"_","_",null,null,null,null,null,null,null,null,null,null,null,null,null,null,null,null,220,null,null,220]
["نواعم","معمول عجوة",0,0,null,0,0,0,null,null,null,null,0,110,0,0,0,"_","_",null,null,null,null,null,null,null,null,null,null,null,null,null,null,null,null,null,null,null,0]
["نواعم","بسكوتات",0,6,null,0,19,6,22,null,null,null,3,120,360,360,0,"_","_",null,6,null,null,null,null,null,null,6,null,null,null,null,null,null,null,360,null,null,360]
["نواعم","بسكوت كوكيز/شوكلت/زبيب/ بالمية / لوز",0,10,null,0,12,10,16,null,5,null,1,150,150,150,0,"_","_",null,10,null,null,null,null,null,null,10,null,null,null,null,null,null,null,150,null,null,150]
[null,"كب كوكيز",0,0,null,0,1,0,1,null,null,null,0,35,0,0,0,"_","_",null,null,null,null,null,null,null,null,null,null,null,null,null,null,null,null,null,null,null,0]
["نواعم","سابيله / غريبه / بيتى فور",0,10,null,0,23,10,29,null,null,null,4,150,600,600,0,"_","_",null,10,null,null,null,null,null,null,10,null,null,null,null,null,null,null,600,null,null,600]
["نواعم","كريسينا",0,1,null,0,0,1,0,null,null,null,1,60,60,60,0,"_","_",null,1,null,null,null,null,null,null,null,null,null,1,null,null,null,null,60,null,null,60]
["نواعم","باتون ساليه",0,0,null,{"$f":"C137+D137-E137-H137","v":0},5,0,3,null,null,null,2,55,110,110,0,"_",{"$f":"IF(Q137>0,Q137/N137,\"_\")","v":"_"},null,null,null,null,null,null,null,null,null,null,null,null,null,null,null,null,110,null,null,110]
["نواعم","برازق",0,0,null,0,0,0,null,null,null,null,{"$f":"H138+G138-I138-K138-L138","v":0},150,{"$f":"N138*M138","v":0},{"$f":"AM138-J138","v":0},{"$f":"P138-O138","v":0},{"$f":"IF(Q138<0,Q138/N138,\"_\")","v":"_"},"_",null,null,null,null,null,null,null,null,null,null,null,null,null,null,null,null,null,null,null,0]
["نواعم","كحك ساده",0,{"$f":"SUM(AB139:AH139)","v":0},null,0,10,{"$f":"SUM(U139:Y139)-Z139","v":0},10,null,null,null,0,135,0,0,0,"_","_",null,null,null,null,null,null,null,null,null,null,null,null,null,null,null,null,null,null,null,{"$f":"SUM(AJ139:AL139)","v":0}]
["نواعم","كحك عين جمل",0,0,null,0,8,0,7,null,null,null,1,145,145,145,0,"_","_",null,null,null,null,null,null,null,null,null,null,null,null,null,null,null,null,145,null,null,145]
["نواعم","كحك فستق",0,0,null,0,0,0,null,null,null,null,0,195,0,0,0,"_","_",null,null,null,null,null,null,null,null,null,null,null,null,null,null,null,null,null,null,null,0]
["نواعم","كحك مكسرات",0,0,null,0,1,0,1,null,null,null,0,145,0,0,0,"_","_",null,null,null,null,null,null,null,null,null,null,null,null,null,null,null,null,null,null,null,0]
["نواعم","كحك ملبن ساده",0,0,null,0,4,0,3,null,null,null,1,115,115,115,0,"_","_",null,null,null,null,null,null,null,null,null,null,null,null,null,null,null,null,115,null,null,115]
["شيكـــــــــــولاتــــــــه","امبلاج",0,0,null,0,14970,0,14970,null,null,null,0,1,0,0,0,"_","_",null,null,null,null,null,null,null,null,null,null,null,null,null,null,null,null,null,null,null,0]
["شيكـــــــــــولاتــــــــه","شيكولاته ميكس الصياد",0,0,null,0,7,0,4,null,null,null,3,400,1200,1200,0,"_","_",null,null,null,null,null,null,null,null,null,null,null,null,null,null,null,null,1200,null,null,1200]
["موسم حلاوة المولد","علبة التوفير 800. جرام حلاوة مولد",0,0,null,0,0,0,null,null,null,null,0,155,0,0,0,"_","_",null,null,null,null,null,null,null,null,null,null,null,null,null,null,null,null,null,null,null,0]
["موسم حلاوة المولد","علبة مشكل 1 ك فيستفال",0,0,null,0,0,0,null,null,null,null,0,195,0,0,0,"_","_",null,null,null,null,null,null,null,null,null,null,null,null,null,null,null,null,null,null,null,0]
["موسم حلاوة المولد","علبة 1.5 ك مشكل كلاسيك",0,0,null,0,0,0,null,null,null,null,0,255,0,0,0,"_","_",null,null,null,null,null,null,null,null,null,null,null,null,null,null,null,null,null,null,null,0]
["موسم حلاوة المولد","علبة مشكل كرنفال صاج 1.5 ك",0,0,null,0,0,0,null,null,null,null,0,315,0,0,0,"_","_",null,null,null,null,null,null,null,null,null,null,null,null,null,null,null,null,null,null,null,0]
["موسم حلاوة المولد","علبة مكسات 1.5 ك",0,0,null,0,0,0,null,null,null,null,0,350,0,0,0,"_","_",null,null,null,null,null,null,null,null,null,null,null,null,null,null,null,null,null,null,null,0]
["موسم حلاوة المولد","علبة جواهر 1.5 ك ",0,0,null,0,0,0,null,null,null,null,0,365,0,0,0,"_","_",null,null,null,null,null,null,null,null,null,null,null,null,null,null,null,null,null,null,null,0]
["موسم حلاوة المولد","علبة جزرية سوداني 1/2 ك",0,0,null,0,0,0,null,null,null,null,0,55,0,0,0,"_","_",null,null,null,null,null,null,null,null,null,null,null,null,null,null,null,null,null,null,null,0]
["موسم حلاوة المولد","علبة مشكل فرحة المولد 1.5 ك ",0,0,null,0,0,0,null,null,null,null,0,305,0,0,0,"_","_",null,null,null,null,null,null,null,null,null,null,null,null,null,null,null,null,null,null,null,0]
["موسم حلاوة المولد","علبة الليلة الكبيرة 2.2 ك",0,0,null,0,0,0,null,null,null,null,0,680,0,0,0,"_","_",null,null,null,null,null,null,null,null,null,null,null,null,null,null,null,null,null,null,null,0]
["موسم حلاوة المولد","علبة كنوز 2.5 ك ",0,0,null,0,0,0,null,null,null,null,0,890,0,0,0,"_","_",null,null,null,null,null,null,null,null,null,null,null,null,null,null,null,null,null,null,null,0]
["موسم حلاوة المولد","علبة مشكل علف 1/2 ك ",0,0,null,0,0,0,null,null,null,null,0,97.5,0,0,0,"_","_",null,null,null,null,null,null,null,null,null,null,null,null,null,null,null,null,null,null,null,0]
["موسم حلاوة المولد","علبة مشكل علف 1 ك ",0,0,null,0,0,0,null,null,null,null,0,195,0,0,0,"_","_",null,null,null,null,null,null,null,null,null,null,null,null,null,null,null,null,null,null,null,0]
["موسم حلاوة المولد","علبة علف سوداني 1/2 ك",0,0,null,0,0,0,null,null,null,null,0,97.5,0,0,0,"_","_",null,null,null,null,null,null,null,null,null,null,null,null,null,null,null,null,null,null,null,0]
["موسم حلاوة المولد","علبة قرص حمصية 1/2 ك",0,0,null,0,0,0,null,null,null,null,0,65,0,0,0,"_","_",null,null,null,null,null,null,null,null,null,null,null,null,null,null,null,null,null,null,null,0]
["موسم حلاوة المولد","علبة مشكل مربات 1/2 ك ",0,0,null,0,0,0,null,null,null,null,0,135,0,0,0,"_","_",null,null,null,null,null,null,null,null,null,null,null,null,null,null,null,null,null,null,null,0]
["موسم حلاوة المولد"," قشطة مارشيملو",0,0,null,0,0,0,null,null,null,null,0,180,0,0,0,"_","_",null,null,null,null,null,null,null,null,null,null,null,null,null,null,null,null,null,null,null,0]
["موسم حلاوة المولد","علبة ملبن فواكه 1/2 ك ",0,0,null,0,2,0,2,null,null,null,0,50,0,0,0,"_","_",null,null,null,null,null,null,null,null,null,null,null,null,null,null,null,null,null,null,null,0]
["موسم حلاوة المولد","علبة نوجا سوداني 1/4 ك",0,0,null,0,0,0,null,null,null,null,0,65,0,0,0,"_","_",null,null,null,null,null,null,null,null,null,null,null,null,null,null,null,null,null,null,null,0]
["موسم حلاوة المولد","علبة ملبن حبل عين جمل 1/2 ك",0,0,null,0,1.24,0,1.24,null,null,null,0,460,0,0,0,"_","_",null,null,null,null,null,null,null,null,null,null,null,null,null,null,null,null,null,null,null,0]
["موسم حلاوة المولد","علبة بندقية 1/4 ك",0,0,null,0,0,0,null,null,null,null,0,245,0,0,0,"_","_",null,null,null,null,null,null,null,null,null,null,null,null,null,null,null,null,null,null,null,0]
["موسم حلاوة المولد","علبة لوزية 1/4 ك",0,0,null,0,0,0,null,null,null,null,0,185,0,0,0,"_","_",null,null,null,null,null,null,null,null,null,null,null,null,null,null,null,null,null,null,null,0]
["موسم حلاوة المولد","علبة القرمشة 1/2 ك ",0,0,null,0,0,0,null,null,null,null,0,97.5,0,0,0,"_","_",null,null,null,null,null,null,null,null,null,null,null,null,null,null,null,null,null,null,null,0]
["علبة شيكولاته مشكلة 650 جم","علبة شيكولاته مشكلة 650 جم",0,0,null,0,0,0,null,null,null,null,0,165,0,0,0,"_","_",null,null,null,null,null,null,null,null,null,null,null,null,null,null,null,null,null,null,null,0]
["موسم رمضان"," كنافة مانجو كبير / بولة مركب",0,0,null,0,0,0,null,null,null,null,0,175,0,0,0,"_","_",null,null,null,null,null,null,null,null,null,null,null,null,null,null,null,null,null,null,null,0]
["موسم رمضان"," كنافة مانجو ديو نوتيلا وسط",0,0,null,0,0,0,null,null,null,null,0,155,0,0,0,"_","_",null,null,null,null,null,null,null,null,null,null,null,null,null,null,null,null,null,null,null,0]
["موسم رمضان"," كنافة مانجو ديو نوتيلا كبير",0,0,null,0,0,0,null,null,null,null,0,260,0,0,0,"_","_",null,null,null,null,null,null,null,null,null,null,null,null,null,null,null,null,null,null,null,0]
["موسم رمضان","قشطوطه دبي",0,0,null,0,0,0,null,null,null,null,0,50,0,0,0,"_","_",null,null,null,null,null,null,null,null,null,null,null,null,null,null,null,null,null,null,null,0]
["موسم رمضان","اساتوك",0,0,null,0,0,0,null,null,null,null,0,90,0,0,0,"_","_",null,null,null,null,null,null,null,null,null,null,null,null,null,null,null,null,null,null,null,0]
["موسم رمضان","كب كنافة  صغير",0,0,null,0,0,0,null,null,null,null,0,35,0,0,0,"_","_",null,null,null,null,null,null,null,null,null,null,null,null,null,null,null,null,null,null,null,0]
[null,"عصير سوبيا",0,12,null,0,5,12,2,null,null,null,15,20,300,300,0,"_","_",null,12,null,null,null,null,null,null,12,null,null,null,null,null,null,null,300,null,null,300]
["موسم رمضان","عصير مانجو فريش",0,5,null,0,5,5,9,null,null,null,1,35,35,35,0,"_","_",null,5,null,null,null,null,null,null,5,null,null,null,null,null,null,null,35,null,null,35]
["موسم رمضان","عصير تمر هندى",0,0,null,0,0,0,null,null,null,null,0,25,0,0,0,"_","_",null,null,null,null,null,null,null,null,null,null,null,null,null,null,null,null,null,null,null,0]
["موسم رمضان","عصير دووم",0,0,null,0,0,0,null,null,null,null,0,25,0,0,0,"_","_",null,null,null,null,null,null,null,null,null,null,null,null,null,null,null,null,null,null,null,0]
["موسم رمضان","عصير عناب",0,0,null,0,0,0,null,null,null,null,0,25,0,0,0,"_","_",null,null,null,null,null,null,null,null,null,null,null,null,null,null,null,null,null,null,null,0]
["موسم رمضان","عصير بطيخ",0,0,null,0,0,0,null,null,null,null,0,35,0,0,0,"_","_",null,null,null,null,null,null,null,null,null,null,null,null,null,null,null,null,null,null,null,0]
["موسم رمضان","عصير بلح",0,0,null,0,0,0,null,null,null,null,0,35,0,0,0,"_","_",null,null,null,null,null,null,null,null,null,null,null,null,null,null,null,null,null,null,null,0]
["موسم رمضان","عصير خروب",0,0,null,0,0,0,null,null,null,null,0,25,0,0,0,"_","_",null,null,null,null,null,null,null,null,null,null,null,null,null,null,null,null,null,null,null,0]
["موسم رمضان","عصير توت",0,0,null,0,0,0,null,null,null,null,0,35,0,0,0,"_","_",null,null,null,null,null,null,null,null,null,null,null,null,null,null,null,null,null,null,null,0]
["موسم رمضان","عصير فراوله",0,0,null,0,0,0,null,null,null,null,0,35,0,0,0,"_","_",null,null,null,null,null,null,null,null,null,null,null,null,null,null,null,null,null,null,null,0]
["موسم رمضان","وجــبــة بـطـيـخ",0,0,null,0,0,0,null,null,null,null,0,1,0,0,0,"_","_",null,null,null,null,null,null,null,null,null,null,null,null,null,null,null,null,null,null,null,0]
["موسم رمضان","وجــبــة بـلـح ",0,0,null,0,0,0,null,null,null,null,0,1,0,0,0,"_","_",null,null,null,null,null,null,null,null,null,null,null,null,null,null,null,null,null,null,null,0]
["موسم الشتاء","كنافه بين نارين كريمة",0,0,null,0,0,0,null,null,null,null,0,20,0,0,0,"_","_",null,null,null,null,null,null,null,null,null,null,null,null,null,null,null,null,null,null,null,0]
["موسم الشتاء","كنافه بين نارين كريمة لوتس",0,0,null,0,0,0,null,null,null,null,0,25,0,0,0,"_","_",null,null,null,null,null,null,null,null,null,null,null,null,null,null,null,null,null,null,null,0]
["موسم الشتاء","كنافه بين نارين نوتيلا",0,0,null,0,0,0,null,null,null,null,0,25,0,0,0,"_","_",null,null,null,null,null,null,null,null,null,null,null,null,null,null,null,null,null,null,null,0]
["موسم الشتاء","كسكسي بلبن ومكسرات",0,0,null,0,0,0,null,null,null,null,0,50,0,0,0,"_","_",null,null,null,null,null,null,null,null,null,null,null,null,null,null,null,null,null,null,null,0]
["موسم الشتاء","بسبوسة بين نارين بالقشطة",0,0,null,0,0,0,null,null,null,null,0,1,0,0,0,"_","_",null,null,null,null,null,null,null,null,null,null,null,null,null,null,null,null,null,null,null,0]
["موسم الشتاء","زلابيا",0,19.350000000000001,null,0,0,19.350000000000001,0,null,null,null,19.350000000000001,159.9,3094.0650000000005,3460,365.93499999999949,"_",2.2885240775484643,null,9.85,9.5,null,null,null,null,null,9.85,9.5,null,null,null,null,null,null,{"$f":"1280+2080","v":3360},null,100,3460]
["موسم الشتاء","زلابيا ص",0,0,null,0,0,0,null,null,null,null,0,1,0,0,0,"_","_",null,null,null,null,null,null,null,null,null,null,null,null,null,null,null,null,null,null,null,0]
["موسم الشتاء","زلابيا ك",0,0,null,0,0,0,null,null,null,null,0,1,0,0,0,"_","_",null,null,null,null,null,null,null,null,null,null,null,null,null,null,null,null,null,null,null,0]
["فطير ","فطير سادة",0,234,36,{"$f":"C195+D195-E195-H195","v":0},13,198,0,null,null,null,211,1,211,0,-211,-211,"_",null,192,42,null,null,null,36,null,null,null,192,42,null,null,null,null,null,null,null,0]
["فطير ","فطير سكر",0,0,null,{"$f":"C196+D196-E196-H196","v":0},0,0,0,70,null,null,0,35,0,5040,5040,"_",144,null,null,null,null,null,null,null,null,null,null,null,null,null,null,null,null,{"$f":"129*35","v":4515},{"$f":"105+105","v":210},385,5110]
["فطير ","فطير لوتس",0,0,null,0,0,0,0,null,null,null,0,50,0,850,850,"_",17,null,null,null,null,null,null,null,null,null,null,null,null,null,null,null,null,800,null,50,850]
["فطير ","فطير نوتيلا",0,0,null,0,0,0,0,50,null,null,0,50,0,2450,2450,"_",49,null,null,null,null,null,null,null,null,null,null,null,null,null,null,null,null,2200,150,150,2500]
["فطير ","فطير اوريو",0,0,null,0,0,0,0,null,null,null,0,50,0,0,0,"_","_",null,null,null,null,null,null,null,null,null,null,null,null,null,null,null,null,null,null,null,0]
[null,"غلة بليلة سادة وزن",0,0,null,0,0,0,null,null,null,null,0,400,0,0,0,"_","_",null,null,null,null,null,null,null,null,null,null,null,null,null,null,null,null,null,null,null,0]
[null,"بليلة مكسرات",0,0,null,{"$f":"C201+D201-E201-H201","v":0},0,0,null,null,null,null,0,45,0,0,0,"_",{"$f":"IF(Q201>0,Q201/N201,\"_\")","v":"_"},null,null,null,null,null,null,null,null,null,null,null,null,null,null,null,null,null,null,null,0]
[null,"بليلة اسبيشيال",0,0,null,0,0,0,null,null,null,null,{"$f":"H202+G202-I202-K202-L202","v":0},65,{"$f":"N202*M202","v":0},{"$f":"AM202-J202","v":0},{"$f":"P202-O202","v":0},{"$f":"IF(Q202<0,Q202/N202,\"_\")","v":"_"},"_",null,null,null,null,null,null,null,null,null,null,null,null,null,null,null,null,null,null,null,0]
[null,"بليلة سوبر اسبيشيال",0,{"$f":"SUM(AB203:AH203)","v":0},null,0,0,{"$f":"SUM(U203:Y203)-Z203","v":0},null,null,null,null,0,85,0,0,0,"_","_",null,null,null,null,null,null,null,null,null,null,null,null,null,null,null,null,null,null,null,{"$f":"SUM(AJ203:AL203)","v":0}]
["منوعات","استيك ايس كريم",0,0,null,0,0,0,null,null,null,null,0,1,0,0,0,"_","_",null,null,null,null,null,null,null,null,null,null,null,null,null,null,null,null,null,null,null,0]
["منوعات","بسكوت/بوله فاضي",500,500,null,1000,0,0,null,null,null,null,0,1,0,0,0,"_","_",null,null,null,null,null,null,null,null,null,500,null,null,null,null,null,null,null,null,null,0]
["منوعات","بسكوته صوص ورده",0,0,null,0,0,0,null,null,null,null,0,1,0,0,0,"_","_",null,null,null,null,null,null,null,null,null,null,null,null,null,null,null,null,null,null,null,0]
["منوعات","جيلى ساده",0,0,null,0,0,0,null,null,null,null,0,1,0,0,0,"_","_",null,null,null,null,null,null,null,null,null,null,null,null,null,null,null,null,null,null,null,0]
["منوعات","شمع ارقام",0,0,null,0,18,0,17,null,null,null,1,15,15,15,0,"_","_",null,null,null,null,null,null,null,null,null,null,null,null,null,null,null,null,15,null,null,15]
["منوعات","عاشورة سادة",0,0,null,0,0,0,null,null,null,null,0,1,0,0,0,"_","_",null,null,null,null,null,null,null,null,null,null,null,null,null,null,null,null,null,null,null,0]
["منوعات","عاشورة مكسرات",0,0,null,0,0,0,null,null,null,null,0,1,0,0,0,"_","_",null,null,null,null,null,null,null,null,null,null,null,null,null,null,null,null,null,null,null,0]
["منوعات","علبة فرحة العيد",0,0,null,0,0,0,null,null,null,null,0,315,0,0,0,"_","_",null,null,null,null,null,null,null,null,null,null,null,null,null,null,null,null,null,null,null,0]
["منوعات","مسقسقة",0,0,null,0,0,0,null,null,null,null,0,1,0,0,0,"_","_",null,null,null,null,null,null,null,null,null,null,null,null,null,null,null,null,null,null,null,0]
["منوعات","مشكل جبن",0,0,null,0,0,0,null,null,null,null,0,1,0,0,0,"_","_",null,null,null,null,null,null,null,null,null,null,null,null,null,null,null,null,null,null,null,0]
["منوعات","مشكل رمضان",0,0,null,0,0,0,null,null,null,null,0,1,0,0,0,"_","_",null,null,null,null,null,null,null,null,null,null,null,null,null,null,null,null,null,null,null,0]
["منوعات","كريمة - خام",0,0,null,0,0,0,null,null,null,null,0,1,0,0,0,"_","_",null,null,null,null,null,null,null,null,null,null,null,null,null,null,null,null,null,null,null,0]
["منوعات","مشكل لحوم",0,0,null,0,0,0,null,null,null,null,0,1,0,0,0,"_","_",null,null,null,null,null,null,null,null,null,null,null,null,null,null,null,null,null,null,null,0]
["منوعات","كانز",0,0,null,0,0,0,null,null,null,null,0,1,0,0,0,"_","_",null,null,null,null,null,null,null,null,null,null,null,null,null,null,null,null,null,null,null,0]
["منوعات","مياة معدنية",80,0,null,80,0,0,null,null,null,null,0,1,0,0,0,"_","_",null,null,null,null,null,null,null,null,null,null,null,null,null,null,null,null,null,null,null,0]
["كافتيريا","كانز كبير - كافيتريا 20ج",0,0,null,0,64,0,51,null,null,null,13,20,260,260,0,"_","_",null,null,null,null,null,null,null,null,null,null,null,null,null,null,null,null,null,260,null,260]
["كافتيريا","مياة معدنيه كاقتيريا",0,0,null,0,65,0,40,null,null,null,25,10,250,240,-10,-1,"_",null,null,null,null,null,null,null,null,null,null,null,null,null,null,null,null,null,240,null,240]
["تيك اواي","كانز صغير تيك اوي 20ج",0,0,null,0,39,0,37,null,null,null,2,20,40,40,0,"_","_",null,null,null,null,null,null,null,null,null,null,null,null,null,null,null,null,null,null,40,40]
["تيك اواي","مياة معدنية تيك اوي",0,0,null,0,15,0,13,null,null,null,2,10,20,10,-10,-1,"_",null,null,null,null,null,null,null,null,null,null,null,null,null,null,null,null,null,null,10,10]
["كافتيريا","فاكهة تقطيع وزن",0,7,null,0,30,7,30,null,null,4,{"$f":"H223+G223-I223-K223-L223","v":3},0.2,0.60000000000000009,0,-0.60000000000000009,-3.0000000000000004,"_",null,7,null,null,null,null,null,null,7,null,null,null,null,null,null,null,null,null,null,0]
["كافتيريا","فخفخينا بالايس كريم",0,0,null,0,0,0,0,null,null,-2,2,90,180,180,0,"_","_",null,null,null,null,null,null,null,null,null,null,null,null,null,null,null,null,null,180,null,180]
["كافتيريا","فروت سلاط كريمة",0,0,null,0,0,0,0,null,null,-2,2,60,120,120,0,"_","_",null,null,null,null,null,null,null,null,null,null,null,null,null,null,null,null,null,120,null,120]
["كافتيريا","فروت سلاط توينكي",0,0,null,0,0,0,0,null,null,null,0,65,0,0,0,"_","_",null,null,null,null,null,null,null,null,null,null,null,null,null,null,null,null,null,null,null,0]
["كافتيريا","قهوة تركي",0,0,null,0,21,0,21,null,null,null,0,1,0,0,0,"_","_",null,null,null,null,null,null,null,null,null,null,null,null,null,null,null,null,null,null,null,0]
["كافتيريا","بن فليفر بندق",0,0,null,0,19,0,18,null,null,null,1,1,1,1,0,"_","_",null,null,null,null,null,null,null,null,null,null,null,null,null,null,null,null,null,1,null,1]
["كافتيريا","بن اسبريسو وزن",0,0,null,0,35,0,35,null,null,null,0,1,0,0,0,"_","_",null,null,null,null,null,null,null,null,null,null,null,null,null,null,null,null,null,null,null,0]
["كافتيريا","اسبريسو سنجل",0,0,null,0,0,0,0,null,null,null,0,1,0,0,0,"_","_",null,null,null,null,null,null,null,null,null,null,null,null,null,null,null,null,null,null,null,0]
["كافتيريا","اسبريسو دبل",0,0,null,0,0,0,0,null,null,null,0,0.66700000000000004,0,0,0,"_","_",null,null,null,null,null,null,null,null,null,null,null,null,null,null,null,null,null,null,null,0]
["كافتيريا","شاي سادة",0,0,null,0,26,0,23,null,null,null,3,25,75,75,0,"_","_",null,null,null,null,null,null,null,null,null,null,null,null,null,null,null,null,null,75,null,75]
["كافتيريا","شاي نكهات ( اخضر + فراولة + تفاح )",0,0,null,25,25,-25,null,null,null,null,0,25,0,0,0,"_","_",null,null,null,null,null,null,25,null,null,null,null,null,null,null,null,null,null,null,null,0]
["بيتـــــــــــــزا","عجين كبير",24,28,null,24,0,28,0,null,null,null,28,1,28,28,0,"_","_",null,8,15,13,null,null,8,null,null,null,28,null,null,null,null,null,1,12,15,28]
["بيتـــــــــــــزا","عجين وسط",14,0,null,0,0,14,0,null,null,null,14,1,14,14,0,"_","_",null,5,9,null,null,null,null,null,null,null,null,null,null,null,null,null,null,6,8,14]
["بيتـــــــــــــزا","حشو بيتزا - سلامي L",2,0,null,2,0,0,null,null,null,null,0,1,0,0,0,"_","_",null,2,null,null,null,null,2,null,null,null,null,null,null,null,null,null,null,null,null,0]
["بيتـــــــــــــزا","حشو بيتزا - سلامي M",6,0,null,6,0,0,null,null,null,null,0,1,0,0,0,"_","_",null,2,null,null,null,null,2,null,null,null,null,null,null,null,null,null,null,null,null,0]
["بيتـــــــــــــزا","حشو بيتزا - سوبر سوبريم L",10,0,null,10,0,0,null,null,null,null,0,1,0,0,0,"_","_",null,2,null,null,null,null,2,null,null,null,null,null,null,null,null,null,null,null,null,0]
["بيتـــــــــــــزا","حشو بيتزا - سوبر سوبريم M",9,0,null,8,0,1,0,null,null,null,1,1,1,1,0,"_","_",null,2,null,null,null,null,1,null,null,null,null,null,null,null,null,null,null,null,1,1]
["بيتـــــــــــــزا","حشو بيتزا - صياد L",4,0,null,1,0,3,0,null,null,null,3,1,3,3,0,"_","_",null,4,null,null,null,null,1,null,null,null,null,null,null,null,null,null,null,1,2,3]
["بيتـــــــــــــزا","حشو بيتزا - صياد M",5,0,null,3,0,2,0,null,null,null,2,1,2,2,0,"_","_",null,2,null,null,null,null,null,null,null,null,null,null,null,null,null,null,null,null,2,2]
["بيتـــــــــــــزا","حشو بيتزا - شاورما لحم L",5,0,null,3,0,2,0,null,null,null,2,1,2,2,0,"_","_",1,1,2,null,null,null,1,null,null,null,null,null,null,null,null,null,null,1,1,2]
["بيتـــــــــــــزا","حشو بيتزا - شاورما لحم M",5,0,null,5,0,0,null,null,null,null,0,1,0,0,0,"_","_",null,1,null,null,null,null,1,null,null,null,null,null,null,null,null,null,null,null,null,0]
["بيتـــــــــــــزا","حشو بيتزا - سجق L",3,0,null,3,0,0,null,null,null,null,0,1,0,0,0,"_","_",null,2,null,null,null,null,2,null,null,null,null,null,null,null,null,null,null,null,null,0]
["بيتـــــــــــــزا","حشو بيتزا - سجق M",7,0,null,7,0,0,null,null,null,null,0,1,0,0,0,"_","_",null,2,null,null,null,null,2,null,null,null,null,null,null,null,null,null,null,null,null,0]
["بيتـــــــــــــزا","حشو بيتزا - لحمه مفرومه L",3,0,null,1,0,2,0,null,null,null,2,1,2,2,0,"_","_",null,2,1,null,null,null,1,null,null,null,null,null,null,null,null,null,null,null,2,2]
["بيتـــــــــــــزا","حشو بيتزا - لحمه مفرومه M",8,0,null,8,0,0,null,null,null,null,0,1,0,0,0,"_","_",null,2,null,null,null,null,2,null,null,null,null,null,null,null,null,null,null,null,null,0]
["بيتـــــــــــــزا","حشو بيتزا - هوت دوج L",4,0,null,4,0,0,null,null,null,null,0,1,0,0,0,"_","_",null,3,null,null,null,null,3,null,null,null,null,null,null,null,null,null,null,null,null,0]
["بيتـــــــــــــزا","حشو بيتزا - هوت دوج M",3,0,null,3,0,0,null,null,null,null,0,1,0,0,0,"_","_",null,1,null,null,null,null,1,null,null,null,null,null,null,null,null,null,null,null,null,0]
["بيتـــــــــــــزا","حشو بيتزا - سي فود L",7,0,null,6,0,1,0,null,null,null,1,1,1,1,0,"_","_",null,2,null,null,null,null,1,null,null,null,null,null,null,null,null,null,null,null,1,1]
["بيتـــــــــــــزا","حشو بيتزا - سي فود M",6,0,null,6,0,0,null,null,null,null,0,1,0,0,0,"_","_",null,1,null,null,null,null,1,null,null,null,null,null,null,null,null,null,null,null,null,0]
["بيتـــــــــــــزا","حشو بيتزا - جمبري L",10,0,null,9,0,1,0,null,null,null,1,1,1,1,0,"_","_",null,2,null,null,null,null,1,null,null,null,null,null,null,null,null,null,null,1,null,1]
["بيتـــــــــــــزا","حشو بيتزا - جمبري M",7,0,null,6,0,1,0,null,null,null,1,1,1,1,0,"_","_",null,2,null,null,null,null,1,null,null,null,null,null,null,null,null,null,null,null,1,1]
["بيتـــــــــــــزا","حشو بيتزا - سوبريم دجاج L",3,0,null,2,0,1,0,null,null,null,1,1,1,1,0,"_","_",null,2,null,null,null,null,1,null,null,null,null,null,null,null,null,null,null,null,1,1]
["بيتـــــــــــــزا","حشو بيتزا - سوبريم دجاج M",7,0,null,7,0,0,null,null,null,null,0,1,0,0,0,"_","_",null,1,null,null,null,null,1,null,null,null,null,null,null,null,null,null,null,null,null,0]
["بيتـــــــــــــزا","حشو بيتزا - شاورما فراخ L",8,0,null,4,0,4,0,null,null,null,4,1,4,4,0,"_","_",null,8,null,null,null,null,4,null,null,null,null,null,null,null,null,null,null,2,2,4]
["بيتـــــــــــــزا","حشو بيتزا - شاورما فراخ M",4,0,null,3,0,1,0,null,null,null,1,1,1,1,0,"_","_",null,4,null,null,null,null,3,null,null,null,null,null,null,null,null,null,null,null,1,1]
["بيتـــــــــــــزا","حشو بيتزا - زنجر سوبريم L",0,5,null,2,0,3,0,null,null,null,3,1,3,3,0,"_","_",null,2,2,null,null,null,1,null,null,null,5,null,null,null,null,null,null,2,1,3]
["بيتـــــــــــــزا","حشو بيتزا - زنجر سوبريم M",3,0,null,3,0,0,null,null,null,null,0,1,0,0,0,"_","_",null,2,null,null,null,null,2,null,null,null,null,null,null,null,null,null,null,null,null,0]
["بيتـــــــــــــزا","حشو بيتزا - شيش L",5,5,null,4,0,6,0,null,null,null,6,1,6,6,0,"_","_",null,5,5,null,null,null,4,null,null,null,5,null,null,null,null,null,1,3,2,6]
["بيتـــــــــــــزا","حشو بيتزا - شيش M",5,0,null,1,0,4,0,null,null,null,4,1,4,4,0,"_","_",null,5,null,null,null,null,1,null,null,null,null,null,null,null,null,null,null,3,1,4]
["بيتـــــــــــــزا","حشو بيتزا - بسطرمه L",5,0,null,4,0,1,0,null,null,null,1,1,1,1,0,"_","_",null,2,null,null,null,null,1,null,null,null,null,null,null,null,null,null,null,1,null,1]
["بيتـــــــــــــزا","حشو بيتزا - بسطرمه M",3,0,null,2,0,1,0,null,null,null,1,1,1,1,0,"_","_",null,1,null,null,null,null,null,null,null,null,null,null,null,null,null,null,null,1,null,1]
["بيتـــــــــــــزا","حشو بيتزا - تونة M",0,0,null,0,3,0,3,null,null,null,0,1,0,0,0,"_","_",null,null,null,null,null,null,null,null,null,null,null,null,null,null,null,null,null,null,null,0]
["بيتـــــــــــــزا","جبنة موتزريلا - بيتزا",11.75,10,2,{"$f":"C265+D265-E265-H265","v":7.4},0,12.35,0,null,null,null,12.35,1,12.35,13.96,1.6100000000000012,"_",{"$f":"IF(Q265>0,Q265/N265,\"_\")","v":1.6100000000000012},null,11.75,2,null,null,null,1.4,null,null,null,10,null,null,null,null,null,0.34,{"$f":"13*0.34+6*0.15+0.15","v":5.4700000000000006},{"$f":"15*0.34+8*0.35+0.25","v":8.15},13.96]
["سندوتشات","جبنة موتزريلا - جريل",0.39999999999999991,0,-2,0,0,2.4,0,null,null,null,{"$f":"H266+G266-I266-K266-L266","v":2.4},1,{"$f":"N266*M266","v":2.4},{"$f":"AM266-J266","v":2.65},{"$f":"P266-O266","v":0.25},{"$f":"IF(Q266<0,Q266/N266,\"_\")","v":"_"},0.25,null,0.4,2,null,null,null,null,null,null,null,null,null,null,null,null,null,null,0.15,{"$f":"50*0.05","v":2.5},2.65]
["سندوتشات","سيخ شاورما فراخ",0,{"$f":"SUM(AB267:AH267)","v":11.52},null,0,2.6,{"$f":"SUM(U267:Y267)-Z267","v":11.52},0,null,2.6,null,11.52,9.5,109.44,97,-12.439999999999998,-1.3094736842105261,"_",null,11.52,null,null,null,null,null,null,null,null,11.52,null,null,null,null,null,2,8,87,{"$f":"SUM(AJ267:AL267)","v":97}]
["سندوتشات","سيخ شاورما لحم",1.7999999999999989,5.1749999999999998,null,3.1999999999999993,0,3.7749999999999995,0,null,null,null,3.7749999999999995,9.5,35.862499999999997,39,3.1375000000000028,"_",0.33026315789473715,null,1.8,5.1749999999999998,null,null,null,3.2,null,null,null,5.1749999999999998,null,null,null,null,null,null,3,36,39]
["سندوتشات","عيش ريتش * 12",25,24,null,22,0,27,0,null,null,-1,28,1,28,28,0,"_","_",null,25,null,12,null,null,10,null,null,null,24,null,null,null,null,null,1,6,21,28]
[null,"عيش ريتش عرض",0,0,null,0,0,0,null,null,null,null,0,1,0,0,0,"_","_",null,null,null,null,null,null,null,null,null,null,null,null,null,null,null,null,null,null,null,0]
["سندوتشات","عيش سوري *25",29,100,-3,{"$f":"C271+D271-E271-H271","v":61},2,71,1,null,2,null,70,1,70,71,1,"_",1,null,32,null,50,null,null,11,null,null,null,null,null,null,null,100,null,4,8,{"$f":"48+11","v":59},71]
["سندوتشات","عيش فرنساوي صغير  *5",20,50,null,2,0,68,0,null,null,null,68,1,68,69,1,"_",{"$f":"IF(Q272>0,Q272/N272,\"_\")","v":1},null,20,50,null,null,null,2,null,null,null,null,null,null,null,50,null,null,3,{"$f":"25+41","v":66},69]
["سندوتشات","عيش فرنساوي كبير   *4",10,52,null,1,0,61,0,null,null,1,60,1,60,60,0,"_","_",null,10,52,null,null,null,1,null,null,null,null,null,null,null,52,null,3,2,{"$f":"18+26+2+5+1+1+2","v":55},60]
["سندوتشات","حشو سندوتش  - كبده",16,0,null,{"$f":"C274+D274-E274-H274","v":14},0,2,0,null,null,null,2,1,2,2,0,{"$f":"IF(Q274<0,Q274/N274,\"_\")","v":"_"},"_",null,6,null,null,null,null,4,null,null,null,null,null,null,null,null,null,null,null,2,2]
["سندوتشات","حشو سندوتش  - برجر",11,18,null,3,0,26,0,null,null,null,26,1,26,26,0,"_","_",null,11,18,null,null,null,3,null,null,null,18,null,null,null,null,null,1,6,19,26]
["سندوتشات","حشو سندوتش  - كفته",8,0,null,2,0,6,0,null,null,null,6,1,6,6,0,"_","_",null,5,null,3,null,null,2,null,null,null,null,null,null,null,null,null,1,null,5,6]
["سندوتشات","حشو سندوتش  - هوت دوج",8,0,null,7,0,1,0,null,null,null,1,1,1,1,0,"_","_",null,8,null,null,null,null,7,null,null,null,null,null,null,null,null,null,null,null,1,1]
["سندوتشات","حشو سندوتش  - بانيه",0,0,null,0,0,0,null,null,null,null,0,1,0,0,0,"_","_",null,null,null,null,null,null,null,null,null,null,null,null,null,null,null,null,null,null,null,0]
["سندوتشات","حشو سندوتش  - زنجر",11,30,null,11,0,30,0,null,null,null,30,1,30,30,0,"_","_",null,11,10,15,null,null,6,null,null,null,30,null,null,null,null,null,null,2,28,30]
["سندوتشات","حشو سندوتش  - كوردن بلو",0,0,null,0,0,0,null,null,null,null,0,1,0,0,0,"_","_",null,null,null,null,null,null,null,null,null,null,null,null,null,null,null,null,null,null,null,0]
["سندوتشات","حشو سندوتش  - شيش طاووق",5,5,null,9,0,1,0,null,null,null,1,1,1,1,0,"_","_",null,5,null,null,null,null,4,null,null,null,5,null,null,null,null,null,null,null,1,1]
["سندوتشات","حشو سندوتش  - صدور",8,0,null,6,0,2,0,null,null,null,2,1,2,2,0,"_","_",null,5,null,null,null,null,3,null,null,null,null,null,null,null,null,null,null,null,2,2]
["سندوتشات","حشو سندوتش  - صيادكو",3,20,null,3,0,20,0,null,null,null,20,1,20,20,0,"_","_",null,3,10,10,null,null,3,null,null,null,20,null,null,null,null,null,2,null,18,20]
["M","M",null,"M",null,null,null,"M",null,null,null,null,"M","M",{"$f":"SUM(O9:O283)","v":149328.31749999998},{"$f":"SUM(P9:P283)","v":157144.16000000003},{"$f":"SUM(Q9:Q283)","v":7815.8425000000025},{"$f":"SUM(R9:R283)","v":-228.84956813978945},{"$f":"SUM(S9:S283)","v":227.17322662554116}]

{"sheet":"فصل شيفت","index":1,"n_rows":284,"n_cols":38,"rows_kept":284,"cut":false,"hidden":false,"merged":[[6,34,6,37],[0,0,1,0],[1,2,1,9],[6,19,6,24],[6,26,6,32],[6,16,6,17],[1,11,1,12],[3,14,3,15],[4,14,4,15],[2,1,2,2],[3,1,3,2],[4,1,4,2],[3,5,3,6],[4,10,4,12]]}
["الإدارة المالية"]
[null,null,"تحليل  جرد فصل شيفت        شكرى القوتلى             بتاريخ",null,null,null,null,null,null,null,null,{"$f":"'تقرير حركة يومية'!O2+1","v":"2025-11-13"}]
["بيـــــــــــــــــــان","تسجيل الرصيد"]
["رصيد اول المدة","نعم",null,null,null,"إجمالي وزن الكازرولات",null,0,{"$f":"H4+(H4*0.025)","v":0},null,null,null,null,null,"سيخ شاورما فراخ ",null,null,{"$f":"((Q4)-40/100*Q4)","v":0}]
["رصيد اخر المدة ","نعم",null,null,null,null,null,null,null,null,null,null,null,null,"سيخ شاورما لحم ",null,null,{"$f":"((Q5)-25/100*Q5)","v":0}]
[]
["ك",{"$f":"SUM(B9:B283)","v":2078.0500000000002},1919.9850000000004,73.31,2711.8850000000002,15707.164999999999,1212.8400000000001,0,0,0,0,16920.005000000001,28683.767000000003,148641.04999999999,0,-148641.04999999999,"مـــلاحظــــــــــــــــة",null,null,"اجمالى المنصرف للفرع  ( 6 )",null,null,null,null,null,null,"اجمالى وارد السيارات  ( 2 )",null,null,null,null,null,null,null,"شرايط المبيعات"]
["الصنف","رصيد اول المدة المخزن","اجمالى الوارد","تصنيع / تحويلات","صافى رصيد المخزن","رصيد اول المدة الفرع","إجمالي المنصرف للفرع","رصيد اخر المدة","مردودات مبيعات","مرتجعات للمصنع","التسويات تبديل في المبيعات","الفرق","السعر","قيمة المباع 10*11","قيمة داخل شريط الجرد","فرق القيمة 8 - 9","عجز","زيادة",null,"صرف 1","صرف 2","صرف 3","صرف 4","صرف 5","مرتجع من فرع للمخزن",null,"سياره 1 ","سيارة 2","سيارة 3","سيارة 4","سيارة 5","سيارة 6","وارد مشتريات خارجية",null,"عمومي ","كافيتريا","دليفري","إجمالي"]
["قطعه جاتوه كلاسيك",{"$f":"'تقرير حركة يومية'!F9","v":471},{"$f":"SUM(AA9:AG9)","v":504},null,{"$f":"B9+C9-D9-G9","v":525},{"$f":"'تقرير حركة يومية'!I9","v":13},{"$f":"SUM(T9:X9)-Y9","v":450},null,null,null,null,{"$f":"G9+F9-H9-J9-K9","v":463},{"$f":"'تقرير حركة يومية'!N9","v":27},{"$f":"L9*M9","v":12501},{"$f":"AL9-I9","v":0},{"$f":"O9-N9","v":-12501},{"$f":"IF(P9<0,P9/M9,\"_\")","v":-463},{"$f":"IF(P9>0,P9/M9,\"_\")","v":"_"},null,323,41,{"$f":"34+34+18","v":86},null,null,null,null,null,210,294,null,null,null,null,null,null,null,null,{"$f":"AK9+AJ9+AI9","v":0}]
["قطعه جاتوه موس",{"$f":"'تقرير حركة يومية'!F10","v":0},98,null,{"$f":"B10+C10-D10-G10","v":98},{"$f":"'تقرير حركة يومية'!I10","v":6},{"$f":"SUM(T10:X10)-Y10","v":0},null,null,null,null,{"$f":"G10+F10-H10-J10-K10","v":6},{"$f":"'تقرير حركة يومية'!N10","v":39},{"$f":"L10*M10","v":234},0,{"$f":"O10-N10","v":-234},{"$f":"IF(P10<0,P10/M10,\"_\")","v":-6},{"$f":"IF(P10>0,P10/M10,\"_\")","v":"_"},null,null,null,null,null,null,null,null,null,null,98,null,null,null,null,null,null,null,null,{"$f":"AK10+AJ10+AI10","v":0}]
["جاتوة سواريه",{"$f":"'تقرير حركة يومية'!F11","v":0},0,null,0,{"$f":"'تقرير حركة يومية'!I11","v":0},0,null,null,null,null,0,{"$f":"'تقرير حركة يومية'!N11","v":315},0,0,0,{"$f":"IF(P11<0,P11/M11,\"_\")","v":"_"},"_",null,null,null,null,null,null,null,null,null,null,null,null,null,null,null,null,null,null,null,0]
["اكلير / دنش",{"$f":"'تقرير حركة يومية'!F12","v":11},83,null,10,{"$f":"'تقرير حركة يومية'!I12","v":0},84,null,null,null,null,84,{"$f":"'تقرير حركة يومية'!N12","v":27},2268,0,-2268,{"$f":"IF(P12<0,P12/M12,\"_\")","v":-84},"_",null,84,null,null,null,null,null,null,null,73,10,null,null,null,null,null,null,null,null,0]
["ملفاى",{"$f":"'تقرير حركة يومية'!F13","v":0},20,null,0,{"$f":"'تقرير حركة يومية'!I13","v":0},20,null,null,null,null,20,{"$f":"'تقرير حركة يومية'!N13","v":30},600,0,-600,-20,"_",null,20,null,null,null,null,null,null,null,20,null,null,null,null,null,null,null,null,null,0]
["شوهات",{"$f":"'تقرير حركة يومية'!F14","v":0},16,null,16,{"$f":"'تقرير حركة يومية'!I14","v":0},0,null,null,null,null,0,{"$f":"'تقرير حركة يومية'!N14","v":30},0,0,0,"_","_",null,null,null,null,null,null,null,null,null,null,16,null,null,null,null,null,null,null,null,0]
["كب جار بوبس",{"$f":"'تقرير حركة يومية'!F15","v":0},0,null,0,{"$f":"'تقرير حركة يومية'!I15","v":0},0,null,null,null,null,0,{"$f":"'تقرير حركة يومية'!N15","v":40},0,0,0,"_","_",null,null,null,null,null,null,null,null,null,null,null,null,null,null,null,null,null,null,null,0]
["تورته اوستيك موس",{"$f":"'تقرير حركة يومية'!F16","v":0},0,null,0,{"$f":"'تقرير حركة يومية'!I16","v":0},0,null,null,null,null,0,{"$f":"'تقرير حركة يومية'!N16","v":480},0,0,0,"_","_",null,null,null,null,null,null,null,null,null,null,null,null,null,null,null,null,null,null,null,0]
["تورته مينى موس  180",{"$f":"'تقرير حركة يومية'!F17","v":0},0,null,0,{"$f":"'تقرير حركة يومية'!I17","v":0},0,null,null,null,null,0,{"$f":"'تقرير حركة يومية'!N17","v":210},0,0,0,"_","_",null,null,null,null,null,null,null,null,null,null,null,null,null,null,null,null,null,null,null,0]
["تورته مينى شوكلت كيك 300",{"$f":"'تقرير حركة يومية'!F18","v":0},0,null,0,{"$f":"'تقرير حركة يومية'!I18","v":0},0,null,null,null,null,0,{"$f":"'تقرير حركة يومية'!N18","v":320},0,0,0,"_","_",null,null,null,null,null,null,null,null,null,null,null,null,null,null,null,null,null,null,null,0]
["تورته دائري شوكلت كاملة  400",{"$f":"'تقرير حركة يومية'!F19","v":0},1,null,0,{"$f":"'تقرير حركة يومية'!I19","v":0},1,null,null,null,null,1,400,400,0,-400,-1,"_",null,1,null,null,null,null,null,null,1,null,null,null,null,null,null,null,null,null,null,0]
["تورته مربع صغير310",{"$f":"'تقرير حركة يومية'!F20","v":6},8,null,{"$f":"B20+C20-D20-G20","v":11},{"$f":"'تقرير حركة يومية'!I20","v":4},3,null,null,null,null,7,{"$f":"'تقرير حركة يومية'!N20","v":310},2170,0,-2170,-7,"_",null,3,null,null,null,null,null,null,null,6,2,null,null,null,null,null,null,null,null,0]
["تورتة هاف دائرى  / فاكهة كاملة   380   ",{"$f":"'تقرير حركة يومية'!F21","v":6},15,null,{"$f":"B21+C21-D21-G21","v":18},{"$f":"'تقرير حركة يومية'!I21","v":3},3,null,null,null,null,6,{"$f":"'تقرير حركة يومية'!N21","v":380},2280,0,-2280,-6,"_",null,3,null,null,null,null,null,null,1,9,5,null,null,null,null,null,null,null,null,0]
["تورته فور سيزون  440",{"$f":"'تقرير حركة يومية'!F22","v":0},2,null,2,{"$f":"'تقرير حركة يومية'!I22","v":1},0,null,null,null,null,1,{"$f":"'تقرير حركة يومية'!N22","v":440},440,0,-440,-1,"_",null,null,null,null,null,null,null,null,2,null,null,null,null,null,null,null,null,null,null,0]
["تورته مربع كبير 435",{"$f":"'تقرير حركة يومية'!F23","v":2},0,null,1,{"$f":"'تقرير حركة يومية'!I23","v":2},1,null,null,null,null,3,{"$f":"'تقرير حركة يومية'!N23","v":435},1305,0,-1305,-3,"_",null,1,null,null,null,null,null,null,null,null,null,null,null,null,null,null,null,null,null,0]
["تورته هاف كيت كات / روشيه / ويفر  430",{"$f":"'تقرير حركة يومية'!F24","v":1},5,null,{"$f":"B24+C24-D24-G24","v":5},{"$f":"'تقرير حركة يومية'!I24","v":1},1,null,null,null,null,2,{"$f":"'تقرير حركة يومية'!N24","v":430},860,0,-860,-2,"_",null,1,null,null,null,null,null,null,null,3,2,null,null,null,null,null,null,null,null,0]
["تورته قلب كبير   445",{"$f":"'تقرير حركة يومية'!F25","v":2},2,null,2,{"$f":"'تقرير حركة يومية'!I25","v":1},2,null,null,null,null,3,{"$f":"'تقرير حركة يومية'!N25","v":445},{"$f":"L25*M25","v":1335},{"$f":"AL25-I25","v":0},{"$f":"O25-N25","v":-1335},{"$f":"IF(P25<0,P25/M25,\"_\")","v":-3},{"$f":"IF(P25>0,P25/M25,\"_\")","v":"_"},null,2,null,null,null,null,null,null,null,null,2,null,null,null,null,null,null,null,null,0]
["تورته فونتانا   480",{"$f":"'تقرير حركة يومية'!F26","v":0},0,null,0,{"$f":"'تقرير حركة يومية'!I26","v":0},0,null,null,null,null,0,{"$f":"'تقرير حركة يومية'!N26","v":480},0,0,0,"_","_",null,null,null,null,null,null,null,null,null,null,null,null,null,null,null,null,null,null,null,0]
["تورته دويــــــتـــــــو    30*30   (500)",{"$f":"'تقرير حركة يومية'!F27","v":0},1,null,{"$f":"B27+C27-D27-G27","v":1},{"$f":"'تقرير حركة يومية'!I27","v":0},{"$f":"SUM(T27:X27)-Y27","v":0},null,null,null,null,{"$f":"G27+F27-H27-J27-K27","v":0},{"$f":"'تقرير حركة يومية'!N27","v":500},{"$f":"M27*L27","v":0},{"$f":"AL27-I27","v":0},{"$f":"O27-N27","v":0},{"$f":"IF(P27<0,P27/M27,\"_\")","v":"_"},{"$f":"IF(P27>0,P27/M27,\"_\")","v":"_"},null,null,null,null,null,null,null,null,1,null,null,null,null,null,null,null,null,null,null,{"$f":"SUM(AI27:AK27)","v":0}]
["تورتة هاف 20*40  (550)",{"$f":"'تقرير حركة يومية'!F28","v":0},0,null,0,{"$f":"'تقرير حركة يومية'!I28","v":0},0,null,null,null,null,0,{"$f":"'تقرير حركة يومية'!N28","v":600},0,0,0,"_","_",null,null,null,null,null,null,null,null,null,null,null,null,null,null,null,null,null,null,null,0]
["تورته ايس سوسرول 245",{"$f":"'تقرير حركة يومية'!F29","v":0},0,null,0,{"$f":"'تقرير حركة يومية'!I29","v":6},0,null,null,null,null,6,{"$f":"'تقرير حركة يومية'!N29","v":245},1470,0,-1470,-6,"_",null,null,null,null,null,null,null,null,null,null,null,null,null,null,null,null,null,null,null,0]
["تورته ايس كاساتا  315",{"$f":"'تقرير حركة يومية'!F30","v":0},0,null,0,{"$f":"'تقرير حركة يومية'!I30","v":6},0,null,null,null,null,6,{"$f":"'تقرير حركة يومية'!N30","v":315},1890,0,-1890,-6,"_",null,null,null,null,null,null,null,null,null,null,null,null,null,null,null,null,null,null,null,0]
["كب بوبس ( دبل سوفت - ديو )",{"$f":"'تقرير حركة يومية'!F31","v":0},190,null,30,{"$f":"'تقرير حركة يومية'!I31","v":0},{"$f":"SUM(T31:X31)-Y31","v":160},null,null,null,null,160,{"$f":"'تقرير حركة يومية'!N31","v":33},5280,0,-5280,-160,"_",null,160,null,null,null,null,null,null,null,160,{"$f":"5+25","v":30},null,null,null,null,null,null,null,null,0]
["كب مينى ديسباسيتو",{"$f":"'تقرير حركة يومية'!F32","v":0},10,null,0,{"$f":"'تقرير حركة يومية'!I32","v":2},10,null,null,null,null,12,{"$f":"'تقرير حركة يومية'!N32","v":33},396,0,-396,-12,"_",null,10,null,null,null,null,null,null,10,null,null,null,null,null,null,null,null,null,null,0]
["كب شوكلت كيك",{"$f":"'تقرير حركة يومية'!F33","v":0},40,null,40,{"$f":"'تقرير حركة يومية'!I33","v":0},0,null,null,null,null,0,{"$f":"'تقرير حركة يومية'!N33","v":28},0,0,0,"_","_",null,null,null,null,null,null,null,null,null,null,40,null,null,null,null,null,null,null,null,0]
["ترايفل",{"$f":"'تقرير حركة يومية'!F34","v":0},25,null,25,{"$f":"'تقرير حركة يومية'!I34","v":0},0,null,null,null,null,0,{"$f":"'تقرير حركة يومية'!N34","v":15},0,0,0,"_","_",null,null,null,null,null,null,null,null,null,25,null,null,null,null,null,null,null,null,null,0]
["كب اساتوك دبي",{"$f":"'تقرير حركة يومية'!F35","v":0},5,null,5,{"$f":"'تقرير حركة يومية'!I35","v":0},0,null,null,null,null,0,{"$f":"'تقرير حركة يومية'!N35","v":35},0,0,0,"_","_",null,null,null,null,null,null,null,null,null,null,5,null,null,null,null,null,null,null,null,0]
["ديسباسيتو",{"$f":"'تقرير حركة يومية'!F36","v":0},20,null,0,{"$f":"'تقرير حركة يومية'!I36","v":0},20,null,null,null,null,20,{"$f":"'تقرير حركة يومية'!N36","v":80},1600,0,-1600,-20,"_",null,20,null,null,null,null,null,null,20,null,null,null,null,null,null,null,null,null,null,0]
["مولتن كيك",{"$f":"'تقرير حركة يومية'!F37","v":0},5,null,5,{"$f":"'تقرير حركة يومية'!I37","v":6},0,null,null,null,null,6,{"$f":"'تقرير حركة يومية'!N37","v":65},390,0,-390,-6,{"$f":"IF(P37>0,P37/M37,\"_\")","v":"_"},null,null,null,null,null,null,null,null,5,null,null,null,null,null,null,null,null,null,null,0]
["باباز",{"$f":"'تقرير حركة يومية'!F38","v":0},0,null,0,{"$f":"'تقرير حركة يومية'!I38","v":0},0,null,null,null,null,0,{"$f":"'تقرير حركة يومية'!N38","v":30},0,0,0,"_","_",null,null,null,null,null,null,null,null,null,null,null,null,null,null,null,null,null,null,null,0]
["كوكتيل",{"$f":"'تقرير حركة يومية'!F39","v":0},0,null,0,{"$f":"'تقرير حركة يومية'!I39","v":0},0,null,null,null,null,0,{"$f":"'تقرير حركة يومية'!N39","v":25},0,0,0,"_","_",null,null,null,null,null,null,null,null,null,null,null,null,null,null,null,null,null,null,null,0]
["كب قشطوطة صغير",{"$f":"'تقرير حركة يومية'!F40","v":0},26,null,26,{"$f":"'تقرير حركة يومية'!I40","v":0},0,null,null,null,null,0,{"$f":"'تقرير حركة يومية'!N40","v":30},0,0,0,"_","_",null,null,null,null,null,null,null,null,null,null,26,null,null,null,null,null,null,null,null,0]
["كب قشطوطة كاندي /بسبوسه /ليزي كيك ",{"$f":"'تقرير حركة يومية'!F41","v":0},14,null,{"$f":"B41+C41-D41-G41","v":14},{"$f":"'تقرير حركة يومية'!I41","v":2},{"$f":"SUM(T41:X41)-Y41","v":0},null,null,null,null,{"$f":"G41+F41-H41-J41-K41","v":2},{"$f":"'تقرير حركة يومية'!N41","v":35},{"$f":"L41*M41","v":70},{"$f":"AL41-I41","v":0},{"$f":"O41-N41","v":-70},{"$f":"IF(P41<0,P41/M41,\"_\")","v":-2},{"$f":"IF(P41>0,P41/M41,\"_\")","v":"_"},null,null,null,null,null,null,null,null,null,null,14,null,null,null,null,null,null,null,null,0]
["ام علي ساده",{"$f":"'تقرير حركة يومية'!F42","v":0},10,null,0,{"$f":"'تقرير حركة يومية'!I42","v":1},10,null,null,null,null,{"$f":"G42+F42-H42-J42-K42","v":11},{"$f":"'تقرير حركة يومية'!N42","v":25},275,0,-275,-11,"_",null,10,null,null,null,null,null,null,null,10,null,null,null,null,null,null,null,null,null,0]
["ارز بلبن اسبيشيال عفروتو",{"$f":"'تقرير حركة يومية'!F43","v":0},0,null,{"$f":"B43+C43-D43-G43","v":0},{"$f":"'تقرير حركة يومية'!I43","v":6},0,null,null,null,null,6,{"$f":"'تقرير حركة يومية'!N43","v":75},450,0,-450,-6,"_",null,null,null,null,null,null,null,null,null,null,null,null,null,null,null,null,null,null,null,0]
["ارز بلبن اسبشيال مكسرات وقشطة",{"$f":"'تقرير حركة يومية'!F44","v":0},0,null,0,{"$f":"'تقرير حركة يومية'!I44","v":4},0,null,null,null,null,4,{"$f":"'تقرير حركة يومية'!N44","v":55},220,0,-220,-4,"_",null,null,null,null,null,null,null,null,null,null,null,null,null,null,null,null,null,null,null,0]
["ارز بلبن اسبيشيال اوريو",{"$f":"'تقرير حركة يومية'!F45","v":0},0,-8,0,{"$f":"'تقرير حركة يومية'!I45","v":2},8,null,null,null,null,10,{"$f":"'تقرير حركة يومية'!N45","v":55},550,0,-550,-10,"_",null,8,null,null,null,null,null,null,null,null,null,null,null,null,null,null,null,null,null,0]
["ارز بلبن اسبيشيال قراصيا",{"$f":"'تقرير حركة يومية'!F46","v":0},0,null,0,{"$f":"'تقرير حركة يومية'!I46","v":0},0,null,null,null,null,0,{"$f":"'تقرير حركة يومية'!N46","v":60},0,0,0,"_","_",null,null,null,null,null,null,null,null,null,null,null,null,null,null,null,null,null,null,null,0]
["ارز بلبن اسبيشيال لوتس",{"$f":"'تقرير حركة يومية'!F47","v":0},0,-4,0,{"$f":"'تقرير حركة يومية'!I47","v":6},4,null,null,null,null,10,{"$f":"'تقرير حركة يومية'!N47","v":55},550,0,-550,-10,"_",null,4,null,null,null,null,null,null,null,null,null,null,null,null,null,null,null,null,null,0]
["ارز بلبن اسبيشيال نوتيلا",{"$f":"'تقرير حركة يومية'!F48","v":0},0,-8,0,{"$f":"'تقرير حركة يومية'!I48","v":2},8,null,null,null,null,10,{"$f":"'تقرير حركة يومية'!N48","v":55},550,0,-550,-10,"_",null,8,null,null,null,null,null,null,null,null,null,null,null,null,null,null,null,null,null,0]
["ارز بلبن بسابيسو",{"$f":"'تقرير حركة يومية'!F49","v":0},0,null,0,{"$f":"'تقرير حركة يومية'!I49","v":0},0,null,null,null,null,0,{"$f":"'تقرير حركة يومية'!N49","v":65},0,0,0,"_","_",null,null,null,null,null,null,null,null,null,null,null,null,null,null,null,null,null,null,null,0]
["ارز بلبن خدود الست",{"$f":"'تقرير حركة يومية'!F50","v":0},10,null,0,{"$f":"'تقرير حركة يومية'!I50","v":0},10,null,null,null,null,10,{"$f":"'تقرير حركة يومية'!N50","v":60},600,0,-600,-10,"_",null,10,null,null,null,null,null,null,10,null,null,null,null,null,null,null,null,null,null,0]
["ارز بلبن ساده",{"$f":"'تقرير حركة يومية'!F51","v":0},150,30,{"$f":"B51+C51-D51-G51","v":90},{"$f":"'تقرير حركة يومية'!I51","v":5},30,null,null,null,null,35,{"$f":"'تقرير حركة يومية'!N51","v":25},875,0,-875,-35,"_",null,30,null,null,null,null,null,null,150,null,null,null,null,null,null,null,null,null,null,0]
["ارز بلبن مكس الصياد",{"$f":"'تقرير حركة يومية'!F52","v":0},0,-10,0,{"$f":"'تقرير حركة يومية'!I52","v":0},10,null,null,null,null,10,{"$f":"'تقرير حركة يومية'!N52","v":60},600,0,-600,-10,"_",null,10,null,null,null,null,null,null,null,null,null,null,null,null,null,null,null,null,null,0]
["ارز اسبيشيال كنافة مانجو",{"$f":"'تقرير حركة يومية'!F53","v":0},0,null,0,{"$f":"'تقرير حركة يومية'!I53","v":0},0,null,null,null,null,0,{"$f":"'تقرير حركة يومية'!N53","v":50},0,0,0,"_","_",null,null,null,null,null,null,null,null,null,null,null,null,null,null,null,null,null,null,null,0]
["ارز قنبلة فراوله",{"$f":"'تقرير حركة يومية'!F54","v":0},0,null,0,{"$f":"'تقرير حركة يومية'!I54","v":0},0,null,null,null,null,0,{"$f":"'تقرير حركة يومية'!N54","v":65},0,0,0,"_","_",null,null,null,null,null,null,null,null,null,null,null,null,null,null,null,null,null,null,null,0]
["ارز قنبلة موز وكراميل",{"$f":"'تقرير حركة يومية'!F55","v":0},0,null,0,{"$f":"'تقرير حركة يومية'!I55","v":0},0,null,null,null,null,0,{"$f":"'تقرير حركة يومية'!N55","v":60},0,0,0,"_","_",null,null,null,null,null,null,null,null,null,null,null,null,null,null,null,null,null,null,null,0]
["ارز قشطوطة سادة",{"$f":"'تقرير حركة يومية'!F56","v":0},30,30,0,{"$f":"'تقرير حركة يومية'!I56","v":0},0,null,null,null,null,0,{"$f":"'تقرير حركة يومية'!N56","v":1},0,0,0,"_","_",null,null,null,null,null,null,null,null,30,null,null,null,null,null,null,null,null,null,null,0]
["قشطوطة فراولة",{"$f":"'تقرير حركة يومية'!F57","v":0},0,null,0,{"$f":"'تقرير حركة يومية'!I57","v":0},0,null,null,null,null,0,{"$f":"'تقرير حركة يومية'!N57","v":55},0,0,0,"_","_",null,null,null,null,null,null,null,null,null,null,null,null,null,null,null,null,null,null,null,0]
["قشطوطة كراميل",{"$f":"'تقرير حركة يومية'!F58","v":0},0,null,0,{"$f":"'تقرير حركة يومية'!I58","v":0},0,null,null,null,null,0,{"$f":"'تقرير حركة يومية'!N58","v":50},0,0,0,"_","_",null,null,null,null,null,null,null,null,null,null,null,null,null,null,null,null,null,null,null,0]
["قشطوطه لوتس",{"$f":"'تقرير حركة يومية'!F59","v":0},0,-6,0,{"$f":"'تقرير حركة يومية'!I59","v":4},6,null,null,null,null,10,{"$f":"'تقرير حركة يومية'!N59","v":60},600,0,-600,-10,"_",null,6,null,null,null,null,null,null,null,null,null,null,null,null,null,null,null,null,null,0]
["قشطوطه مانجو / فاكهة",{"$f":"'تقرير حركة يومية'!F60","v":0},0,-10,0,{"$f":"'تقرير حركة يومية'!I60","v":3},10,null,null,null,null,13,{"$f":"'تقرير حركة يومية'!N60","v":60},780,0,-780,-13,"_",null,10,null,null,null,null,null,null,null,null,null,null,null,null,null,null,null,null,null,0]
["قشطوطه نوتيلا",{"$f":"'تقرير حركة يومية'!F61","v":0},0,-14,0,{"$f":"'تقرير حركة يومية'!I61","v":10},14,null,null,null,null,24,{"$f":"'تقرير حركة يومية'!N61","v":60},1440,0,-1440,-24,"_",null,14,null,null,null,null,null,null,null,null,null,null,null,null,null,null,null,null,null,0]
["قشطوطة دندو",{"$f":"'تقرير حركة يومية'!F62","v":0},0,null,0,{"$f":"'تقرير حركة يومية'!I62","v":0},0,null,null,null,null,0,{"$f":"'تقرير حركة يومية'!N62","v":60},0,0,0,"_","_",null,null,null,null,null,null,null,null,null,null,null,null,null,null,null,null,null,null,null,0]
["قشطوطة كراميل صواني",{"$f":"'تقرير حركة يومية'!F63","v":0},0,null,0,{"$f":"'تقرير حركة يومية'!I63","v":0},0,null,null,null,null,0,{"$f":"'تقرير حركة يومية'!N63","v":1},0,0,0,"_","_",null,null,null,null,null,null,null,null,null,null,null,null,null,null,null,null,null,null,null,0]
["قشطوطة كريمة صواني",{"$f":"'تقرير حركة يومية'!F64","v":0},30,30,{"$f":"B64+C64-D64-G64","v":0},{"$f":"'تقرير حركة يومية'!I64","v":0},0,null,null,null,null,0,{"$f":"'تقرير حركة يومية'!N64","v":1},0,0,0,"_","_",null,null,null,null,null,null,null,null,null,30,null,null,null,null,null,null,null,null,null,0]
["ايس كريم كافيتريا - خام عادي ",{"$f":"'تقرير حركة يومية'!F65","v":0},0,null,0,{"$f":"'تقرير حركة يومية'!I65","v":0},0,null,null,null,null,0,{"$f":"'تقرير حركة يومية'!N65","v":220},0,0,0,"_","_",null,null,null,null,null,null,null,null,null,null,null,null,null,null,null,null,null,null,null,0]
["ايس كريم كافيتريا - خام اسبيشيال ",{"$f":"'تقرير حركة يومية'!F66","v":0},0,null,0,{"$f":"'تقرير حركة يومية'!I66","v":0},0,null,null,null,null,0,{"$f":"'تقرير حركة يومية'!N66","v":280},0,0,0,"_","_",null,null,null,null,null,null,null,null,null,null,null,null,null,null,null,null,null,null,null,0]
["ايس كريم - خام عادي 180",{"$f":"'تقرير حركة يومية'!F67","v":0},58.325000000000003,null,{"$f":"B67+C67-D67-G67","v":0},{"$f":"'تقرير حركة يومية'!I67","v":175.75},58.325000000000003,null,null,null,null,234.07499999999999,{"$f":"'تقرير حركة يومية'!N67","v":205},47985.375,0,-47985.375,{"$f":"IF(P67<0,P67/M67,\"_\")","v":-234.07499999999999},"_",null,58.325000000000003,null,null,null,null,null,null,null,{"$f":"26.7-3+21.8+18.35-3.175-2.35","v":58.325000000000003},null,null,null,null,null,null,null,null,null,0]
["ايس كريم - خام اسبيشيال 250",{"$f":"'تقرير حركة يومية'!F68","v":0},3.8250000000000002,null,0,{"$f":"'تقرير حركة يومية'!I68","v":7.5},3.8250000000000002,null,null,null,null,11.324999999999999,{"$f":"'تقرير حركة يومية'!N68","v":308},3488.1,0,-3488.1,-11.324999999999999,"_",null,3.8250000000000002,null,null,null,null,null,null,null,{"$f":"4.825-1","v":3.8250000000000002},null,null,null,null,null,null,null,null,null,0]
["كزرولة لبن ص 5.800",{"$f":"'تقرير حركة يومية'!F69","v":0},0,null,0,{"$f":"'تقرير حركة يومية'!I69","v":0},0,null,null,null,null,0,{"$f":"'تقرير حركة يومية'!N69","v":1},0,0,0,"_","_",null,null,null,null,null,null,null,null,null,null,null,null,null,null,null,null,null,null,null,0]
["كزرولة لبن ك 3.600",{"$f":"'تقرير حركة يومية'!F70","v":0},0,null,0,{"$f":"'تقرير حركة يومية'!I70","v":0},0,null,null,null,null,0,{"$f":"'تقرير حركة يومية'!N70","v":1},0,0,0,"_","_",null,null,null,null,null,null,null,null,null,null,null,null,null,null,null,null,null,null,null,0]
["كزرولة لبن ك 6.300",{"$f":"'تقرير حركة يومية'!F71","v":0},0,null,0,{"$f":"'تقرير حركة يومية'!I71","v":0},0,null,null,null,null,0,{"$f":"'تقرير حركة يومية'!N71","v":1},0,0,0,"_","_",null,null,null,null,null,null,null,null,null,null,null,null,null,null,null,null,null,null,null,0]
["كزرولة لبن ك 6.600",{"$f":"'تقرير حركة يومية'!F72","v":0},81.75,null,0,{"$f":"'تقرير حركة يومية'!I72","v":0},81.75,null,null,null,null,81.75,{"$f":"'تقرير حركة يومية'!N72","v":1},81.75,0,-81.75,-81.75,"_",null,81.75,null,null,null,null,null,null,{"$f":"45.95-6.6","v":39.35},{"$f":"49-6.6","v":42.4},null,null,null,null,null,null,null,null,null,0]
["مكسرات أيس",{"$f":"'تقرير حركة يومية'!F73","v":85},{"$f":"SUM(AA73:AG73)","v":50},13,122,{"$f":"'تقرير حركة يومية'!I73","v":0},0,null,null,null,null,0,{"$f":"'تقرير حركة يومية'!N73","v":1},0,0,0,"_","_",null,null,null,null,null,null,null,null,null,50,null,null,null,null,null,null,null,null,null,0]
["بسكوت اوريو مطحون فطير",{"$f":"'تقرير حركة يومية'!F74","v":0},0,null,0,{"$f":"'تقرير حركة يومية'!I74","v":0.2},0,null,null,null,null,0.2,{"$f":"'تقرير حركة يومية'!N74","v":1},0.2,{"$f":"AL74-I74","v":0},-0.2,-0.2,"_",null,null,null,null,null,null,null,null,null,null,null,null,null,null,null,null,null,null,null,{"$f":"AK74+AJ74+AI74","v":0}]
["بسكوت لوتس مطحون فطير",{"$f":"'تقرير حركة يومية'!F75","v":0},0,null,{"$f":"B75+C75-D75-G75","v":0},{"$f":"'تقرير حركة يومية'!I75","v":0},{"$f":"SUM(T75:X75)-Y75","v":0},null,null,null,null,{"$f":"G75+F75-H75-J75-K75","v":0},{"$f":"'تقرير حركة يومية'!N75","v":1},{"$f":"L75*M75","v":0},0,{"$f":"O75-N75","v":0},{"$f":"IF(P75<0,P75/M75,\"_\")","v":"_"},{"$f":"IF(P75>0,P75/M75,\"_\")","v":"_"},null,null,null,null,null,null,null,null,null,null,null,null,null,null,null,null,null,null,null,0]
["صوص شوكلت وايت فطير",{"$f":"'تقرير حركة يومية'!F76","v":0},0,null,0,{"$f":"'تقرير حركة يومية'!I76","v":2.4},0,null,null,null,null,2.4,{"$f":"'تقرير حركة يومية'!N76","v":1},2.4,0,-2.4,-2.4,"_",null,null,null,null,null,null,null,null,null,null,null,null,null,null,null,null,null,null,null,0]
["صوص نوتيلا فطير",{"$f":"'تقرير حركة يومية'!F77","v":0},0,null,0,{"$f":"'تقرير حركة يومية'!I77","v":2.2999999999999998},0,null,null,null,null,2.2999999999999998,{"$f":"'تقرير حركة يومية'!N77","v":1},2.2999999999999998,0,-2.2999999999999998,-2.2999999999999998,"_",null,null,null,null,null,null,null,null,null,null,null,null,null,null,null,null,null,null,null,0]
["صوص لوتس فطير",{"$f":"'تقرير حركة يومية'!F78","v":0},0,null,0,{"$f":"'تقرير حركة يومية'!I78","v":2},0,null,null,null,null,2,{"$f":"'تقرير حركة يومية'!N78","v":1},2,0,-2,-2,"_",null,null,null,null,null,null,null,null,null,null,null,null,null,null,null,null,null,null,null,0]
["علب مكسرات فطير",{"$f":"'تقرير حركة يومية'!F79","v":0},0,null,0,{"$f":"'تقرير حركة يومية'!I79","v":4},0,null,null,null,null,4,{"$f":"'تقرير حركة يومية'!N79","v":25},100,0,-100,-4,"_",null,null,null,null,null,null,null,null,null,null,null,null,null,null,null,null,null,null,null,0]
["علب مكسرات ارز فرع",{"$f":"'تقرير حركة يومية'!F80","v":87},45,30,{"$f":"B80+C80-D80-G80","v":102},{"$f":"'تقرير حركة يومية'!I80","v":0},0,null,null,null,null,0,{"$f":"'تقرير حركة يومية'!N80","v":25},0,0,0,"_","_",null,null,null,null,null,null,null,null,null,45,null,null,null,null,null,null,null,null,null,0]
["علب مكسرات  بليلة",{"$f":"'تقرير حركة يومية'!F81","v":0},0,null,0,{"$f":"'تقرير حركة يومية'!I81","v":0},0,null,null,null,null,0,{"$f":"'تقرير حركة يومية'!N81","v":1},0,0,0,"_","_",null,null,null,null,null,null,null,null,null,null,null,null,null,null,null,null,null,null,null,0]
["كيس مكسرات بليلة",{"$f":"'تقرير حركة يومية'!F82","v":0},0,null,0,{"$f":"'تقرير حركة يومية'!I82","v":0},0,null,null,null,null,0,{"$f":"'تقرير حركة يومية'!N82","v":1},0,0,0,"_","_",null,null,null,null,null,null,null,null,null,null,null,null,null,null,null,null,null,null,null,0]
["مشبك دمياطي",{"$f":"'تقرير حركة يومية'!F83","v":0},0,null,0,{"$f":"'تقرير حركة يومية'!I83","v":11},0,null,null,null,null,11,{"$f":"'تقرير حركة يومية'!N83","v":60},660,0,-660,-11,"_",null,null,null,null,null,null,null,null,null,null,null,null,null,null,null,null,null,null,null,0]
["ساليزونات مشكله",{"$f":"'تقرير حركة يومية'!F84","v":0},0,null,0,{"$f":"'تقرير حركة يومية'!I84","v":1.165},0,null,null,null,null,1.165,{"$f":"'تقرير حركة يومية'!N84","v":190},221.35,0,-221.35,-1.165,"_",null,null,null,null,null,null,null,null,null,null,null,null,null,null,null,null,null,null,null,0]
["اسبيشيال لوكس 1/2 كيلو",{"$f":"'تقرير حركة يومية'!F85","v":0},0,null,0,{"$f":"'تقرير حركة يومية'!I85","v":0},0,null,null,null,null,0,{"$f":"'تقرير حركة يومية'!N85","v":137.5},0,0,0,"_","_",null,null,null,null,null,null,null,null,null,null,null,null,null,null,null,null,null,null,null,0]
["اسبيشيال لوكس",{"$f":"'تقرير حركة يومية'!F86","v":0},6.66,null,6.66,{"$f":"'تقرير حركة يومية'!I86","v":5.88},0,null,null,null,null,5.88,{"$f":"'تقرير حركة يومية'!N86","v":290},1705.2,0,-1705.2,-5.88,"_",null,null,null,null,null,null,null,null,null,null,6.66,null,null,null,null,null,null,null,null,0]
["مشكل شعبيات",{"$f":"'تقرير حركة يومية'!F87","v":0},0,null,0,{"$f":"'تقرير حركة يومية'!I87","v":0},0,null,null,null,null,0,{"$f":"'تقرير حركة يومية'!N87","v":150},0,0,0,"_","_",null,null,null,null,null,null,null,null,null,null,null,null,null,null,null,null,null,null,null,0]
["كنافه كريمه",{"$f":"'تقرير حركة يومية'!F88","v":0},0,null,0,{"$f":"'تقرير حركة يومية'!I88","v":0},0,null,null,null,null,0,{"$f":"'تقرير حركة يومية'!N88","v":135},0,0,0,"_","_",null,null,null,null,null,null,null,null,null,null,null,null,null,null,null,null,null,null,null,0]
["كنافه مكسرات",{"$f":"'تقرير حركة يومية'!F89","v":0},0,null,0,{"$f":"'تقرير حركة يومية'!I89","v":0.67},0,null,null,null,null,0.67,{"$f":"'تقرير حركة يومية'!N89","v":185},123.95,0,-123.95,-0.67,"_",null,null,null,null,null,null,null,null,null,null,null,null,null,null,null,null,null,null,null,0]
["لينزا",{"$f":"'تقرير حركة يومية'!F90","v":0},0,null,0,{"$f":"'تقرير حركة يومية'!I90","v":1.85},0,null,null,null,null,1.85,{"$f":"'تقرير حركة يومية'!N90","v":175},323.75,0,-323.75,-1.85,"_",null,null,null,null,null,null,null,null,null,null,null,null,null,null,null,null,null,null,null,0]
["مكرونه",{"$f":"'تقرير حركة يومية'!F91","v":0},0,null,0,{"$f":"'تقرير حركة يومية'!I91","v":0},0,null,null,null,null,0,{"$f":"'تقرير حركة يومية'!N91","v":130},0,0,0,"_","_",null,null,null,null,null,null,null,null,null,null,null,null,null,null,null,null,null,null,null,0]
["بسبوسه ساده",{"$f":"'تقرير حركة يومية'!F92","v":0},10.830000000000002,0.31,0,{"$f":"'تقرير حركة يومية'!I92","v":0},10.52,null,null,null,null,10.52,{"$f":"'تقرير حركة يومية'!N92","v":150},1578,0,-1578,-10.52,"_",null,10.52,null,null,null,null,null,null,null,{"$f":"2.13+2.2+2.15+2.15+2.2","v":10.830000000000002},null,null,null,null,null,null,null,null,null,0]
["رواني سادة بالعسل",{"$f":"'تقرير حركة يومية'!F93","v":0},0,null,0,{"$f":"'تقرير حركة يومية'!I93","v":0},0,null,null,null,null,0,{"$f":"'تقرير حركة يومية'!N93","v":180},{"$f":"L93*M93","v":0},0,{"$f":"O93-N93","v":0},{"$f":"IF(P93<0,P93/M93,\"_\")","v":"_"},{"$f":"IF(P93>0,P93/M93,\"_\")","v":"_"},null,null,null,null,null,null,null,null,null,null,null,null,null,null,null,null,null,null,null,0]
["هريسه حشو مكسرات",{"$f":"'تقرير حركة يومية'!F94","v":0},0,null,0,{"$f":"'تقرير حركة يومية'!I94","v":0.68},0,null,null,null,null,0.68,{"$f":"'تقرير حركة يومية'!N94","v":150},{"$f":"L94*M94","v":102.00000000000001},0,{"$f":"O94-N94","v":-102.00000000000001},{"$f":"IF(P94<0,P94/M94,\"_\")","v":-0.68},{"$f":"IF(P94>0,P94/M94,\"_\")","v":"_"},null,null,null,null,null,null,null,null,null,null,null,null,null,null,null,null,null,null,null,0]
["بسبوسه مكسرات",{"$f":"'تقرير حركة يومية'!F95","v":0},16.05,null,0,{"$f":"'تقرير حركة يومية'!I95","v":0},16.05,null,null,null,null,16.05,{"$f":"'تقرير حركة يومية'!N95","v":185},{"$f":"L95*M95","v":2969.25},0,{"$f":"O95-N95","v":-2969.25},{"$f":"IF(P95<0,P95/M95,\"_\")","v":-16.05},{"$f":"IF(P95>0,P95/M95,\"_\")","v":"_"},null,16.05,null,null,null,null,null,null,null,{"$f":"2.3+2.3+2.28+2.3+2.27+2.3+2.3","v":16.05},null,null,null,null,null,null,null,null,null,0]
["بسبوسه فستق",{"$f":"'تقرير حركة يومية'!F96","v":0},0,null,0,{"$f":"'تقرير حركة يومية'!I96","v":0},0,null,null,null,null,0,{"$f":"'تقرير حركة يومية'!N96","v":280},0,0,0,"_","_",null,null,null,null,null,null,null,null,null,null,null,null,null,null,null,null,null,null,null,0]
["قشطات / بقلاوة كريمة",{"$f":"'تقرير حركة يومية'!F97","v":3.4499999999999957},46.024999999999991,null,30.544999999999987,{"$f":"'تقرير حركة يومية'!I97","v":3.6750000000000003},18.93,null,null,null,null,22.605,{"$f":"'تقرير حركة يومية'!N97","v":230},5199.1500000000005,0,-5199.1500000000005,-22.605000000000004,"_",null,18.93,null,null,null,null,null,null,null,15.48,{"$f":"0.815+1.4+2.38+1.8+2.3+2+2+1.7+2.38+1.45+1.5+2.76+2.38+1.36+1.9+2.42","v":30.544999999999995},null,null,null,null,null,null,null,null,0]
["بلح شام قشطه /فواكهه",{"$f":"'تقرير حركة يومية'!F98","v":0},0,null,0,{"$f":"'تقرير حركة يومية'!I98","v":0},0,null,null,null,null,0,{"$f":"'تقرير حركة يومية'!N98","v":230},{"$f":"L98*M98","v":0},0,{"$f":"O98-N98","v":0},{"$f":"IF(P98<0,P98/M98,\"_\")","v":"_"},{"$f":"IF(P98>0,P98/M98,\"_\")","v":"_"},null,null,null,null,null,null,null,null,null,null,null,null,null,null,null,null,null,null,null,0]
["قطايف قشطة",{"$f":"'تقرير حركة يومية'!F99","v":0},0,null,0,{"$f":"'تقرير حركة يومية'!I99","v":0},0,null,null,null,null,0,{"$f":"'تقرير حركة يومية'!N99","v":210},{"$f":"L99*M99","v":0},0,{"$f":"O99-N99","v":0},{"$f":"IF(P99<0,P99/M99,\"_\")","v":"_"},{"$f":"IF(P99>0,P99/M99,\"_\")","v":"_"},null,null,null,null,null,null,null,null,null,null,null,null,null,null,null,null,null,null,null,0]
["بقلاوة مكسرات",{"$f":"'تقرير حركة يومية'!F100","v":0},4.13,null,1.38,{"$f":"'تقرير حركة يومية'!I100","v":1.1850000000000001},2.75,null,null,null,null,3.9350000000000001,{"$f":"'تقرير حركة يومية'!N100","v":325},1278.875,0,-1278.875,-3.9350000000000001,"_",null,2.75,null,null,null,null,null,null,null,{"$f":"1.6+1.15","v":2.75},1.38,null,null,null,null,null,null,null,null,0]
["كنافة اساور تاج",{"$f":"'تقرير حركة يومية'!F101","v":0},0,null,0,{"$f":"'تقرير حركة يومية'!I101","v":0},0,null,null,null,null,0,{"$f":"'تقرير حركة يومية'!N101","v":370},0,0,0,"_","_",null,null,null,null,null,null,null,null,null,null,null,null,null,null,null,null,null,null,null,0]
["كنافه سيخ بندق",{"$f":"'تقرير حركة يومية'!F102","v":0},0,null,0,{"$f":"'تقرير حركة يومية'!I102","v":0},0,null,null,null,null,0,{"$f":"'تقرير حركة يومية'!N102","v":510},0,0,0,"_","_",null,null,null,null,null,null,null,null,null,null,null,null,null,null,null,null,null,null,null,0]
["كنافه سيخ ساده",{"$f":"'تقرير حركة يومية'!F103","v":0},0.69,null,0,{"$f":"'تقرير حركة يومية'!I103","v":1.17},0.69,null,null,null,null,1.8599999999999999,{"$f":"'تقرير حركة يومية'!N103","v":200},372,0,-372,-1.86,"_",null,0.69,null,null,null,null,null,null,null,0.69,null,null,null,null,null,null,null,null,null,0]
["كنافه عجوه",{"$f":"'تقرير حركة يومية'!F104","v":0},0,null,0,{"$f":"'تقرير حركة يومية'!I104","v":0},0,null,null,null,null,0,{"$f":"'تقرير حركة يومية'!N104","v":230},0,0,0,"_","_",null,null,null,null,null,null,null,null,null,null,null,null,null,null,null,null,null,null,null,0]
["كنافه بورمه فستق",{"$f":"'تقرير حركة يومية'!F105","v":0},0,null,0,{"$f":"'تقرير حركة يومية'!I105","v":0},0,null,null,null,null,0,{"$f":"'تقرير حركة يومية'!N105","v":650},0,0,0,"_","_",null,null,null,null,null,null,null,null,null,null,null,null,null,null,null,null,null,null,null,0]
["كنافه بورمه بندق",{"$f":"'تقرير حركة يومية'!F106","v":0},0,null,0,{"$f":"'تقرير حركة يومية'!I106","v":0},0,null,null,null,null,0,{"$f":"'تقرير حركة يومية'!N106","v":500},0,0,0,"_","_",null,null,null,null,null,null,null,null,null,null,null,null,null,null,null,null,null,null,null,0]
["كنافه دمياطي",{"$f":"'تقرير حركة يومية'!F107","v":0},0,null,0,{"$f":"'تقرير حركة يومية'!I107","v":0},0,null,null,null,null,0,{"$f":"'تقرير حركة يومية'!N107","v":420},0,0,0,"_","_",null,null,null,null,null,null,null,null,null,null,null,null,null,null,null,null,null,null,null,0]
["رموش / هريسه",{"$f":"'تقرير حركة يومية'!F108","v":0},1.7,null,1.7,{"$f":"'تقرير حركة يومية'!I108","v":2.5},0,null,null,null,null,2.5,{"$f":"'تقرير حركة يومية'!N108","v":200},500,0,-500,-2.5,"_",null,null,null,null,null,null,null,null,null,null,1.7,null,null,null,null,null,null,null,null,0]
["كـنـافـة تـمـر سـعـودي",{"$f":"'تقرير حركة يومية'!F109","v":0},0,null,0,{"$f":"'تقرير حركة يومية'!I109","v":0},0,null,null,null,null,0,{"$f":"'تقرير حركة يومية'!N109","v":170},0,0,0,"_","_",null,null,null,null,null,null,null,null,null,null,null,null,null,null,null,null,null,null,null,0]
["رطب شو",{"$f":"'تقرير حركة يومية'!F110","v":0},0,null,0,{"$f":"'تقرير حركة يومية'!I110","v":3},0,null,null,null,null,3,{"$f":"'تقرير حركة يومية'!N110","v":70},210,0,-210,-3,"_",null,null,null,null,null,null,null,null,null,null,null,null,null,null,null,null,null,null,null,0]
["فورمه بسبوسه ساده",{"$f":"'تقرير حركة يومية'!F111","v":0},2,null,2,{"$f":"'تقرير حركة يومية'!I111","v":0},0,null,null,null,null,0,{"$f":"'تقرير حركة يومية'!N111","v":130},0,0,0,"_","_",null,null,null,null,null,null,null,null,null,null,2,null,null,null,null,null,null,null,null,0]
["فورمه بسبوسه مكسرات",{"$f":"'تقرير حركة يومية'!F112","v":0},2,null,2,{"$f":"'تقرير حركة يومية'!I112","v":0},0,null,null,null,null,0,{"$f":"'تقرير حركة يومية'!N112","v":155},0,0,0,"_","_",null,null,null,null,null,null,null,null,null,null,2,null,null,null,null,null,null,null,null,0]
["فورمة كنافة كريمة",{"$f":"'تقرير حركة يومية'!F113","v":0},2,null,0,{"$f":"'تقرير حركة يومية'!I113","v":0},2,null,null,null,null,2,{"$f":"'تقرير حركة يومية'!N113","v":135},270,0,-270,-2,"_",null,2,null,null,null,null,null,null,null,2,null,null,null,null,null,null,null,null,null,0]
["فورمه كنافه مكسرات",{"$f":"'تقرير حركة يومية'!F114","v":0},2,null,0,{"$f":"'تقرير حركة يومية'!I114","v":0},2,null,null,null,null,2,{"$f":"'تقرير حركة يومية'!N114","v":185},370,0,-370,-2,"_",null,2,null,null,null,null,null,null,null,2,null,null,null,null,null,null,null,null,null,0]
["مشكل مقليات",{"$f":"'تقرير حركة يومية'!F115","v":0},0,null,0,{"$f":"'تقرير حركة يومية'!I115","v":0},0,null,null,null,null,0,{"$f":"'تقرير حركة يومية'!N115","v":170},0,0,0,"_","_",null,null,null,null,null,null,null,null,null,null,null,null,null,null,null,null,null,null,null,0]
["صوابع زينب / زلابيا",{"$f":"'تقرير حركة يومية'!F116","v":0},0,null,0,{"$f":"'تقرير حركة يومية'!I116","v":0},0,null,null,null,null,0,{"$f":"'تقرير حركة يومية'!N116","v":170},{"$f":"L116*M116","v":0},0,{"$f":"O116-N116","v":0},{"$f":"IF(P116<0,P116/M116,\"_\")","v":"_"},{"$f":"IF(P116>0,P116/M116,\"_\")","v":"_"},null,null,null,null,null,null,null,null,null,null,null,null,null,null,null,null,null,null,null,0]
["بلح شام ساده",{"$f":"'تقرير حركة يومية'!F117","v":0},0,null,0,{"$f":"'تقرير حركة يومية'!I117","v":0},0,null,null,null,null,0,{"$f":"'تقرير حركة يومية'!N117","v":170},0,0,0,"_","_",null,null,null,null,null,null,null,null,null,null,null,null,null,null,null,null,null,null,null,0]
["أصابع السلطان",{"$f":"'تقرير حركة يومية'!F118","v":0},0,null,0,{"$f":"'تقرير حركة يومية'!I118","v":0},0,null,null,null,null,0,{"$f":"'تقرير حركة يومية'!N118","v":170},{"$f":"L118*M118","v":0},0,{"$f":"O118-N118","v":0},{"$f":"IF(P118<0,P118/M118,\"_\")","v":"_"},{"$f":"IF(P118>0,P118/M118,\"_\")","v":"_"},null,null,null,null,null,null,null,null,null,null,null,null,null,null,null,null,null,null,null,0]
["قطايف مكسرات",{"$f":"'تقرير حركة يومية'!F119","v":0},0,null,0,{"$f":"'تقرير حركة يومية'!I119","v":0},0,null,null,null,null,0,{"$f":"'تقرير حركة يومية'!N119","v":170},0,0,0,"_",{"$f":"IF(P119>0,P119/M119,\"_\")","v":"_"},null,null,null,null,null,null,null,null,null,null,null,null,null,null,null,null,null,null,null,0]
["بغاشا",{"$f":"'تقرير حركة يومية'!F120","v":0},0,null,0,{"$f":"'تقرير حركة يومية'!I120","v":0},0,null,null,null,null,0,{"$f":"'تقرير حركة يومية'!N120","v":200},0,0,0,"_",{"$f":"IF(P120>0,P120/M120,\"_\")","v":"_"},null,null,null,null,null,null,null,null,null,null,null,null,null,null,null,null,null,null,null,0]
["خبز دايت",{"$f":"'تقرير حركة يومية'!F121","v":0},0,null,0,{"$f":"'تقرير حركة يومية'!I121","v":0},0,null,null,null,null,0,{"$f":"'تقرير حركة يومية'!N121","v":40},0,0,0,"_",{"$f":"IF(P121>0,P121/M121,\"_\")","v":"_"},null,null,null,null,null,null,null,null,null,null,null,null,null,null,null,null,null,null,null,0]
["ميني بان 1/2 كيلو ",{"$f":"'تقرير حركة يومية'!F122","v":0},5,null,5,{"$f":"'تقرير حركة يومية'!I122","v":0},0,null,null,null,null,0,{"$f":"'تقرير حركة يومية'!N122","v":98},0,0,0,"_",{"$f":"IF(P122>0,P122/M122,\"_\")","v":"_"},null,null,null,null,null,null,null,null,null,null,5,null,null,null,null,null,null,null,null,0]
["ميني بان",{"$f":"'تقرير حركة يومية'!F123","v":0},0,null,0,{"$f":"'تقرير حركة يومية'!I123","v":0},0,null,null,null,null,0,{"$f":"'تقرير حركة يومية'!N123","v":195},0,0,0,"_","_",null,null,null,null,null,null,null,null,null,null,null,null,null,null,null,null,null,null,null,0]
["ميني بيتزا",{"$f":"'تقرير حركة يومية'!F124","v":0},5,null,5,{"$f":"'تقرير حركة يومية'!I124","v":1},0,null,null,null,null,1,{"$f":"'تقرير حركة يومية'!N124","v":27},27,0,-27,-1,"_",null,null,null,null,null,null,null,null,null,null,5,null,null,null,null,null,null,null,null,0]
["مينى ديب",{"$f":"'تقرير حركة يومية'!F125","v":0},3,null,3,{"$f":"'تقرير حركة يومية'!I125","v":0},0,null,null,null,null,0,{"$f":"'تقرير حركة يومية'!N125","v":85},0,0,0,"_","_",null,null,null,null,null,null,null,null,null,null,3,null,null,null,null,null,null,null,null,0]
["حوادق (كرواسون كيري)",{"$f":"'تقرير حركة يومية'!F126","v":0},0,null,0,{"$f":"'تقرير حركة يومية'!I126","v":2},0,null,null,null,null,2,{"$f":"'تقرير حركة يومية'!N126","v":27},54,0,-54,-2,"_",null,null,null,null,null,null,null,null,null,null,null,null,null,null,null,null,null,null,null,0]
["كيك شاى 1/2 ك",{"$f":"'تقرير حركة يومية'!F127","v":0},0,null,0,{"$f":"'تقرير حركة يومية'!I127","v":0},0,null,null,null,null,0,{"$f":"'تقرير حركة يومية'!N127","v":60},0,0,0,"_","_",null,null,null,null,null,null,null,null,null,null,null,null,null,null,null,null,null,null,null,0]
["قالب كيك",{"$f":"'تقرير حركة يومية'!F128","v":0},0,null,0,{"$f":"'تقرير حركة يومية'!I128","v":3},0,null,null,null,null,3,{"$f":"'تقرير حركة يومية'!N128","v":50},150,0,-150,-3,"_",null,null,null,null,null,null,null,null,null,null,null,null,null,null,null,null,null,null,null,0]
["قراقيش ساده /رايب",{"$f":"'تقرير حركة يومية'!F129","v":0},15,null,0,{"$f":"'تقرير حركة يومية'!I129","v":2},15,null,null,null,null,17,{"$f":"'تقرير حركة يومية'!N129","v":95},1615,0,-1615,-17,"_",null,15,null,null,null,null,null,null,10,5,null,null,null,null,null,null,null,null,null,0]
["قراقيش عجوه",{"$f":"'تقرير حركة يومية'!F130","v":0},0,null,0,{"$f":"'تقرير حركة يومية'!I130","v":7},0,null,null,null,null,7,{"$f":"'تقرير حركة يومية'!N130","v":110},770,0,-770,-7,"_",null,null,null,null,null,null,null,null,null,null,null,null,null,null,null,null,null,null,null,0]
["معمول عجوة",{"$f":"'تقرير حركة يومية'!F131","v":0},0,null,0,{"$f":"'تقرير حركة يومية'!I131","v":0},0,null,null,null,null,0,{"$f":"'تقرير حركة يومية'!N131","v":110},0,0,0,"_","_",null,null,null,null,null,null,null,null,null,null,null,null,null,null,null,null,null,null,null,0]
["بسكوتات",{"$f":"'تقرير حركة يومية'!F132","v":0},0,null,0,{"$f":"'تقرير حركة يومية'!I132","v":22},0,null,null,null,null,22,{"$f":"'تقرير حركة يومية'!N132","v":120},2640,0,-2640,-22,"_",null,null,null,null,null,null,null,null,null,null,null,null,null,null,null,null,null,null,null,0]
["بسكوت كوكيز/شوكلت/زبيب/ بالمية",{"$f":"'تقرير حركة يومية'!F133","v":0},10,null,0,{"$f":"'تقرير حركة يومية'!I133","v":16},10,null,null,null,null,26,{"$f":"'تقرير حركة يومية'!N133","v":150},3900,0,-3900,-26,"_",null,10,null,null,null,null,null,null,10,null,null,null,null,null,null,null,null,null,null,0]
["كب كوكيز",{"$f":"'تقرير حركة يومية'!F134","v":0},0,null,{"$f":"B134+C134-D134-G134","v":0},{"$f":"'تقرير حركة يومية'!I134","v":1},{"$f":"SUM(T134:X134)-Y134","v":0},null,null,null,null,1,35,35,{"$f":"AL134-I134","v":0},-35,-1,{"$f":"IF(P134>0,P134/M134,\"_\")","v":"_"}]
["سابيله / غريبه / بيتى فور",{"$f":"'تقرير حركة يومية'!F135","v":0},0,null,{"$f":"B135+C135-D135-G135","v":0},{"$f":"'تقرير حركة يومية'!I135","v":29},{"$f":"SUM(T135:X135)-Y135","v":0},null,null,null,null,29,{"$f":"'تقرير حركة يومية'!N135","v":150},4350,{"$f":"AL135-I135","v":0},-4350,-29,{"$f":"IF(P135>0,P135/M135,\"_\")","v":"_"},null,null,null,null,null,null,null,null,null,null,null,null,null,null,null,null,null,null,null,0]
["كريسينا",{"$f":"'تقرير حركة يومية'!F136","v":0},0,null,{"$f":"B136+C136-D136-G136","v":0},{"$f":"'تقرير حركة يومية'!I136","v":0},{"$f":"SUM(T136:X136)-Y136","v":0},null,null,null,null,0,{"$f":"'تقرير حركة يومية'!N136","v":60},{"$f":"L136*M136","v":0},{"$f":"AL136-I136","v":0},{"$f":"O136-N136","v":0},{"$f":"IF(P136<0,P136/M136,\"_\")","v":"_"},{"$f":"IF(P136>0,P136/M136,\"_\")","v":"_"},null,null,null,null,null,null,null,null,null,null,null,null,null,null,null,null,null,null,null,0]
["باتون ساليه",{"$f":"'تقرير حركة يومية'!F137","v":0},5,null,0,{"$f":"'تقرير حركة يومية'!I137","v":3},5,null,null,null,null,8,{"$f":"'تقرير حركة يومية'!N137","v":55},440,0,-440,-8,"_",null,5,null,null,null,null,null,null,5,null,null,null,null,null,null,null,null,null,null,0]
["برازق",{"$f":"'تقرير حركة يومية'!F138","v":0},{"$f":"SUM(AA138:AG138)","v":0},null,0,{"$f":"'تقرير حركة يومية'!I138","v":0},0,null,null,null,null,0,{"$f":"'تقرير حركة يومية'!N138","v":150},0,0,0,"_","_",null,null,null,null,null,null,null,null,null,null,null,null,null,null,null,null,null,null,null,0]
["كحك ساده",{"$f":"'تقرير حركة يومية'!F139","v":0},0,null,0,{"$f":"'تقرير حركة يومية'!I139","v":10},0,null,null,null,null,10,{"$f":"'تقرير حركة يومية'!N139","v":135},1350,0,-1350,-10,"_",null,null,null,null,null,null,null,null,null,null,null,null,null,null,null,null,null,null,null,{"$f":"AK139+AJ139+AI139","v":0}]
["كحك عين جمل",{"$f":"'تقرير حركة يومية'!F140","v":0},0,null,0,{"$f":"'تقرير حركة يومية'!I140","v":7},0,null,null,null,null,7,{"$f":"'تقرير حركة يومية'!N140","v":145},1015,0,-1015,-7,"_",null,null,null,null,null,null,null,null,null,null,null,null,null,null,null,null,null,null,null,0]
["كحك فستق",{"$f":"'تقرير حركة يومية'!F141","v":0},0,null,0,{"$f":"'تقرير حركة يومية'!I141","v":0},0,null,null,null,null,{"$f":"G141+F141-H141-J141-K141","v":0},{"$f":"'تقرير حركة يومية'!N141","v":195},0,0,0,"_","_",null,null,null,null,null,null,null,null,null,null,null,null,null,null,null,null,null,null,null,0]
["كحك مكسرات",{"$f":"'تقرير حركة يومية'!F142","v":0},0,null,0,{"$f":"'تقرير حركة يومية'!I142","v":1},0,null,null,null,null,1,{"$f":"'تقرير حركة يومية'!N142","v":145},145,0,-145,-1,"_",null,null,null,null,null,null,null,null,null,null,null,null,null,null,null,null,null,null,null,0]
["كحك ملبن ساده",{"$f":"'تقرير حركة يومية'!F143","v":0},0,null,0,{"$f":"'تقرير حركة يومية'!I143","v":3},0,null,null,null,null,3,{"$f":"'تقرير حركة يومية'!N143","v":115},345,0,-345,-3,"_",null,null,null,null,null,null,null,null,null,null,null,null,null,null,null,null,null,null,null,0]
["امبلاج",{"$f":"'تقرير حركة يومية'!F144","v":0},0,null,0,{"$f":"'تقرير حركة يومية'!I144","v":14970},0,null,null,null,null,14970,{"$f":"'تقرير حركة يومية'!N144","v":1},14970,0,-14970,-14970,"_",null,null,null,null,null,null,null,null,null,null,null,null,null,null,null,null,null,null,null,0]
["شيكولاته ميكس الصياد",{"$f":"'تقرير حركة يومية'!F145","v":0},0,null,0,{"$f":"'تقرير حركة يومية'!I145","v":4},0,null,null,null,null,4,{"$f":"'تقرير حركة يومية'!N145","v":400},1600,0,-1600,-4,"_",null,null,null,null,null,null,null,null,null,null,null,null,null,null,null,null,null,null,null,0]
["علبة التوفير 800. جرام حلاوة مولد",{"$f":"'تقرير حركة يومية'!F146","v":0},0,null,0,{"$f":"'تقرير حركة يومية'!I146","v":0},0,null,null,null,null,0,{"$f":"'تقرير حركة يومية'!N146","v":155},0,0,0,"_","_",null,null,null,null,null,null,null,null,null,null,null,null,null,null,null,null,null,null,null,0]
["علبة مشكل 1 ك فيستفال",{"$f":"'تقرير حركة يومية'!F147","v":0},0,null,0,{"$f":"'تقرير حركة يومية'!I147","v":0},0,null,null,null,null,0,{"$f":"'تقرير حركة يومية'!N147","v":195},0,0,0,"_","_",null,null,null,null,null,null,null,null,null,null,null,null,null,null,null,null,null,null,null,0]
["علبة 1.5 ك مشكل كلاسيك",{"$f":"'تقرير حركة يومية'!F148","v":0},0,null,0,{"$f":"'تقرير حركة يومية'!I148","v":0},0,null,null,null,null,0,{"$f":"'تقرير حركة يومية'!N148","v":255},0,0,0,"_","_",null,null,null,null,null,null,null,null,null,null,null,null,null,null,null,null,null,null,null,0]
["علبة مشكل كرنفال صاج 1.5 ك",{"$f":"'تقرير حركة يومية'!F149","v":0},0,null,0,{"$f":"'تقرير حركة يومية'!I149","v":0},0,null,null,null,null,0,{"$f":"'تقرير حركة يومية'!N149","v":315},0,0,0,"_","_",null,null,null,null,null,null,null,null,null,null,null,null,null,null,null,null,null,null,null,0]
["علبة مكسات 1.5 ك",{"$f":"'تقرير حركة يومية'!F150","v":0},0,null,0,{"$f":"'تقرير حركة يومية'!I150","v":0},0,null,null,null,null,0,{"$f":"'تقرير حركة يومية'!N150","v":350},0,0,0,"_","_",null,null,null,null,null,null,null,null,null,null,null,null,null,null,null,null,null,null,null,0]
["علبة جواهر 1.5 ك ",{"$f":"'تقرير حركة يومية'!F151","v":0},0,null,0,{"$f":"'تقرير حركة يومية'!I151","v":0},0,null,null,null,null,0,{"$f":"'تقرير حركة يومية'!N151","v":365},0,0,0,"_","_",null,null,null,null,null,null,null,null,null,null,null,null,null,null,null,null,null,null,null,0]
["علبة جزرية سوداني 1/2 ك",{"$f":"'تقرير حركة يومية'!F152","v":0},0,null,0,{"$f":"'تقرير حركة يومية'!I152","v":0},0,null,null,null,null,0,{"$f":"'تقرير حركة يومية'!N152","v":55},0,0,0,"_","_",null,null,null,null,null,null,null,null,null,null,null,null,null,null,null,null,null,null,null,0]
["علبة مشكل فرحة المولد 1.5 ك ",{"$f":"'تقرير حركة يومية'!F153","v":0},0,null,0,{"$f":"'تقرير حركة يومية'!I153","v":0},0,null,null,null,null,0,{"$f":"'تقرير حركة يومية'!N153","v":305},0,0,0,"_","_",null,null,null,null,null,null,null,null,null,null,null,null,null,null,null,null,null,null,null,0]
["علبة الليلة الكبيرة 2.2 ك",{"$f":"'تقرير حركة يومية'!F154","v":0},0,null,0,{"$f":"'تقرير حركة يومية'!I154","v":0},0,null,null,null,null,0,{"$f":"'تقرير حركة يومية'!N154","v":680},0,0,0,"_","_",null,null,null,null,null,null,null,null,null,null,null,null,null,null,null,null,null,null,null,0]
["علبة كنوز 2.5 ك ",{"$f":"'تقرير حركة يومية'!F155","v":0},0,null,0,{"$f":"'تقرير حركة يومية'!I155","v":0},0,null,null,null,null,0,{"$f":"'تقرير حركة يومية'!N155","v":890},0,0,0,"_","_",null,null,null,null,null,null,null,null,null,null,null,null,null,null,null,null,null,null,null,0]
["علبة مشكل علف 1/2 ك ",{"$f":"'تقرير حركة يومية'!F156","v":0},0,null,0,{"$f":"'تقرير حركة يومية'!I156","v":0},0,null,null,null,null,0,{"$f":"'تقرير حركة يومية'!N156","v":97.5},0,0,0,"_","_",null,null,null,null,null,null,null,null,null,null,null,null,null,null,null,null,null,null,null,0]
["علبة مشكل علف 1 ك ",{"$f":"'تقرير حركة يومية'!F157","v":0},0,null,0,{"$f":"'تقرير حركة يومية'!I157","v":0},0,null,null,null,null,0,{"$f":"'تقرير حركة يومية'!N157","v":195},0,0,0,"_","_",null,null,null,null,null,null,null,null,null,null,null,null,null,null,null,null,null,null,null,0]
["علبة علف سوداني 1/2 ك",{"$f":"'تقرير حركة يومية'!F158","v":0},0,null,0,{"$f":"'تقرير حركة يومية'!I158","v":0},0,null,null,null,null,0,{"$f":"'تقرير حركة يومية'!N158","v":97.5},0,0,0,"_","_",null,null,null,null,null,null,null,null,null,null,null,null,null,null,null,null,null,null,null,0]
["علبة قرص حمصية 1/2 ك",{"$f":"'تقرير حركة يومية'!F159","v":0},0,null,0,{"$f":"'تقرير حركة يومية'!I159","v":0},0,null,null,null,null,0,{"$f":"'تقرير حركة يومية'!N159","v":65},0,0,0,"_","_",null,null,null,null,null,null,null,null,null,null,null,null,null,null,null,null,null,null,null,0]
["علبة مشكل مربات 1/2 ك ",{"$f":"'تقرير حركة يومية'!F160","v":0},0,null,0,{"$f":"'تقرير حركة يومية'!I160","v":0},0,null,null,null,null,0,{"$f":"'تقرير حركة يومية'!N160","v":135},0,0,0,"_","_",null,null,null,null,null,null,null,null,null,null,null,null,null,null,null,null,null,null,null,0]
[" قشطة مارشيملو ",{"$f":"'تقرير حركة يومية'!F161","v":0},0,null,0,{"$f":"'تقرير حركة يومية'!I161","v":0},0,null,null,null,null,0,{"$f":"'تقرير حركة يومية'!N161","v":180},0,0,0,"_","_",null,null,null,null,null,null,null,null,null,null,null,null,null,null,null,null,null,null,null,0]
["علبة ملبن فواكه 1/2 ك ",{"$f":"'تقرير حركة يومية'!F162","v":0},0,null,0,{"$f":"'تقرير حركة يومية'!I162","v":2},0,null,null,null,null,2,{"$f":"'تقرير حركة يومية'!N162","v":50},100,0,-100,-2,"_",null,null,null,null,null,null,null,null,null,null,null,null,null,null,null,null,null,null,null,0]
["علبة نوجا سوداني 1/4 ك",{"$f":"'تقرير حركة يومية'!F163","v":0},0,null,0,{"$f":"'تقرير حركة يومية'!I163","v":0},0,null,null,null,null,0,{"$f":"'تقرير حركة يومية'!N163","v":65},0,0,0,"_","_",null,null,null,null,null,null,null,null,null,null,null,null,null,null,null,null,null,null,null,0]
["علبة ملبن حبل عين جمل 1/2 ك",{"$f":"'تقرير حركة يومية'!F164","v":0},0,null,0,{"$f":"'تقرير حركة يومية'!I164","v":1.24},0,null,null,null,null,1.24,{"$f":"'تقرير حركة يومية'!N164","v":460},570.4,0,-570.4,-1.24,"_",null,null,null,null,null,null,null,null,null,null,null,null,null,null,null,null,null,null,null,0]
["علبة بندقية 1/4 ك",{"$f":"'تقرير حركة يومية'!F165","v":0},0,null,0,{"$f":"'تقرير حركة يومية'!I165","v":0},0,null,null,null,null,0,{"$f":"'تقرير حركة يومية'!N165","v":245},0,0,0,"_","_",null,null,null,null,null,null,null,null,null,null,null,null,null,null,null,null,null,null,null,0]
["علبة لوزية 1/4 ك",{"$f":"'تقرير حركة يومية'!F166","v":0},0,null,0,{"$f":"'تقرير حركة يومية'!I166","v":0},0,null,null,null,null,0,{"$f":"'تقرير حركة يومية'!N166","v":185},0,0,0,"_","_",null,null,null,null,null,null,null,null,null,null,null,null,null,null,null,null,null,null,null,0]
["علبة القرمشة 1/2 ك ",{"$f":"'تقرير حركة يومية'!F167","v":0},0,null,0,{"$f":"'تقرير حركة يومية'!I167","v":0},0,null,null,null,null,0,{"$f":"'تقرير حركة يومية'!N167","v":97.5},0,0,0,"_","_",null,null,null,null,null,null,null,null,null,null,null,null,null,null,null,null,null,null,null,0]
["علبة شيكولاته مشكلة 650 جم",{"$f":"'تقرير حركة يومية'!F168","v":0},0,null,0,{"$f":"'تقرير حركة يومية'!I168","v":0},0,null,null,null,null,0,{"$f":"'تقرير حركة يومية'!N168","v":165},{"$f":"L168*M168","v":0},{"$f":"AL168-I168","v":0},{"$f":"O168-N168","v":0},{"$f":"IF(P168<0,P168/M168,\"_\")","v":"_"},null,null,null,null,null,null,null,null,null,null,null,null,null,null,null,null,null,null,null,null,0]
[" كنافة مانجو كبير / بولة مركب",{"$f":"'تقرير حركة يومية'!F169","v":0},0,null,0,{"$f":"'تقرير حركة يومية'!I169","v":0},0,null,null,null,null,0,{"$f":"'تقرير حركة يومية'!N169","v":175},0,0,0,"_",{"$f":"IF(P169>0,P169/M169,\"_\")","v":"_"},null,null,null,null,null,null,null,null,null,null,null,null,null,null,null,null,null,null,null,0]
[" كنافة مانجو ديو نوتيلا وسط",{"$f":"'تقرير حركة يومية'!F170","v":0},0,null,0,{"$f":"'تقرير حركة يومية'!I170","v":0},0,null,null,null,null,0,{"$f":"'تقرير حركة يومية'!N170","v":155},0,0,0,"_","_",null,null,null,null,null,null,null,null,null,null,null,null,null,null,null,null,null,null,null,0]
[" كنافة مانجو ديو نوتيلا كبير",{"$f":"'تقرير حركة يومية'!F171","v":0},0,null,0,{"$f":"'تقرير حركة يومية'!I171","v":0},0,null,null,null,null,0,{"$f":"'تقرير حركة يومية'!N171","v":260},0,0,0,"_","_",null,null,null,null,null,null,null,null,null,null,null,null,null,null,null,null,null,null,null,0]
["قشطوطه دبي ",{"$f":"'تقرير حركة يومية'!F172","v":0},0,null,0,{"$f":"'تقرير حركة يومية'!I172","v":0},0,null,null,null,null,0,{"$f":"'تقرير حركة يومية'!N172","v":50},0,0,0,"_","_",null,null,null,null,null,null,null,null,null,null,null,null,null,null,null,null,null,null,null,0]
["اساتوك",{"$f":"'تقرير حركة يومية'!F173","v":0},0,null,0,{"$f":"'تقرير حركة يومية'!I173","v":0},0,null,null,null,null,0,{"$f":"'تقرير حركة يومية'!N173","v":90},0,0,0,"_","_",null,null,null,null,null,null,null,null,null,null,null,null,null,null,null,null,null,null,null,0]
["كب كنافة  صغير",{"$f":"'تقرير حركة يومية'!F174","v":0},0,null,0,{"$f":"'تقرير حركة يومية'!I174","v":0},0,null,null,null,null,0,{"$f":"'تقرير حركة يومية'!N174","v":35},0,0,0,"_","_",null,null,null,null,null,null,null,null,null,null,null,null,null,null,null,null,null,null,null,0]
["عصير سوبيا",{"$f":"'تقرير حركة يومية'!F175","v":0},10,null,0,{"$f":"'تقرير حركة يومية'!I175","v":2},10,null,null,null,null,12,{"$f":"'تقرير حركة يومية'!N175","v":20},240,0,-240,-12,"_",null,10,null,null,null,null,null,null,10,null,null,null,null,null,null,null,null,null,null,0]
["عصير مانجو فريش",{"$f":"'تقرير حركة يومية'!F176","v":0},5,null,0,{"$f":"'تقرير حركة يومية'!I176","v":9},5,null,null,null,null,14,{"$f":"'تقرير حركة يومية'!N176","v":35},490,0,-490,-14,"_",null,5,null,null,null,null,null,null,5,null,null,null,null,null,null,null,null,null,null,0]
["عصير تمر هندى",{"$f":"'تقرير حركة يومية'!F177","v":0},0,null,0,{"$f":"'تقرير حركة يومية'!I177","v":0},0,null,null,null,null,0,{"$f":"'تقرير حركة يومية'!N177","v":25},0,0,0,"_","_",null,null,null,null,null,null,null,null,null,null,null,null,null,null,null,null,null,null,null,0]
["عصير دووم",{"$f":"'تقرير حركة يومية'!F178","v":0},0,null,0,{"$f":"'تقرير حركة يومية'!I178","v":0},0,null,null,null,null,0,{"$f":"'تقرير حركة يومية'!N178","v":25},0,0,0,"_","_",null,null,null,null,null,null,null,null,null,null,null,null,null,null,null,null,null,null,null,0]
["عصير عناب",{"$f":"'تقرير حركة يومية'!F179","v":0},0,null,0,{"$f":"'تقرير حركة يومية'!I179","v":0},0,null,null,null,null,0,{"$f":"'تقرير حركة يومية'!N179","v":25},0,0,0,"_","_",null,null,null,null,null,null,null,null,null,null,null,null,null,null,null,null,null,null,null,0]
["عصير بطيخ",{"$f":"'تقرير حركة يومية'!F180","v":0},0,null,0,{"$f":"'تقرير حركة يومية'!I180","v":0},0,null,null,null,null,0,{"$f":"'تقرير حركة يومية'!N180","v":35},0,0,0,"_","_",null,null,null,null,null,null,null,null,null,null,null,null,null,null,null,null,null,null,null,0]
["عصير بلح",{"$f":"'تقرير حركة يومية'!F181","v":0},0,null,0,{"$f":"'تقرير حركة يومية'!I181","v":0},0,null,null,null,null,0,{"$f":"'تقرير حركة يومية'!N181","v":35},0,0,0,"_","_",null,null,null,null,null,null,null,null,null,null,null,null,null,null,null,null,null,null,null,0]
["عصير خروب",{"$f":"'تقرير حركة يومية'!F182","v":0},0,null,0,{"$f":"'تقرير حركة يومية'!I182","v":0},0,null,null,null,null,0,{"$f":"'تقرير حركة يومية'!N182","v":25},0,0,0,"_","_",null,null,null,null,null,null,null,null,null,null,null,null,null,null,null,null,null,null,null,0]
["عصير توت",{"$f":"'تقرير حركة يومية'!F183","v":0},0,null,0,{"$f":"'تقرير حركة يومية'!I183","v":0},0,null,null,null,null,0,{"$f":"'تقرير حركة يومية'!N183","v":35},0,0,0,"_","_",null,null,null,null,null,null,null,null,null,null,null,null,null,null,null,null,null,null,null,0]
["عصير فراوله",{"$f":"'تقرير حركة يومية'!F184","v":0},0,null,0,{"$f":"'تقرير حركة يومية'!I184","v":0},0,null,null,null,null,0,{"$f":"'تقرير حركة يومية'!N184","v":35},0,0,0,"_","_",null,null,null,null,null,null,null,null,null,null,null,null,null,null,null,null,null,null,null,0]
["وجــبــة بـطـيـخ",{"$f":"'تقرير حركة يومية'!F185","v":0},0,null,0,{"$f":"'تقرير حركة يومية'!I185","v":0},0,null,null,null,null,0,{"$f":"'تقرير حركة يومية'!N185","v":1},0,0,0,"_","_",null,null,null,null,null,null,null,null,null,null,null,null,null,null,null,null,null,null,null,0]
["وجــبــة بـلـح ",{"$f":"'تقرير حركة يومية'!F186","v":0},0,null,0,{"$f":"'تقرير حركة يومية'!I186","v":0},0,null,null,null,null,0,{"$f":"'تقرير حركة يومية'!N186","v":1},0,0,0,"_","_",null,null,null,null,null,null,null,null,null,null,null,null,null,null,null,null,null,null,null,0]
["كنافه بين نارين كريمة",{"$f":"'تقرير حركة يومية'!F187","v":0},0,null,0,{"$f":"'تقرير حركة يومية'!I187","v":0},0,null,null,null,null,0,{"$f":"'تقرير حركة يومية'!N187","v":20},{"$f":"L187*M187","v":0},0,{"$f":"O187-N187","v":0},{"$f":"IF(P187<0,P187/M187,\"_\")","v":"_"},"_",null,null,null,null,null,null,null,null,null,null,null,null,null,null,null,null,null,null,null,0]
["كنافه بين نارين كريمة لوتس",{"$f":"'تقرير حركة يومية'!F188","v":0},0,null,0,{"$f":"'تقرير حركة يومية'!I188","v":0},0,null,null,null,null,0,{"$f":"'تقرير حركة يومية'!N188","v":25},0,0,0,"_","_",null,null,null,null,null,null,null,null,null,null,null,null,null,null,null,null,null,null,null,0]
["كنافه بين نارين نوتيلا",{"$f":"'تقرير حركة يومية'!F189","v":0},0,null,0,{"$f":"'تقرير حركة يومية'!I189","v":0},0,null,null,null,null,0,{"$f":"'تقرير حركة يومية'!N189","v":25},0,0,0,"_","_",null,null,null,null,null,null,null,null,null,null,null,null,null,null,null,null,null,null,null,0]
["كسكسي بلبن ومكسرات",{"$f":"'تقرير حركة يومية'!F190","v":0},0,null,0,{"$f":"'تقرير حركة يومية'!I190","v":0},0,null,null,null,null,0,{"$f":"'تقرير حركة يومية'!N190","v":50},0,0,0,"_","_",null,null,null,null,null,null,null,null,null,null,null,null,null,null,null,null,null,null,null,0]
["بسبوسة بين نارين بالقشطة",{"$f":"'تقرير حركة يومية'!F191","v":0},0,null,0,{"$f":"'تقرير حركة يومية'!I191","v":0},0,null,null,null,null,0,{"$f":"'تقرير حركة يومية'!N191","v":1},0,0,0,"_","_",null,null,null,null,null,null,null,null,null,null,null,null,null,null,null,null,null,null,null,0]
["زلابيا",{"$f":"'تقرير حركة يومية'!F192","v":0},0,null,0,{"$f":"'تقرير حركة يومية'!I192","v":0},0,null,null,null,null,0,{"$f":"'تقرير حركة يومية'!N192","v":159.9},0,0,0,"_","_",null,null,null,null,null,null,null,null,null,null,null,null,null,null,null,null,null,null,null,0]
["زلابيا ص",{"$f":"'تقرير حركة يومية'!F193","v":0},0,null,0,{"$f":"'تقرير حركة يومية'!I193","v":0},0,null,null,null,null,0,{"$f":"'تقرير حركة يومية'!N193","v":1},0,0,0,"_","_",null,null,null,null,null,null,null,null,null,null,null,null,null,null,null,null,null,null,null,{"$f":"AK193+AJ193+AI193","v":0}]
["زلابيا ك",{"$f":"'تقرير حركة يومية'!F194","v":0},0,null,0,{"$f":"'تقرير حركة يومية'!I194","v":0},0,null,null,null,null,0,{"$f":"'تقرير حركة يومية'!N194","v":1},0,0,0,"_","_",null,null,null,null,null,null,null,null,null,null,null,null,null,null,null,null,null,null,null,{"$f":"AK194+AJ194+AI194","v":0}]
["فطير سادة",{"$f":"'تقرير حركة يومية'!F195","v":0},114,null,114,{"$f":"'تقرير حركة يومية'!I195","v":0},0,null,null,null,null,0,{"$f":"'تقرير حركة يومية'!N195","v":1},0,0,0,"_","_",null,null,null,null,null,null,null,null,null,null,114,null,null,null,null,null,null,null,null,0]
["فطير سكر",{"$f":"'تقرير حركة يومية'!F196","v":0},0,null,0,{"$f":"'تقرير حركة يومية'!I196","v":0},0,null,null,null,null,0,{"$f":"'تقرير حركة يومية'!N196","v":35},0,0,0,"_","_",null,null,null,null,null,null,null,null,null,null,null,null,null,null,null,null,null,null,null,0]
["فطير لوتس",{"$f":"'تقرير حركة يومية'!F197","v":0},0,null,0,{"$f":"'تقرير حركة يومية'!I197","v":0},0,null,null,null,null,0,{"$f":"'تقرير حركة يومية'!N197","v":50},0,0,0,"_","_",null,null,null,null,null,null,null,null,null,null,null,null,null,null,null,null,null,null,null,0]
["فطير نوتيلا",{"$f":"'تقرير حركة يومية'!F198","v":0},0,null,0,{"$f":"'تقرير حركة يومية'!I198","v":0},0,null,null,null,null,0,{"$f":"'تقرير حركة يومية'!N198","v":50},0,0,0,"_","_",null,null,null,null,null,null,null,null,null,null,null,null,null,null,null,null,null,null,null,0]
["فطير اوريو",{"$f":"'تقرير حركة يومية'!F199","v":0},0,null,0,{"$f":"'تقرير حركة يومية'!I199","v":0},0,null,null,null,null,0,{"$f":"'تقرير حركة يومية'!N199","v":50},0,0,0,"_","_",null,null,null,null,null,null,null,null,null,null,null,null,null,null,null,null,null,null,null,0]
["غلة بليلة سادة وزن",{"$f":"'تقرير حركة يومية'!F200","v":0},0,null,{"$f":"B200+C200-D200-G200","v":0},{"$f":"'تقرير حركة يومية'!I200","v":0},{"$f":"SUM(T200:X200)-Y200","v":0},null,null,null,null,0,{"$f":"'تقرير حركة يومية'!N200","v":400},0,0,0,"_","_",null,null,null,null,null,null,null,null,null,null,null,null,null,null,null,null,null,null,null,0]
["بليلة مكسرات",{"$f":"'تقرير حركة يومية'!F201","v":0},0,null,0,{"$f":"'تقرير حركة يومية'!I201","v":0},0,null,null,null,null,0,{"$f":"'تقرير حركة يومية'!N201","v":45},0,0,0,"_","_",null,null,null,null,null,null,null,null,null,null,null,null,null,null,null,null,null,null,null,0]
["بليلة اسبيشيال",{"$f":"'تقرير حركة يومية'!F202","v":0},{"$f":"SUM(AA202:AG202)","v":0},null,0,{"$f":"'تقرير حركة يومية'!I202","v":0},0,null,null,null,null,0,{"$f":"'تقرير حركة يومية'!N202","v":65},0,0,0,"_","_",null,null,null,null,null,null,null,null,null,null,null,null,null,null,null,null,null,null,null,0]
["بليلة سوبر اسبيشيال",{"$f":"'تقرير حركة يومية'!F203","v":0},0,null,0,{"$f":"'تقرير حركة يومية'!I203","v":0},0,null,null,null,null,0,{"$f":"'تقرير حركة يومية'!N203","v":85},0,0,0,"_","_",null,null,null,null,null,null,null,null,null,null,null,null,null,null,null,null,null,null,null,0]
["استيك ايس كريم",{"$f":"'تقرير حركة يومية'!F204","v":0},0,null,0,{"$f":"'تقرير حركة يومية'!I204","v":0},0,null,null,null,null,0,{"$f":"'تقرير حركة يومية'!N204","v":1},0,{"$f":"AL204-I204","v":0},0,"_","_","_",null,null,null,null,null,null,null,null,null,null,null,null,null,null,null,null,null,null,0]
["بسكوت/بوله فاضي",{"$f":"'تقرير حركة يومية'!F205","v":1000},0,null,1000,{"$f":"'تقرير حركة يومية'!I205","v":0},0,null,null,null,null,{"$f":"G205+F205-H205-J205-K205","v":0},{"$f":"'تقرير حركة يومية'!N205","v":1},0,0,0,"_",{"$f":"IF(P205>0,P205/M205,\"_\")","v":"_"},null,null,null,null,null,null,null,null,null,null,null,null,null,null,null,null,null,null,null,0]
["بسكوته صوص ورده",{"$f":"'تقرير حركة يومية'!F206","v":0},0,null,0,{"$f":"'تقرير حركة يومية'!I206","v":0},0,null,null,null,null,0,{"$f":"'تقرير حركة يومية'!N206","v":1},0,0,0,"_","_",null,null,null,null,null,null,null,null,null,null,null,null,null,null,null,null,null,null,null,0]
["جيلى ساده",{"$f":"'تقرير حركة يومية'!F207","v":0},0,null,0,{"$f":"'تقرير حركة يومية'!I207","v":0},0,null,null,null,null,0,{"$f":"'تقرير حركة يومية'!N207","v":1},0,0,0,"_","_",null,null,null,null,null,null,null,null,null,null,null,null,null,null,null,null,null,null,null,0]
["شمع ارقام",{"$f":"'تقرير حركة يومية'!F208","v":0},0,null,0,{"$f":"'تقرير حركة يومية'!I208","v":17},0,null,null,null,null,17,{"$f":"'تقرير حركة يومية'!N208","v":15},255,0,-255,-17,"_",null,null,null,null,null,null,null,null,null,null,null,null,null,null,null,null,null,null,null,0]
["عاشورة سادة",{"$f":"'تقرير حركة يومية'!F209","v":0},0,null,0,{"$f":"'تقرير حركة يومية'!I209","v":0},0,null,null,null,null,0,{"$f":"'تقرير حركة يومية'!N209","v":1},0,0,0,"_","_",null,null,null,null,null,null,null,null,null,null,null,null,null,null,null,null,null,null,null,0]
["عاشورة مكسرات",{"$f":"'تقرير حركة يومية'!F210","v":0},0,null,0,{"$f":"'تقرير حركة يومية'!I210","v":0},0,null,null,null,null,0,{"$f":"'تقرير حركة يومية'!N210","v":1},0,0,0,"_","_",null,null,null,null,null,null,null,null,null,null,null,null,null,null,null,null,null,null,null,0]
["علبة فرحة العيد",{"$f":"'تقرير حركة يومية'!F211","v":0},0,null,0,{"$f":"'تقرير حركة يومية'!I211","v":0},0,null,null,null,null,0,{"$f":"'تقرير حركة يومية'!N211","v":315},0,0,0,"_","_",null,null,null,null,null,null,null,null,null,null,null,null,null,null,null,null,null,null,null,0]
["مسقسقة",{"$f":"'تقرير حركة يومية'!F212","v":0},0,null,0,{"$f":"'تقرير حركة يومية'!I212","v":0},0,null,null,null,null,0,{"$f":"'تقرير حركة يومية'!N212","v":1},0,0,0,"_","_",null,null,null,null,null,null,null,null,null,null,null,null,null,null,null,null,null,null,null,0]
["مشكل جبن",{"$f":"'تقرير حركة يومية'!F213","v":0},0,null,0,{"$f":"'تقرير حركة يومية'!I213","v":0},0,null,null,null,null,0,{"$f":"'تقرير حركة يومية'!N213","v":1},0,0,0,"_","_",null,null,null,null,null,null,null,null,null,null,null,null,null,null,null,null,null,null,null,0]
["مشكل رمضان",{"$f":"'تقرير حركة يومية'!F214","v":0},0,null,0,{"$f":"'تقرير حركة يومية'!I214","v":0},0,null,null,null,null,0,{"$f":"'تقرير حركة يومية'!N214","v":1},0,0,0,"_","_",null,null,null,null,null,null,null,null,null,null,null,null,null,null,null,null,null,null,null,0]
["كريمة - خام",{"$f":"'تقرير حركة يومية'!F215","v":0},0,null,0,{"$f":"'تقرير حركة يومية'!I215","v":0},0,null,null,null,null,0,{"$f":"'تقرير حركة يومية'!N215","v":1},0,0,0,"_","_",null,null,null,null,null,null,null,null,null,null,null,null,null,null,null,null,null,null,null,0]
["مشكل لحوم",{"$f":"'تقرير حركة يومية'!F216","v":0},0,null,0,{"$f":"'تقرير حركة يومية'!I216","v":0},0,null,null,null,null,0,{"$f":"'تقرير حركة يومية'!N216","v":1},0,0,0,"_","_",null,null,null,null,null,null,null,null,null,null,null,null,null,null,null,null,null,null,null,0]
["كانز",{"$f":"'تقرير حركة يومية'!F217","v":0},0,null,{"$f":"B217+C217-D217-G217","v":0},{"$f":"'تقرير حركة يومية'!I217","v":0},0,null,null,null,null,0,{"$f":"'تقرير حركة يومية'!N217","v":1},0,0,0,"_","_",null,null,null,null,null,null,null,null,null,null,null,null,null,null,null,null,null,null,null,0]
["مياة معدنية",{"$f":"'تقرير حركة يومية'!F218","v":80},40,null,120,{"$f":"'تقرير حركة يومية'!I218","v":0},0,null,null,null,null,0,{"$f":"'تقرير حركة يومية'!N218","v":1},0,0,0,"_","_",null,null,null,null,null,null,null,null,null,40,null,null,null,null,null,null,null,null,null,0]
["كانز كبير - كافيتريا 20ج",{"$f":"'تقرير حركة يومية'!F219","v":0},0,null,0,{"$f":"'تقرير حركة يومية'!I219","v":51},0,null,null,null,null,51,{"$f":"'تقرير حركة يومية'!N219","v":20},1020,0,-1020,-51,"_",null,null,null,null,null,null,null,null,null,null,null,null,null,null,null,null,null,null,null,{"$f":"AK219+AJ219+AI219","v":0}]
["مياة معدنيه كاقتيريا",{"$f":"'تقرير حركة يومية'!F220","v":0},0,null,0,{"$f":"'تقرير حركة يومية'!I220","v":40},0,null,null,null,null,40,{"$f":"'تقرير حركة يومية'!N220","v":10},400,0,-400,-40,"_",null,null,null,null,null,null,null,null,null,null,null,null,null,null,null,null,null,null,null,{"$f":"AK220+AJ220+AI220","v":0}]
["كانز صغير تيك اوي 20ج",{"$f":"'تقرير حركة يومية'!F221","v":0},0,null,0,{"$f":"'تقرير حركة يومية'!I221","v":37},0,null,null,null,null,37,{"$f":"'تقرير حركة يومية'!N221","v":20},740,0,-740,-37,"_",null,null,null,null,null,null,null,null,null,null,null,null,null,null,null,null,null,null,null,0]
["مياة معدنية تيك اوي",{"$f":"'تقرير حركة يومية'!F222","v":0},0,null,0,{"$f":"'تقرير حركة يومية'!I222","v":13},0,null,null,null,null,13,{"$f":"'تقرير حركة يومية'!N222","v":10},130,0,-130,-13,"_",null,null,null,null,null,null,null,null,null,null,null,null,null,null,null,null,null,null,null,0]
["فاكهة تقطيع وزن",{"$f":"'تقرير حركة يومية'!F223","v":0},0,null,0,{"$f":"'تقرير حركة يومية'!I223","v":30},0,null,null,null,null,30,{"$f":"'تقرير حركة يومية'!N223","v":0.2},6,0,-6,-30,"_",null,null,null,null,null,null,null,null,null,null,null,null,null,null,null,null,null,null,null,0]
["فخفخينا بالايس كريم",{"$f":"'تقرير حركة يومية'!F224","v":0},0,null,0,{"$f":"'تقرير حركة يومية'!I224","v":0},0,null,null,null,null,0,{"$f":"'تقرير حركة يومية'!N224","v":90},0,0,0,"_","_",null,null,null,null,null,null,null,null,null,null,null,null,null,null,null,null,null,null,null,0]
["فروت سلاط كريمة",{"$f":"'تقرير حركة يومية'!F225","v":0},0,null,0,{"$f":"'تقرير حركة يومية'!I225","v":0},0,null,null,null,null,0,{"$f":"'تقرير حركة يومية'!N225","v":60},0,0,0,"_","_",null,null,null,null,null,null,null,null,null,null,null,null,null,null,null,null,null,null,null,0]
["فروت سلاط توينكي",{"$f":"'تقرير حركة يومية'!F226","v":0},0,null,0,{"$f":"'تقرير حركة يومية'!I226","v":0},0,null,null,null,null,0,{"$f":"'تقرير حركة يومية'!N226","v":65},0,0,0,"_","_",null,null,null,null,null,null,null,null,null,null,null,null,null,null,null,null,null,null,null,0]
["قهوة تركي",{"$f":"'تقرير حركة يومية'!F227","v":0},0,null,0,{"$f":"'تقرير حركة يومية'!I227","v":21},0,null,null,null,null,21,{"$f":"'تقرير حركة يومية'!N227","v":1},21,0,-21,-21,"_",null,null,null,null,null,null,null,null,null,null,null,null,null,null,null,null,null,null,null,0]
["بن فليفر بندق",{"$f":"'تقرير حركة يومية'!F228","v":0},0,null,0,{"$f":"'تقرير حركة يومية'!I228","v":18},0,null,null,null,null,18,{"$f":"'تقرير حركة يومية'!N228","v":1},18,0,-18,-18,"_",null,null,null,null,null,null,null,null,null,null,null,null,null,null,null,null,null,null,null,0]
["بن اسبريسو وزن",{"$f":"'تقرير حركة يومية'!F229","v":0},0,null,0,{"$f":"'تقرير حركة يومية'!I229","v":35},0,null,null,null,null,35,{"$f":"'تقرير حركة يومية'!N229","v":1},35,0,-35,-35,"_",null,null,null,null,null,null,null,null,null,null,null,null,null,null,null,null,null,null,null,0]
["اسبريسو سنجل",{"$f":"'تقرير حركة يومية'!F230","v":0},0,null,0,{"$f":"'تقرير حركة يومية'!I230","v":0},0,null,null,null,null,0,{"$f":"'تقرير حركة يومية'!N230","v":1},0,0,0,"_","_",null,null,null,null,null,null,null,null,null,null,null,null,null,null,null,null,null,null,null,0]
["اسبريسو دبل",{"$f":"'تقرير حركة يومية'!F231","v":0},0,null,0,{"$f":"'تقرير حركة يومية'!I231","v":0},0,null,null,null,null,0,{"$f":"'تقرير حركة يومية'!N231","v":0.66700000000000004},0,0,0,"_","_",null,null,null,null,null,null,null,null,null,null,null,null,null,null,null,null,null,null,null,0]
["شاي سادة",{"$f":"'تقرير حركة يومية'!F232","v":0},0,null,0,{"$f":"'تقرير حركة يومية'!I232","v":23},0,null,null,null,null,23,{"$f":"'تقرير حركة يومية'!N232","v":25},575,0,-575,-23,"_",null,null,null,null,null,null,null,null,null,null,null,null,null,null,null,null,null,null,null,0]
["شاي نكهات ( اخضر + فراولة + تفاح )",{"$f":"'تقرير حركة يومية'!F233","v":25},0,null,25,{"$f":"'تقرير حركة يومية'!I233","v":0},0,null,null,null,null,0,{"$f":"'تقرير حركة يومية'!N233","v":25},0,0,0,"_","_",null,null,null,null,null,null,null,null,null,null,null,null,null,null,null,null,null,null,null,0]
["عجين كبير",{"$f":"'تقرير حركة يومية'!F234","v":24},40,null,64,{"$f":"'تقرير حركة يومية'!I234","v":0},0,null,null,null,null,0,{"$f":"'تقرير حركة يومية'!N234","v":1},0,0,0,"_","_",null,null,null,null,null,null,null,null,null,null,40,null,null,null,null,null,null,null,null,0]
["عجين وسط",{"$f":"'تقرير حركة يومية'!F235","v":0},15,null,15,{"$f":"'تقرير حركة يومية'!I235","v":0},0,null,null,null,null,0,{"$f":"'تقرير حركة يومية'!N235","v":1},0,0,0,"_","_",null,null,null,null,null,null,null,null,null,null,15,null,null,null,null,null,null,null,null,0]
["حشو بيتزا - سلامي L",{"$f":"'تقرير حركة يومية'!F236","v":2},0,null,2,{"$f":"'تقرير حركة يومية'!I236","v":0},0,null,null,null,null,0,{"$f":"'تقرير حركة يومية'!N236","v":1},0,0,0,"_","_",null,null,null,null,null,null,null,null,null,null,null,null,null,null,null,null,null,null,null,0]
["حشو بيتزا - سلامي M",{"$f":"'تقرير حركة يومية'!F237","v":6},0,null,6,{"$f":"'تقرير حركة يومية'!I237","v":0},0,null,null,null,null,0,{"$f":"'تقرير حركة يومية'!N237","v":1},0,0,0,"_","_",null,null,null,null,null,null,null,null,null,null,null,null,null,null,null,null,null,null,null,0]
["حشو بيتزا - سوبر سوبريم L",{"$f":"'تقرير حركة يومية'!F238","v":10},0,null,10,{"$f":"'تقرير حركة يومية'!I238","v":0},0,null,null,null,null,0,{"$f":"'تقرير حركة يومية'!N238","v":1},0,0,0,"_","_",null,null,null,null,null,null,null,null,null,null,null,null,null,null,null,null,null,null,null,0]
["حشو بيتزا - سوبر سوبريم M",{"$f":"'تقرير حركة يومية'!F239","v":8},0,null,8,{"$f":"'تقرير حركة يومية'!I239","v":0},0,null,null,null,null,0,{"$f":"'تقرير حركة يومية'!N239","v":1},0,0,0,"_","_",null,null,null,null,null,null,null,null,null,null,null,null,null,null,null,null,null,null,null,0]
["حشو بيتزا - صياد L",{"$f":"'تقرير حركة يومية'!F240","v":1},0,null,1,{"$f":"'تقرير حركة يومية'!I240","v":0},0,null,null,null,null,0,{"$f":"'تقرير حركة يومية'!N240","v":1},0,0,0,"_","_",null,null,null,null,null,null,null,null,null,null,null,null,null,null,null,null,null,null,null,0]
["حشو بيتزا - صياد M",{"$f":"'تقرير حركة يومية'!F241","v":3},0,null,3,{"$f":"'تقرير حركة يومية'!I241","v":0},0,null,null,null,null,0,{"$f":"'تقرير حركة يومية'!N241","v":1},0,0,0,"_","_",null,null,null,null,null,null,null,null,null,null,null,null,null,null,null,null,null,null,null,0]
["حشو بيتزا - شاورما لحم L",{"$f":"'تقرير حركة يومية'!F242","v":3},0,null,3,{"$f":"'تقرير حركة يومية'!I242","v":0},0,null,null,null,null,0,{"$f":"'تقرير حركة يومية'!N242","v":1},0,0,0,"_","_",null,null,null,null,null,null,null,null,null,null,null,null,null,null,null,null,null,null,null,0]
["حشو بيتزا - شاورما لحم M",{"$f":"'تقرير حركة يومية'!F243","v":5},0,null,5,{"$f":"'تقرير حركة يومية'!I243","v":0},0,null,null,null,null,0,{"$f":"'تقرير حركة يومية'!N243","v":1},0,0,0,"_","_",null,null,null,null,null,null,null,null,null,null,null,null,null,null,null,null,null,null,null,0]
["حشو بيتزا - سجق L",{"$f":"'تقرير حركة يومية'!F244","v":3},0,null,3,{"$f":"'تقرير حركة يومية'!I244","v":0},0,null,null,null,null,0,{"$f":"'تقرير حركة يومية'!N244","v":1},0,0,0,{"$f":"IF(P244<0,P244/M244,\"_\")","v":"_"},"_",null,null,null,null,null,null,null,null,null,null,null,null,null,null,null,null,null,null,null,{"$f":"AK244+AJ244+AI244","v":0}]
["حشو بيتزا - سجق M",{"$f":"'تقرير حركة يومية'!F245","v":7},0,null,7,{"$f":"'تقرير حركة يومية'!I245","v":0},0,null,null,null,null,0,{"$f":"'تقرير حركة يومية'!N245","v":1},0,0,0,"_","_",null,null,null,null,null,null,null,null,null,null,null,null,null,null,null,null,null,null,null,{"$f":"AK245+AJ245+AI245","v":0}]
["حشو بيتزا - لحمه مفرومه L",{"$f":"'تقرير حركة يومية'!F246","v":1},0,null,1,{"$f":"'تقرير حركة يومية'!I246","v":0},0,null,null,null,null,0,{"$f":"'تقرير حركة يومية'!N246","v":1},0,0,0,"_","_",null,null,null,null,null,null,null,null,null,null,null,null,null,null,null,null,null,null,null,0]
["حشو بيتزا - لحمه مفرومه M",{"$f":"'تقرير حركة يومية'!F247","v":8},0,null,8,{"$f":"'تقرير حركة يومية'!I247","v":0},0,null,null,null,null,0,{"$f":"'تقرير حركة يومية'!N247","v":1},0,0,0,"_","_",null,null,null,null,null,null,null,null,null,null,null,null,null,null,null,null,null,null,null,0]
["حشو بيتزا - هوت دوج L",{"$f":"'تقرير حركة يومية'!F248","v":4},0,null,4,{"$f":"'تقرير حركة يومية'!I248","v":0},0,null,null,null,null,0,{"$f":"'تقرير حركة يومية'!N248","v":1},0,0,0,"_","_",null,null,null,null,null,null,null,null,null,null,null,null,null,null,null,null,null,null,null,0]
["حشو بيتزا - هوت دوج M",{"$f":"'تقرير حركة يومية'!F249","v":3},0,null,3,{"$f":"'تقرير حركة يومية'!I249","v":0},0,null,null,null,null,0,{"$f":"'تقرير حركة يومية'!N249","v":1},0,0,0,"_","_",null,null,null,null,null,null,null,null,null,null,null,null,null,null,null,null,null,null,null,0]
["حشو بيتزا - سي فود L",{"$f":"'تقرير حركة يومية'!F250","v":6},0,null,6,{"$f":"'تقرير حركة يومية'!I250","v":0},0,null,null,null,null,0,{"$f":"'تقرير حركة يومية'!N250","v":1},0,0,0,"_","_",null,null,null,null,null,null,null,null,null,null,null,null,null,null,null,null,null,null,null,0]
["حشو بيتزا - سي فود M",{"$f":"'تقرير حركة يومية'!F251","v":6},0,null,6,{"$f":"'تقرير حركة يومية'!I251","v":0},0,null,null,null,null,0,{"$f":"'تقرير حركة يومية'!N251","v":1},{"$f":"L251*M251","v":0},0,{"$f":"O251-N251","v":0},{"$f":"IF(P251<0,P251/M251,\"_\")","v":"_"},"_",null,null,null,null,null,null,null,null,null,null,null,null,null,null,null,null,null,null,null,0]
["حشو بيتزا - جمبري L",{"$f":"'تقرير حركة يومية'!F252","v":9},0,null,9,{"$f":"'تقرير حركة يومية'!I252","v":0},0,null,null,null,null,0,{"$f":"'تقرير حركة يومية'!N252","v":1},0,0,0,"_","_",null,null,null,null,null,null,null,null,null,null,null,null,null,null,null,null,null,null,null,0]
["حشو بيتزا - جمبري M",{"$f":"'تقرير حركة يومية'!F253","v":6},0,null,6,{"$f":"'تقرير حركة يومية'!I253","v":0},0,null,null,null,null,0,{"$f":"'تقرير حركة يومية'!N253","v":1},0,0,0,"_","_",null,null,null,null,null,null,null,null,null,null,null,null,null,null,null,null,null,null,null,0]
["حشو بيتزا - سوبريم دجاج L",{"$f":"'تقرير حركة يومية'!F254","v":2},0,null,2,{"$f":"'تقرير حركة يومية'!I254","v":0},0,null,null,null,null,0,{"$f":"'تقرير حركة يومية'!N254","v":1},0,0,0,"_","_",null,null,null,null,null,null,null,null,null,null,null,null,null,null,null,null,null,null,null,0]
["حشو بيتزا - سوبريم دجاج M",{"$f":"'تقرير حركة يومية'!F255","v":7},0,null,7,{"$f":"'تقرير حركة يومية'!I255","v":0},0,null,null,null,null,0,{"$f":"'تقرير حركة يومية'!N255","v":1},0,0,0,"_","_",null,null,null,null,null,null,null,null,null,null,null,null,null,null,null,null,null,null,null,0]
["حشو بيتزا - شاورما فراخ L",{"$f":"'تقرير حركة يومية'!F256","v":4},0,null,4,{"$f":"'تقرير حركة يومية'!I256","v":0},0,null,null,null,null,0,{"$f":"'تقرير حركة يومية'!N256","v":1},0,0,0,"_","_",null,null,null,null,null,null,null,null,null,null,null,null,null,null,null,null,null,null,null,0]
["حشو بيتزا - شاورما فراخ M",{"$f":"'تقرير حركة يومية'!F257","v":3},0,null,3,{"$f":"'تقرير حركة يومية'!I257","v":0},0,null,null,null,null,0,{"$f":"'تقرير حركة يومية'!N257","v":1},0,0,0,"_","_",null,null,null,null,null,null,null,null,null,null,null,null,null,null,null,null,null,null,null,0]
["حشو بيتزا - زنجر سوبريم L",{"$f":"'تقرير حركة يومية'!F258","v":2},0,null,2,{"$f":"'تقرير حركة يومية'!I258","v":0},0,null,null,null,null,0,{"$f":"'تقرير حركة يومية'!N258","v":1},0,0,0,"_","_",null,null,null,null,null,null,null,null,null,null,null,null,null,null,null,null,null,null,null,0]
["حشو بيتزا - زنجر سوبريم M",{"$f":"'تقرير حركة يومية'!F259","v":3},0,null,3,{"$f":"'تقرير حركة يومية'!I259","v":0},0,null,null,null,null,0,{"$f":"'تقرير حركة يومية'!N259","v":1},0,0,0,"_","_",null,null,null,null,null,null,null,null,null,null,null,null,null,null,null,null,null,null,null,0]
["حشو بيتزا - شيش L",{"$f":"'تقرير حركة يومية'!F260","v":4},0,null,4,{"$f":"'تقرير حركة يومية'!I260","v":0},0,null,null,null,null,0,{"$f":"'تقرير حركة يومية'!N260","v":1},0,0,0,"_","_",null,null,null,null,null,null,null,null,null,null,null,null,null,null,null,null,null,null,null,0]
["حشو بيتزا - شيش M",{"$f":"'تقرير حركة يومية'!F261","v":1},0,null,1,{"$f":"'تقرير حركة يومية'!I261","v":0},0,null,null,null,null,0,{"$f":"'تقرير حركة يومية'!N261","v":1},0,0,0,"_","_",null,null,null,null,null,null,null,null,null,null,null,null,null,null,null,null,null,null,null,0]
["حشو بيتزا - بسطرمه L",{"$f":"'تقرير حركة يومية'!F262","v":4},0,null,4,{"$f":"'تقرير حركة يومية'!I262","v":0},0,null,null,null,null,0,{"$f":"'تقرير حركة يومية'!N262","v":1},0,0,0,"_","_",null,null,null,null,null,null,null,null,null,null,null,null,null,null,null,null,null,null,null,0]
["حشو بيتزا - بسطرمه M",{"$f":"'تقرير حركة يومية'!F263","v":2},0,null,2,{"$f":"'تقرير حركة يومية'!I263","v":0},0,null,null,null,null,0,{"$f":"'تقرير حركة يومية'!N263","v":1},0,0,0,"_","_",null,null,null,null,null,null,null,null,null,null,null,null,null,null,null,null,null,null,null,0]
["حشو بيتزا - تونة M",{"$f":"'تقرير حركة يومية'!F264","v":0},0,null,{"$f":"B264+C264-D264-G264","v":0},{"$f":"'تقرير حركة يومية'!I264","v":3},{"$f":"SUM(T264:X264)-Y264","v":0},null,null,null,null,3,{"$f":"'تقرير حركة يومية'!N264","v":1},3,0,-3,-3,"_",null,null,null,null,null,null,null,null,null,null,null,null,null,null,null,null,null,null,null,0]
["جبنة موتزريلا - بيتزا",{"$f":"'تقرير حركة يومية'!F265","v":7.4},0,null,7.4,{"$f":"'تقرير حركة يومية'!I265","v":0},0,null,null,null,null,0,{"$f":"'تقرير حركة يومية'!N265","v":1},0,0,0,"_","_",null,null,null,null,null,null,null,null,null,null,null,null,null,null,null,null,null,null,null,0]
["جبنة موتزريلا - جريل",{"$f":"'تقرير حركة يومية'!F266","v":0},{"$f":"SUM(AA266:AG266)","v":0},null,0,{"$f":"'تقرير حركة يومية'!I266","v":0},0,null,null,null,null,0,{"$f":"'تقرير حركة يومية'!N266","v":1},0,0,0,"_","_",null,null,null,null,null,null,null,null,null,null,null,null,null,null,null,null,null,null,null,0]
["سيخ شاورما فراخ",{"$f":"'تقرير حركة يومية'!F267","v":0},0,null,0,{"$f":"'تقرير حركة يومية'!I267","v":0},0,null,null,null,null,0,{"$f":"'تقرير حركة يومية'!N267","v":9.5},0,0,0,"_","_",null,null,null,null,null,null,null,null,null,null,null,null,null,null,null,null,null,null,null,0]
["سيخ شاورما لحم",{"$f":"'تقرير حركة يومية'!F268","v":3.1999999999999993},0,null,3.1999999999999993,{"$f":"'تقرير حركة يومية'!I268","v":0},0,null,null,null,null,0,{"$f":"'تقرير حركة يومية'!N268","v":9.5},0,{"$f":"AL268-I268","v":0},0,"_","_",null,null,null,null,null,null,null,null,null,null,null,null,null,null,null,null,null,null,null,0]
["عيش ريتش * 12",{"$f":"'تقرير حركة يومية'!F269","v":22},0,null,0,{"$f":"'تقرير حركة يومية'!I269","v":0},22,null,null,null,null,{"$f":"G269+F269-H269-J269-K269","v":22},{"$f":"'تقرير حركة يومية'!N269","v":1},22,0,-22,-22,{"$f":"IF(P269>0,P269/M269,\"_\")","v":"_"},null,22,null,null,null,null,null,null,null,null,null,null,null,null,null,null,null,null,null,0]
["عيش ريتش عرض",{"$f":"'تقرير حركة يومية'!F270","v":0},0,null,0,{"$f":"'تقرير حركة يومية'!I270","v":0},0,null,null,null,null,0,{"$f":"'تقرير حركة يومية'!N270","v":1},{"$f":"M270*L270","v":0},0,0,"_",{"$f":"IF(P270>0,P270/M270,\"_\")","v":"_"},null,null,null,null,null,null,null,null,null,null,null,null,null,null,null,null,null,null,null,0]
["عيش سوري *25",{"$f":"'تقرير حركة يومية'!F271","v":61},0,null,22,{"$f":"'تقرير حركة يومية'!I271","v":1},39,null,null,null,null,40,{"$f":"'تقرير حركة يومية'!N271","v":1},40,0,-40,-40,"_",null,28,11,null,null,null,null,null,null,null,null,null,null,null,null,null,null,null,null,0]
["عيش فرنساوي صغير  *5",{"$f":"'تقرير حركة يومية'!F272","v":2},0,null,0,{"$f":"'تقرير حركة يومية'!I272","v":0},2,null,null,null,null,2,{"$f":"'تقرير حركة يومية'!N272","v":1},2,0,-2,-2,"_",null,2,null,null,null,null,null,null,null,null,null,null,null,null,null,null,null,null,null,0]
["عيش فرنساوي كبير   *4",{"$f":"'تقرير حركة يومية'!F273","v":1},0,null,0,{"$f":"'تقرير حركة يومية'!I273","v":0},1,null,null,null,null,1,{"$f":"'تقرير حركة يومية'!N273","v":1},1,0,-1,-1,"_",null,1,null,null,null,null,null,null,null,null,null,null,null,null,null,null,null,null,null,0]
["حشو سندوتش  - كبده",{"$f":"'تقرير حركة يومية'!F274","v":14},0,null,{"$f":"B274+C274-D274-G274","v":8},{"$f":"'تقرير حركة يومية'!I274","v":0},6,null,null,null,null,6,{"$f":"'تقرير حركة يومية'!N274","v":1},6,0,-6,-6,"_",null,6,null,null,null,null,null,null,null,null,null,null,null,null,null,null,null,null,null,0]
["حشو سندوتش  - برجر",{"$f":"'تقرير حركة يومية'!F275","v":3},0,null,0,{"$f":"'تقرير حركة يومية'!I275","v":0},3,null,null,null,null,3,{"$f":"'تقرير حركة يومية'!N275","v":1},3,0,-3,-3,"_",null,3,null,null,null,null,null,null,null,null,null,null,null,null,null,null,null,null,null,0]
["حشو سندوتش  - كفته",{"$f":"'تقرير حركة يومية'!F276","v":2},0,null,0,{"$f":"'تقرير حركة يومية'!I276","v":0},2,null,null,null,null,2,{"$f":"'تقرير حركة يومية'!N276","v":1},2,0,-2,-2,"_",null,2,null,null,null,null,null,null,null,null,null,null,null,null,null,null,null,null,null,0]
["حشو سندوتش  - هوت دوج",{"$f":"'تقرير حركة يومية'!F277","v":7},0,null,0,{"$f":"'تقرير حركة يومية'!I277","v":0},7,null,null,null,null,7,{"$f":"'تقرير حركة يومية'!N277","v":1},7,0,-7,-7,"_",null,7,null,null,null,null,null,null,null,null,null,null,null,null,null,null,null,null,null,0]
["حشو سندوتش  - بانيه",{"$f":"'تقرير حركة يومية'!F278","v":0},0,null,0,{"$f":"'تقرير حركة يومية'!I278","v":0},0,null,null,null,null,0,{"$f":"'تقرير حركة يومية'!N278","v":1},0,0,0,"_","_",null,null,null,null,null,null,null,null,null,null,null,null,null,null,null,null,null,null,null,0]
["حشو سندوتش  - زنجر",{"$f":"'تقرير حركة يومية'!F279","v":11},0,null,0,{"$f":"'تقرير حركة يومية'!I279","v":0},11,null,null,null,null,11,{"$f":"'تقرير حركة يومية'!N279","v":1},11,0,-11,-11,"_",null,11,null,null,null,null,null,null,null,null,null,null,null,null,null,null,null,null,null,{"$f":"AK279+AJ279+AI279","v":0}]
["حشو سندوتش  - كوردن بلو",{"$f":"'تقرير حركة يومية'!F280","v":0},0,null,0,{"$f":"'تقرير حركة يومية'!I280","v":0},0,null,null,null,null,0,{"$f":"'تقرير حركة يومية'!N280","v":1},0,0,0,"_","_",null,null,null,null,null,null,null,null,null,null,null,null,null,null,null,null,null,null,null,{"$f":"AK280+AJ280+AI280","v":0}]
["حشو سندوتش  - شيش طاووق",{"$f":"'تقرير حركة يومية'!F281","v":9},0,null,5,{"$f":"'تقرير حركة يومية'!I281","v":0},4,null,null,null,null,4,{"$f":"'تقرير حركة يومية'!N281","v":1},4,0,-4,-4,"_",null,4,null,null,null,null,null,null,null,null,null,null,null,null,null,null,null,null,null,{"$f":"AK281+AJ281+AI281","v":0}]
["حشو سندوتش  - صدور",{"$f":"'تقرير حركة يومية'!F282","v":6},0,null,0,{"$f":"'تقرير حركة يومية'!I282","v":0},6,null,null,null,null,6,{"$f":"'تقرير حركة يومية'!N282","v":1},6,0,-6,-6,"_",null,6,null,null,null,null,null,null,null,null,null,null,null,null,null,null,null,null,null,{"$f":"AK282+AJ282+AI282","v":0}]
["حشو سندوتش  - صيادكو",{"$f":"'تقرير حركة يومية'!F283","v":3},0,null,0,{"$f":"'تقرير حركة يومية'!I283","v":0},3,null,null,null,null,3,{"$f":"'تقرير حركة يومية'!N283","v":1},3,0,-3,-3,"_",null,3,null,null,null,null,null,null,null,null,null,null,null,null,null,null,null,null,null,{"$f":"AK283+AJ283+AI283","v":0}]
[null,null,null,null,null,null,null,null,null,null,null,null,null,{"$f":"SUM(N9:N283)","v":148641.04999999999},{"$f":"SUM(O9:O283)","v":0},{"$f":"SUM(P9:P283)","v":-148641.04999999999},{"$f":"SUM(Q9:Q283)","v":-16920.005000000001},{"$f":"SUM(R9:R283)","v":0},null,null,null,null,null,null,null,null,null,null,null,null,null,null,null,null,null,null,null,0]

{"sheet":"جرد الأيس كريم","index":2,"n_rows":33,"n_cols":5,"rows_kept":33,"cut":false,"hidden":false,"merged":[[0,0,0,3]]}
["جرد أيس كريم عادي 180",null,null,null,{"$f":"E18+E24","v":175.75}]
["م","إجمالي وزن البوله","العدد","التخصيمة","الصافي"]
[1,20,4,3.4,{"$f":"B3-D3","v":16.600000000000001}]
[2,19.5,4,4,{"$f":"B4-D4","v":15.5}]
[3,19.7,4,3.7,16]
[4,22.4,4,3.05,19.349999999999998]
[5,19.7,4,4,15.7]
[6,14.4,3,3,11.4]
[7,6.8,2,2,4.8]
[8,7.25,3,2.4,4.8499999999999996]
[9,10.85,3,2.8,8.0500000000000007]
[10,7.9,2,2,5.9]
[11,{"$f":"87/2","v":43.5},null,null,43.5]
[12,null,null,null,0]
[13,null,null,null,0]
[14,null,null,null,0]
[15,null,null,null,0]
["الإجمالي",null,null,null,{"$f":"SUM(E3:E17)","v":161.65}]
["جرد أيس كريم عادي  كافيتريا"]
["م","إجمالي وزن البوله","العدد","التخصيمة","الصافي"]
[1,17.600000000000001,4,3.5,{"$f":"B21-D21","v":14.100000000000001}]
[2,null,null,null,{"$f":"B22-D22","v":0}]
[3,null,null,null,{"$f":"B23-D23","v":0}]
["الإجمالي",null,null,null,{"$f":"SUM(E21:E23)","v":14.100000000000001}]
["جرد أيس كريم اسبشيال 240"]
["م","إجمالي وزن البوله","العدد","التخصيمة","الصافي"]
[1,6.7,3,3,{"$f":"B27-D27","v":3.7}]
[2,4.3,1,1,3.3]
[3,0.5,null,null,0.5]
[4,null,null,null,0]
[5,null,null,null,0]
[6,null,null,null,0]
["الإجمالي",null,null,null,{"$f":"SUM(E27:E32)","v":7.5}]

{"sheet":"رصيد المخزن","index":3,"n_rows":274,"n_cols":5,"rows_kept":274,"cut":false,"hidden":false,"merged":[]}
[]
["م","الصنف","رصيد","فحص","التصحيح"]
[{"$f":"_xlfn.AGGREGATE(3,5,$B$3:B3)","v":0},{"$f":"'فصل شيفت'!A9","v":"قطعه جاتوه كلاسيك"},{"$f":"'فصل شيفت'!E9","v":525}]
[{"$f":"_xlfn.AGGREGATE(3,5,$B$3:B4)","v":0},{"$f":"'فصل شيفت'!A10","v":"قطعه جاتوه موس"},{"$f":"'فصل شيفت'!E10","v":98}]
[{"$f":"_xlfn.AGGREGATE(3,5,$B$3:B5)","v":0},{"$f":"'فصل شيفت'!A11","v":"جاتوة سواريه"},{"$f":"'فصل شيفت'!E11","v":0}]
[{"$f":"_xlfn.AGGREGATE(3,5,$B$3:B6)","v":0},{"$f":"'فصل شيفت'!A12","v":"اكلير / دنش"},{"$f":"'فصل شيفت'!E12","v":10}]
[{"$f":"_xlfn.AGGREGATE(3,5,$B$3:B7)","v":0},{"$f":"'فصل شيفت'!A13","v":"ملفاى"},{"$f":"'فصل شيفت'!E13","v":0}]
[{"$f":"_xlfn.AGGREGATE(3,5,$B$3:B8)","v":0},{"$f":"'فصل شيفت'!A14","v":"شوهات"},{"$f":"'فصل شيفت'!E14","v":16}]
[{"$f":"_xlfn.AGGREGATE(3,5,$B$3:B9)","v":0},{"$f":"'فصل شيفت'!A15","v":"كب جار بوبس"},{"$f":"'فصل شيفت'!E15","v":0}]
[{"$f":"_xlfn.AGGREGATE(3,5,$B$3:B10)","v":0},{"$f":"'فصل شيفت'!A16","v":"تورته اوستيك موس"},{"$f":"'فصل شيفت'!E16","v":0}]
[{"$f":"_xlfn.AGGREGATE(3,5,$B$3:B11)","v":0},{"$f":"'فصل شيفت'!A17","v":"تورته مينى موس  180"},{"$f":"'فصل شيفت'!E17","v":0}]
[{"$f":"_xlfn.AGGREGATE(3,5,$B$3:B12)","v":0},{"$f":"'فصل شيفت'!A18","v":"تورته مينى شوكلت كيك 300"},{"$f":"'فصل شيفت'!E18","v":0}]
[{"$f":"_xlfn.AGGREGATE(3,5,$B$3:B13)","v":0},{"$f":"'فصل شيفت'!A19","v":"تورته دائري شوكلت كاملة  400"},{"$f":"'فصل شيفت'!E19","v":0}]
[{"$f":"_xlfn.AGGREGATE(3,5,$B$3:B14)","v":0},{"$f":"'فصل شيفت'!A20","v":"تورته مربع صغير310"},{"$f":"'فصل شيفت'!E20","v":11}]
[{"$f":"_xlfn.AGGREGATE(3,5,$B$3:B15)","v":0},{"$f":"'فصل شيفت'!A21","v":"تورتة هاف دائرى  / فاكهة كاملة   380   "},{"$f":"'فصل شيفت'!E21","v":18}]
[{"$f":"_xlfn.AGGREGATE(3,5,$B$3:B16)","v":0},{"$f":"'فصل شيفت'!A22","v":"تورته فور سيزون  440"},{"$f":"'فصل شيفت'!E22","v":2}]
[{"$f":"_xlfn.AGGREGATE(3,5,$B$3:B17)","v":0},{"$f":"'فصل شيفت'!A23","v":"تورته مربع كبير 435"},{"$f":"'فصل شيفت'!E23","v":1}]
[{"$f":"_xlfn.AGGREGATE(3,5,$B$3:B18)","v":0},{"$f":"'فصل شيفت'!A24","v":"تورته هاف كيت كات / روشيه / ويفر  430"},{"$f":"'فصل شيفت'!E24","v":5}]
[{"$f":"_xlfn.AGGREGATE(3,5,$B$3:B19)","v":0},{"$f":"'فصل شيفت'!A25","v":"تورته قلب كبير   445"},{"$f":"'فصل شيفت'!E25","v":2}]
[{"$f":"_xlfn.AGGREGATE(3,5,$B$3:B20)","v":0},{"$f":"'فصل شيفت'!A26","v":"تورته فونتانا   480"},{"$f":"'فصل شيفت'!E26","v":0}]
[{"$f":"_xlfn.AGGREGATE(3,5,$B$3:B21)","v":0},{"$f":"'فصل شيفت'!A27","v":"تورته دويــــــتـــــــو    30*30   (500)"},{"$f":"'فصل شيفت'!E27","v":1}]
[{"$f":"_xlfn.AGGREGATE(3,5,$B$3:B22)","v":0},{"$f":"'فصل شيفت'!A28","v":"تورتة هاف 20*40  (550)"},{"$f":"'فصل شيفت'!E28","v":0}]
[{"$f":"_xlfn.AGGREGATE(3,5,$B$3:B23)","v":0},{"$f":"'فصل شيفت'!A29","v":"تورته ايس سوسرول 245"},{"$f":"'فصل شيفت'!E29","v":0}]
[{"$f":"_xlfn.AGGREGATE(3,5,$B$3:B24)","v":0},{"$f":"'فصل شيفت'!A30","v":"تورته ايس كاساتا  315"},{"$f":"'فصل شيفت'!E30","v":0}]
[{"$f":"_xlfn.AGGREGATE(3,5,$B$3:B25)","v":0},{"$f":"'فصل شيفت'!A31","v":"كب بوبس ( دبل سوفت - ديو )"},{"$f":"'فصل شيفت'!E31","v":30}]
[{"$f":"_xlfn.AGGREGATE(3,5,$B$3:B26)","v":0},{"$f":"'فصل شيفت'!A32","v":"كب مينى ديسباسيتو"},{"$f":"'فصل شيفت'!E32","v":0}]
[{"$f":"_xlfn.AGGREGATE(3,5,$B$3:B27)","v":0},{"$f":"'فصل شيفت'!A33","v":"كب شوكلت كيك"},{"$f":"'فصل شيفت'!E33","v":40}]
[{"$f":"_xlfn.AGGREGATE(3,5,$B$3:B28)","v":0},{"$f":"'فصل شيفت'!A34","v":"ترايفل"},{"$f":"'فصل شيفت'!E34","v":25}]
[{"$f":"_xlfn.AGGREGATE(3,5,$B$3:B29)","v":0},{"$f":"'فصل شيفت'!A35","v":"كب اساتوك دبي"},{"$f":"'فصل شيفت'!E35","v":5}]
[{"$f":"_xlfn.AGGREGATE(3,5,$B$3:B30)","v":0},{"$f":"'فصل شيفت'!A36","v":"ديسباسيتو"},{"$f":"'فصل شيفت'!E36","v":0}]
[{"$f":"_xlfn.AGGREGATE(3,5,$B$3:B31)","v":0},{"$f":"'فصل شيفت'!A37","v":"مولتن كيك"},{"$f":"'فصل شيفت'!E37","v":5}]
[{"$f":"_xlfn.AGGREGATE(3,5,$B$3:B32)","v":0},{"$f":"'فصل شيفت'!A38","v":"باباز"},{"$f":"'فصل شيفت'!E38","v":0}]
[{"$f":"_xlfn.AGGREGATE(3,5,$B$3:B33)","v":0},{"$f":"'فصل شيفت'!A39","v":"كوكتيل"},{"$f":"'فصل شيفت'!E39","v":0}]
[{"$f":"_xlfn.AGGREGATE(3,5,$B$3:B34)","v":0},{"$f":"'فصل شيفت'!A40","v":"كب قشطوطة صغير"},{"$f":"'فصل شيفت'!E40","v":26}]
[{"$f":"_xlfn.AGGREGATE(3,5,$B$3:B35)","v":0},{"$f":"'فصل شيفت'!A41","v":"كب قشطوطة كاندي /بسبوسه /ليزي كيك "},{"$f":"'فصل شيفت'!E41","v":14}]
[{"$f":"_xlfn.AGGREGATE(3,5,$B$3:B36)","v":0},{"$f":"'فصل شيفت'!A42","v":"ام علي ساده"},{"$f":"'فصل شيفت'!E42","v":0}]
[{"$f":"_xlfn.AGGREGATE(3,5,$B$3:B37)","v":0},{"$f":"'فصل شيفت'!A43","v":"ارز بلبن اسبيشيال عفروتو"},{"$f":"'فصل شيفت'!E43","v":0}]
[{"$f":"_xlfn.AGGREGATE(3,5,$B$3:B38)","v":0},{"$f":"'فصل شيفت'!A44","v":"ارز بلبن اسبشيال مكسرات وقشطة"},{"$f":"'فصل شيفت'!E44","v":0}]
[{"$f":"_xlfn.AGGREGATE(3,5,$B$3:B39)","v":0},{"$f":"'فصل شيفت'!A45","v":"ارز بلبن اسبيشيال اوريو"},{"$f":"'فصل شيفت'!E45","v":0}]
[{"$f":"_xlfn.AGGREGATE(3,5,$B$3:B40)","v":0},{"$f":"'فصل شيفت'!A46","v":"ارز بلبن اسبيشيال قراصيا"},{"$f":"'فصل شيفت'!E46","v":0}]
[{"$f":"_xlfn.AGGREGATE(3,5,$B$3:B41)","v":0},{"$f":"'فصل شيفت'!A47","v":"ارز بلبن اسبيشيال لوتس"},{"$f":"'فصل شيفت'!E47","v":0}]
[{"$f":"_xlfn.AGGREGATE(3,5,$B$3:B42)","v":0},{"$f":"'فصل شيفت'!A48","v":"ارز بلبن اسبيشيال نوتيلا"},{"$f":"'فصل شيفت'!E48","v":0}]
[{"$f":"_xlfn.AGGREGATE(3,5,$B$3:B43)","v":0},{"$f":"'فصل شيفت'!A49","v":"ارز بلبن بسابيسو"},{"$f":"'فصل شيفت'!E49","v":0}]
[{"$f":"_xlfn.AGGREGATE(3,5,$B$3:B44)","v":0},{"$f":"'فصل شيفت'!A50","v":"ارز بلبن خدود الست"},{"$f":"'فصل شيفت'!E50","v":0}]
[{"$f":"_xlfn.AGGREGATE(3,5,$B$3:B45)","v":0},{"$f":"'فصل شيفت'!A51","v":"ارز بلبن ساده"},{"$f":"'فصل شيفت'!E51","v":90}]
[{"$f":"_xlfn.AGGREGATE(3,5,$B$3:B46)","v":0},{"$f":"'فصل شيفت'!A51","v":"ارز بلبن ساده"},{"$f":"'فصل شيفت'!E51","v":90}]
[{"$f":"_xlfn.AGGREGATE(3,5,$B$3:B47)","v":0},{"$f":"'فصل شيفت'!A52","v":"ارز بلبن مكس الصياد"},{"$f":"'فصل شيفت'!E52","v":0}]
[{"$f":"_xlfn.AGGREGATE(3,5,$B$3:B48)","v":0},{"$f":"'فصل شيفت'!A53","v":"ارز اسبيشيال كنافة مانجو"},{"$f":"'فصل شيفت'!E53","v":0}]
[{"$f":"_xlfn.AGGREGATE(3,5,$B$3:B49)","v":0},{"$f":"'فصل شيفت'!A54","v":"ارز قنبلة فراوله"},{"$f":"'فصل شيفت'!E54","v":0}]
[{"$f":"_xlfn.AGGREGATE(3,5,$B$3:B50)","v":0},{"$f":"'فصل شيفت'!A55","v":"ارز قنبلة موز وكراميل"},{"$f":"'فصل شيفت'!E55","v":0}]
[{"$f":"_xlfn.AGGREGATE(3,5,$B$3:B51)","v":0},{"$f":"'فصل شيفت'!A56","v":"ارز قشطوطة سادة"},{"$f":"'فصل شيفت'!E56","v":0}]
[{"$f":"_xlfn.AGGREGATE(3,5,$B$3:B52)","v":0},{"$f":"'فصل شيفت'!A57","v":"قشطوطة فراولة"},{"$f":"'فصل شيفت'!E57","v":0}]
[{"$f":"_xlfn.AGGREGATE(3,5,$B$3:B53)","v":0},{"$f":"'فصل شيفت'!A58","v":"قشطوطة كراميل"},{"$f":"'فصل شيفت'!E58","v":0}]
[{"$f":"_xlfn.AGGREGATE(3,5,$B$3:B54)","v":0},{"$f":"'فصل شيفت'!A59","v":"قشطوطه لوتس"},{"$f":"'فصل شيفت'!E59","v":0}]
[{"$f":"_xlfn.AGGREGATE(3,5,$B$3:B55)","v":0},{"$f":"'فصل شيفت'!A60","v":"قشطوطه مانجو / فاكهة"},{"$f":"'فصل شيفت'!E60","v":0}]
[{"$f":"_xlfn.AGGREGATE(3,5,$B$3:B56)","v":0},{"$f":"'فصل شيفت'!A61","v":"قشطوطه نوتيلا"},{"$f":"'فصل شيفت'!E61","v":0}]
[{"$f":"_xlfn.AGGREGATE(3,5,$B$3:B57)","v":0},{"$f":"'فصل شيفت'!A62","v":"قشطوطة دندو"},{"$f":"'فصل شيفت'!E62","v":0}]
[{"$f":"_xlfn.AGGREGATE(3,5,$B$3:B58)","v":0},{"$f":"'فصل شيفت'!A63","v":"قشطوطة كراميل صواني"},{"$f":"'فصل شيفت'!E63","v":0}]
[{"$f":"_xlfn.AGGREGATE(3,5,$B$3:B59)","v":1},{"$f":"'فصل شيفت'!A64","v":"قشطوطة كريمة صواني"},{"$f":"'فصل شيفت'!E64","v":0}]
[{"$f":"_xlfn.AGGREGATE(3,5,$B$3:B60)","v":1},{"$f":"'فصل شيفت'!A65","v":"ايس كريم كافيتريا - خام عادي "},{"$f":"'فصل شيفت'!E65","v":0}]
[{"$f":"_xlfn.AGGREGATE(3,5,$B$3:B61)","v":1},{"$f":"'فصل شيفت'!A66","v":"ايس كريم كافيتريا - خام اسبيشيال "},{"$f":"'فصل شيفت'!E66","v":0}]
[{"$f":"_xlfn.AGGREGATE(3,5,$B$3:B62)","v":1},{"$f":"'فصل شيفت'!A67","v":"ايس كريم - خام عادي 180"},{"$f":"'فصل شيفت'!E67","v":0}]
[{"$f":"_xlfn.AGGREGATE(3,5,$B$3:B63)","v":1},{"$f":"'فصل شيفت'!A68","v":"ايس كريم - خام اسبيشيال 250"},{"$f":"'فصل شيفت'!E68","v":0}]
[{"$f":"_xlfn.AGGREGATE(3,5,$B$3:B64)","v":1},{"$f":"'فصل شيفت'!A69","v":"كزرولة لبن ص 5.800"},{"$f":"'فصل شيفت'!E69","v":0}]
[{"$f":"_xlfn.AGGREGATE(3,5,$B$3:B65)","v":1},{"$f":"'فصل شيفت'!A70","v":"كزرولة لبن ك 3.600"},{"$f":"'فصل شيفت'!E70","v":0}]
[{"$f":"_xlfn.AGGREGATE(3,5,$B$3:B66)","v":1},{"$f":"'فصل شيفت'!A71","v":"كزرولة لبن ك 6.300"},{"$f":"'فصل شيفت'!E71","v":0}]
[{"$f":"_xlfn.AGGREGATE(3,5,$B$3:B67)","v":1},{"$f":"'فصل شيفت'!A72","v":"كزرولة لبن ك 6.600"},{"$f":"'فصل شيفت'!E72","v":0}]
[{"$f":"_xlfn.AGGREGATE(3,5,$B$3:B68)","v":2},{"$f":"'فصل شيفت'!A73","v":"مكسرات أيس"},{"$f":"'فصل شيفت'!E73","v":122}]
[{"$f":"_xlfn.AGGREGATE(3,5,$B$3:B69)","v":2},{"$f":"'فصل شيفت'!A74","v":"بسكوت اوريو مطحون فطير"},{"$f":"'فصل شيفت'!E74","v":0}]
[{"$f":"_xlfn.AGGREGATE(3,5,$B$3:B70)","v":2},{"$f":"'فصل شيفت'!A75","v":"بسكوت لوتس مطحون فطير"},{"$f":"'فصل شيفت'!E75","v":0}]
[{"$f":"_xlfn.AGGREGATE(3,5,$B$3:B71)","v":2},{"$f":"'فصل شيفت'!A76","v":"صوص شوكلت وايت فطير"},{"$f":"'فصل شيفت'!E76","v":0}]
[{"$f":"_xlfn.AGGREGATE(3,5,$B$3:B72)","v":2},{"$f":"'فصل شيفت'!A77","v":"صوص نوتيلا فطير"},{"$f":"'فصل شيفت'!E77","v":0}]
[{"$f":"_xlfn.AGGREGATE(3,5,$B$3:B73)","v":2},{"$f":"'فصل شيفت'!A78","v":"صوص لوتس فطير"},{"$f":"'فصل شيفت'!E78","v":0}]
[{"$f":"_xlfn.AGGREGATE(3,5,$B$3:B74)","v":2},{"$f":"'فصل شيفت'!A79","v":"علب مكسرات فطير"},{"$f":"'فصل شيفت'!E79","v":0}]
[{"$f":"_xlfn.AGGREGATE(3,5,$B$3:B75)","v":3},{"$f":"'فصل شيفت'!A80","v":"علب مكسرات ارز فرع"},{"$f":"'فصل شيفت'!E80","v":102}]
[{"$f":"_xlfn.AGGREGATE(3,5,$B$3:B76)","v":3},{"$f":"'فصل شيفت'!A81","v":"علب مكسرات  بليلة"},{"$f":"'فصل شيفت'!E81","v":0}]
[{"$f":"_xlfn.AGGREGATE(3,5,$B$3:B77)","v":3},{"$f":"'فصل شيفت'!A82","v":"كيس مكسرات بليلة"},{"$f":"'فصل شيفت'!E82","v":0}]
[{"$f":"_xlfn.AGGREGATE(3,5,$B$3:B78)","v":3},{"$f":"'فصل شيفت'!A83","v":"مشبك دمياطي"},{"$f":"'فصل شيفت'!E83","v":0}]
[{"$f":"_xlfn.AGGREGATE(3,5,$B$3:B79)","v":3},{"$f":"'فصل شيفت'!A84","v":"ساليزونات مشكله"},{"$f":"'فصل شيفت'!E84","v":0}]
[{"$f":"_xlfn.AGGREGATE(3,5,$B$3:B80)","v":3},{"$f":"'فصل شيفت'!A85","v":"اسبيشيال لوكس 1/2 كيلو"},{"$f":"'فصل شيفت'!E85","v":0}]
[{"$f":"_xlfn.AGGREGATE(3,5,$B$3:B81)","v":3},{"$f":"'فصل شيفت'!A86","v":"اسبيشيال لوكس"},{"$f":"'فصل شيفت'!E86","v":6.66}]
[{"$f":"_xlfn.AGGREGATE(3,5,$B$3:B82)","v":3},{"$f":"'فصل شيفت'!A87","v":"مشكل شعبيات"},{"$f":"'فصل شيفت'!E87","v":0}]
[{"$f":"_xlfn.AGGREGATE(3,5,$B$3:B83)","v":3},{"$f":"'فصل شيفت'!A88","v":"كنافه كريمه"},{"$f":"'فصل شيفت'!E88","v":0}]
[{"$f":"_xlfn.AGGREGATE(3,5,$B$3:B84)","v":3},{"$f":"'فصل شيفت'!A89","v":"كنافه مكسرات"},{"$f":"'فصل شيفت'!E89","v":0}]
[{"$f":"_xlfn.AGGREGATE(3,5,$B$3:B85)","v":3},{"$f":"'فصل شيفت'!A90","v":"لينزا"},{"$f":"'فصل شيفت'!E90","v":0}]
[{"$f":"_xlfn.AGGREGATE(3,5,$B$3:B86)","v":3},{"$f":"'فصل شيفت'!A91","v":"مكرونه"},{"$f":"'فصل شيفت'!E91","v":0}]
[{"$f":"_xlfn.AGGREGATE(3,5,$B$3:B87)","v":3},{"$f":"'فصل شيفت'!A92","v":"بسبوسه ساده"},{"$f":"'فصل شيفت'!E92","v":0}]
[{"$f":"_xlfn.AGGREGATE(3,5,$B$3:B88)","v":3},{"$f":"'فصل شيفت'!A93","v":"رواني سادة بالعسل"},{"$f":"'فصل شيفت'!E93","v":0}]
[{"$f":"_xlfn.AGGREGATE(3,5,$B$3:B89)","v":3},{"$f":"'فصل شيفت'!A94","v":"هريسه حشو مكسرات"},{"$f":"'فصل شيفت'!E94","v":0}]
[{"$f":"_xlfn.AGGREGATE(3,5,$B$3:B90)","v":3},{"$f":"'فصل شيفت'!A95","v":"بسبوسه مكسرات"},{"$f":"'فصل شيفت'!E95","v":0}]
[{"$f":"_xlfn.AGGREGATE(3,5,$B$3:B91)","v":3},{"$f":"'فصل شيفت'!A96","v":"بسبوسه فستق"},{"$f":"'فصل شيفت'!E96","v":0}]
[{"$f":"_xlfn.AGGREGATE(3,5,$B$3:B92)","v":3},{"$f":"'فصل شيفت'!A97","v":"قشطات / بقلاوة كريمة"},{"$f":"'فصل شيفت'!E97","v":30.544999999999987}]
[{"$f":"_xlfn.AGGREGATE(3,5,$B$3:B93)","v":3},{"$f":"'فصل شيفت'!A98","v":"بلح شام قشطه /فواكهه"},{"$f":"'فصل شيفت'!E98","v":0}]
[{"$f":"_xlfn.AGGREGATE(3,5,$B$3:B94)","v":3},{"$f":"'فصل شيفت'!A99","v":"قطايف قشطة"},{"$f":"'فصل شيفت'!E99","v":0}]
[{"$f":"_xlfn.AGGREGATE(3,5,$B$3:B95)","v":3},{"$f":"'فصل شيفت'!A100","v":"بقلاوة مكسرات"},{"$f":"'فصل شيفت'!E100","v":1.38}]
[{"$f":"_xlfn.AGGREGATE(3,5,$B$3:B96)","v":3},{"$f":"'فصل شيفت'!A101","v":"كنافة اساور تاج"},{"$f":"'فصل شيفت'!E101","v":0}]
[{"$f":"_xlfn.AGGREGATE(3,5,$B$3:B97)","v":3},{"$f":"'فصل شيفت'!A102","v":"كنافه سيخ بندق"},{"$f":"'فصل شيفت'!E102","v":0}]
[{"$f":"_xlfn.AGGREGATE(3,5,$B$3:B98)","v":3},{"$f":"'فصل شيفت'!A103","v":"كنافه سيخ ساده"},{"$f":"'فصل شيفت'!E103","v":0}]
[{"$f":"_xlfn.AGGREGATE(3,5,$B$3:B99)","v":3},{"$f":"'فصل شيفت'!A104","v":"كنافه عجوه"},{"$f":"'فصل شيفت'!E104","v":0}]
[{"$f":"_xlfn.AGGREGATE(3,5,$B$3:B100)","v":3},{"$f":"'فصل شيفت'!A105","v":"كنافه بورمه فستق"},{"$f":"'فصل شيفت'!E105","v":0}]
[{"$f":"_xlfn.AGGREGATE(3,5,$B$3:B101)","v":3},{"$f":"'فصل شيفت'!A106","v":"كنافه بورمه بندق"},{"$f":"'فصل شيفت'!E106","v":0}]
[{"$f":"_xlfn.AGGREGATE(3,5,$B$3:B102)","v":3},{"$f":"'فصل شيفت'!A107","v":"كنافه دمياطي"},{"$f":"'فصل شيفت'!E107","v":0}]
[{"$f":"_xlfn.AGGREGATE(3,5,$B$3:B103)","v":3},{"$f":"'فصل شيفت'!A108","v":"رموش / هريسه"},{"$f":"'فصل شيفت'!E108","v":1.7}]
[{"$f":"_xlfn.AGGREGATE(3,5,$B$3:B104)","v":3},{"$f":"'فصل شيفت'!A109","v":"كـنـافـة تـمـر سـعـودي"},{"$f":"'فصل شيفت'!E109","v":0}]
[{"$f":"_xlfn.AGGREGATE(3,5,$B$3:B105)","v":3},{"$f":"'فصل شيفت'!A110","v":"رطب شو"},{"$f":"'فصل شيفت'!E110","v":0}]
[{"$f":"_xlfn.AGGREGATE(3,5,$B$3:B106)","v":3},{"$f":"'فصل شيفت'!A111","v":"فورمه بسبوسه ساده"},{"$f":"'فصل شيفت'!E111","v":2}]
[{"$f":"_xlfn.AGGREGATE(3,5,$B$3:B107)","v":3},{"$f":"'فصل شيفت'!A112","v":"فورمه بسبوسه مكسرات"},{"$f":"'فصل شيفت'!E112","v":2}]
[{"$f":"_xlfn.AGGREGATE(3,5,$B$3:B108)","v":3},{"$f":"'فصل شيفت'!A113","v":"فورمة كنافة كريمة"},{"$f":"'فصل شيفت'!E113","v":0}]
[{"$f":"_xlfn.AGGREGATE(3,5,$B$3:B109)","v":3},{"$f":"'فصل شيفت'!A114","v":"فورمه كنافه مكسرات"},{"$f":"'فصل شيفت'!E114","v":0}]
[{"$f":"_xlfn.AGGREGATE(3,5,$B$3:B110)","v":3},{"$f":"'فصل شيفت'!A115","v":"مشكل مقليات"},{"$f":"'فصل شيفت'!E115","v":0}]
[{"$f":"_xlfn.AGGREGATE(3,5,$B$3:B111)","v":3},{"$f":"'فصل شيفت'!A116","v":"صوابع زينب / زلابيا"},{"$f":"'فصل شيفت'!E116","v":0}]
[{"$f":"_xlfn.AGGREGATE(3,5,$B$3:B112)","v":3},{"$f":"'فصل شيفت'!A117","v":"بلح شام ساده"},{"$f":"'فصل شيفت'!E117","v":0}]
[{"$f":"_xlfn.AGGREGATE(3,5,$B$3:B113)","v":3},{"$f":"'فصل شيفت'!A118","v":"أصابع السلطان"},{"$f":"'فصل شيفت'!E118","v":0}]
[{"$f":"_xlfn.AGGREGATE(3,5,$B$3:B114)","v":3},{"$f":"'فصل شيفت'!A119","v":"قطايف مكسرات"},{"$f":"'فصل شيفت'!E119","v":0}]
[{"$f":"_xlfn.AGGREGATE(3,5,$B$3:B115)","v":3},{"$f":"'فصل شيفت'!A120","v":"بغاشا"},{"$f":"'فصل شيفت'!E120","v":0}]
[{"$f":"_xlfn.AGGREGATE(3,5,$B$3:B116)","v":3},{"$f":"'فصل شيفت'!A121","v":"خبز دايت"},{"$f":"'فصل شيفت'!E121","v":0}]
[{"$f":"_xlfn.AGGREGATE(3,5,$B$3:B117)","v":3},{"$f":"'فصل شيفت'!A122","v":"ميني بان 1/2 كيلو "},{"$f":"'فصل شيفت'!E122","v":5}]
[{"$f":"_xlfn.AGGREGATE(3,5,$B$3:B118)","v":3},{"$f":"'فصل شيفت'!A123","v":"ميني بان"},{"$f":"'فصل شيفت'!E123","v":0}]
[{"$f":"_xlfn.AGGREGATE(3,5,$B$3:B119)","v":3},{"$f":"'فصل شيفت'!A124","v":"ميني بيتزا"},{"$f":"'فصل شيفت'!E124","v":5}]
[{"$f":"_xlfn.AGGREGATE(3,5,$B$3:B120)","v":3},{"$f":"'فصل شيفت'!A125","v":"مينى ديب"},{"$f":"'فصل شيفت'!E125","v":3}]
[{"$f":"_xlfn.AGGREGATE(3,5,$B$3:B121)","v":3},{"$f":"'فصل شيفت'!A126","v":"حوادق (كرواسون كيري)"},{"$f":"'فصل شيفت'!E126","v":0}]
[{"$f":"_xlfn.AGGREGATE(3,5,$B$3:B122)","v":3},{"$f":"'فصل شيفت'!A127","v":"كيك شاى 1/2 ك"},{"$f":"'فصل شيفت'!E127","v":0}]
[{"$f":"_xlfn.AGGREGATE(3,5,$B$3:B123)","v":3},{"$f":"'فصل شيفت'!A128","v":"قالب كيك"},{"$f":"'فصل شيفت'!E128","v":0}]
[{"$f":"_xlfn.AGGREGATE(3,5,$B$3:B124)","v":3},{"$f":"'فصل شيفت'!A129","v":"قراقيش ساده /رايب"},{"$f":"'فصل شيفت'!E129","v":0}]
[{"$f":"_xlfn.AGGREGATE(3,5,$B$3:B125)","v":3},{"$f":"'فصل شيفت'!A130","v":"قراقيش عجوه"},{"$f":"'فصل شيفت'!E130","v":0}]
[{"$f":"_xlfn.AGGREGATE(3,5,$B$3:B126)","v":3},{"$f":"'فصل شيفت'!A131","v":"معمول عجوة"},{"$f":"'فصل شيفت'!E131","v":0}]
[{"$f":"_xlfn.AGGREGATE(3,5,$B$3:B127)","v":3},{"$f":"'فصل شيفت'!A132","v":"بسكوتات"},{"$f":"'فصل شيفت'!E132","v":0}]
[{"$f":"_xlfn.AGGREGATE(3,5,$B$3:B128)","v":3},{"$f":"'فصل شيفت'!A133","v":"بسكوت كوكيز/شوكلت/زبيب/ بالمية"},{"$f":"'فصل شيفت'!E133","v":0}]
[{"$f":"_xlfn.AGGREGATE(3,5,$B$3:B129)","v":3},{"$f":"'فصل شيفت'!A135","v":"سابيله / غريبه / بيتى فور"},{"$f":"'فصل شيفت'!E135","v":0}]
[{"$f":"_xlfn.AGGREGATE(3,5,$B$3:B130)","v":3},{"$f":"'فصل شيفت'!A136","v":"كريسينا"},{"$f":"'فصل شيفت'!E136","v":0}]
[{"$f":"_xlfn.AGGREGATE(3,5,$B$3:B131)","v":3},{"$f":"'فصل شيفت'!A137","v":"باتون ساليه"},{"$f":"'فصل شيفت'!E137","v":0}]
[{"$f":"_xlfn.AGGREGATE(3,5,$B$3:B132)","v":3},{"$f":"'فصل شيفت'!A138","v":"برازق"},{"$f":"'فصل شيفت'!E138","v":0}]
[{"$f":"_xlfn.AGGREGATE(3,5,$B$3:B133)","v":3},{"$f":"'فصل شيفت'!A139","v":"كحك ساده"},{"$f":"'فصل شيفت'!E139","v":0}]
[{"$f":"_xlfn.AGGREGATE(3,5,$B$3:B134)","v":3},{"$f":"'فصل شيفت'!A140","v":"كحك عين جمل"},{"$f":"'فصل شيفت'!E140","v":0}]
[{"$f":"_xlfn.AGGREGATE(3,5,$B$3:B135)","v":3},{"$f":"'فصل شيفت'!A141","v":"كحك فستق"},{"$f":"'فصل شيفت'!E141","v":0}]
[{"$f":"_xlfn.AGGREGATE(3,5,$B$3:B136)","v":3},{"$f":"'فصل شيفت'!A142","v":"كحك مكسرات"},{"$f":"'فصل شيفت'!E142","v":0}]
[{"$f":"_xlfn.AGGREGATE(3,5,$B$3:B137)","v":3},{"$f":"'فصل شيفت'!A143","v":"كحك ملبن ساده"},{"$f":"'فصل شيفت'!E143","v":0}]
[{"$f":"_xlfn.AGGREGATE(3,5,$B$3:B138)","v":3},{"$f":"'فصل شيفت'!A144","v":"امبلاج"},{"$f":"'فصل شيفت'!E144","v":0}]
[{"$f":"_xlfn.AGGREGATE(3,5,$B$3:B139)","v":3},{"$f":"'فصل شيفت'!A145","v":"شيكولاته ميكس الصياد"},{"$f":"'فصل شيفت'!E145","v":0}]
[{"$f":"_xlfn.AGGREGATE(3,5,$B$3:B140)","v":3},{"$f":"'فصل شيفت'!A146","v":"علبة التوفير 800. جرام حلاوة مولد"},{"$f":"'فصل شيفت'!E146","v":0}]
[{"$f":"_xlfn.AGGREGATE(3,5,$B$3:B141)","v":3},{"$f":"'فصل شيفت'!A147","v":"علبة مشكل 1 ك فيستفال"},{"$f":"'فصل شيفت'!E147","v":0}]
[{"$f":"_xlfn.AGGREGATE(3,5,$B$3:B142)","v":3},{"$f":"'فصل شيفت'!A148","v":"علبة 1.5 ك مشكل كلاسيك"},{"$f":"'فصل شيفت'!E148","v":0}]
[{"$f":"_xlfn.AGGREGATE(3,5,$B$3:B143)","v":3},{"$f":"'فصل شيفت'!A149","v":"علبة مشكل كرنفال صاج 1.5 ك"},{"$f":"'فصل شيفت'!E149","v":0}]
[{"$f":"_xlfn.AGGREGATE(3,5,$B$3:B144)","v":3},{"$f":"'فصل شيفت'!A150","v":"علبة مكسات 1.5 ك"},{"$f":"'فصل شيفت'!E150","v":0}]
[{"$f":"_xlfn.AGGREGATE(3,5,$B$3:B145)","v":3},{"$f":"'فصل شيفت'!A151","v":"علبة جواهر 1.5 ك "},{"$f":"'فصل شيفت'!E151","v":0}]
[{"$f":"_xlfn.AGGREGATE(3,5,$B$3:B146)","v":3},{"$f":"'فصل شيفت'!A152","v":"علبة جزرية سوداني 1/2 ك"},{"$f":"'فصل شيفت'!E152","v":0}]
[{"$f":"_xlfn.AGGREGATE(3,5,$B$3:B147)","v":3},{"$f":"'فصل شيفت'!A153","v":"علبة مشكل فرحة المولد 1.5 ك "},{"$f":"'فصل شيفت'!E153","v":0}]
[{"$f":"_xlfn.AGGREGATE(3,5,$B$3:B148)","v":3},{"$f":"'فصل شيفت'!A154","v":"علبة الليلة الكبيرة 2.2 ك"},{"$f":"'فصل شيفت'!E154","v":0}]
[{"$f":"_xlfn.AGGREGATE(3,5,$B$3:B149)","v":3},{"$f":"'فصل شيفت'!A155","v":"علبة كنوز 2.5 ك "},{"$f":"'فصل شيفت'!E155","v":0}]
[{"$f":"_xlfn.AGGREGATE(3,5,$B$3:B150)","v":3},{"$f":"'فصل شيفت'!A156","v":"علبة مشكل علف 1/2 ك "},{"$f":"'فصل شيفت'!E156","v":0}]
[{"$f":"_xlfn.AGGREGATE(3,5,$B$3:B151)","v":3},{"$f":"'فصل شيفت'!A157","v":"علبة مشكل علف 1 ك "},{"$f":"'فصل شيفت'!E157","v":0}]
[{"$f":"_xlfn.AGGREGATE(3,5,$B$3:B152)","v":3},{"$f":"'فصل شيفت'!A158","v":"علبة علف سوداني 1/2 ك"},{"$f":"'فصل شيفت'!E158","v":0}]
[{"$f":"_xlfn.AGGREGATE(3,5,$B$3:B153)","v":3},{"$f":"'فصل شيفت'!A159","v":"علبة قرص حمصية 1/2 ك"},{"$f":"'فصل شيفت'!E159","v":0}]
[{"$f":"_xlfn.AGGREGATE(3,5,$B$3:B154)","v":3},{"$f":"'فصل شيفت'!A160","v":"علبة مشكل مربات 1/2 ك "},{"$f":"'فصل شيفت'!E160","v":0}]
[{"$f":"_xlfn.AGGREGATE(3,5,$B$3:B155)","v":3},{"$f":"'فصل شيفت'!A161","v":" قشطة مارشيملو "},{"$f":"'فصل شيفت'!E161","v":0}]
[{"$f":"_xlfn.AGGREGATE(3,5,$B$3:B156)","v":3},{"$f":"'فصل شيفت'!A162","v":"علبة ملبن فواكه 1/2 ك "},{"$f":"'فصل شيفت'!E162","v":0}]
[{"$f":"_xlfn.AGGREGATE(3,5,$B$3:B157)","v":3},{"$f":"'فصل شيفت'!A163","v":"علبة نوجا سوداني 1/4 ك"},{"$f":"'فصل شيفت'!E163","v":0}]
[{"$f":"_xlfn.AGGREGATE(3,5,$B$3:B158)","v":3},{"$f":"'فصل شيفت'!A164","v":"علبة ملبن حبل عين جمل 1/2 ك"},{"$f":"'فصل شيفت'!E164","v":0}]
[{"$f":"_xlfn.AGGREGATE(3,5,$B$3:B159)","v":3},{"$f":"'فصل شيفت'!A165","v":"علبة بندقية 1/4 ك"},{"$f":"'فصل شيفت'!E165","v":0}]
[{"$f":"_xlfn.AGGREGATE(3,5,$B$3:B160)","v":3},{"$f":"'فصل شيفت'!A166","v":"علبة لوزية 1/4 ك"},{"$f":"'فصل شيفت'!E166","v":0}]
[{"$f":"_xlfn.AGGREGATE(3,5,$B$3:B161)","v":3},{"$f":"'فصل شيفت'!A167","v":"علبة القرمشة 1/2 ك "},{"$f":"'فصل شيفت'!E167","v":0}]
[{"$f":"_xlfn.AGGREGATE(3,5,$B$3:B162)","v":3},{"$f":"'فصل شيفت'!A168","v":"علبة شيكولاته مشكلة 650 جم"},{"$f":"'فصل شيفت'!E168","v":0}]
[{"$f":"_xlfn.AGGREGATE(3,5,$B$3:B163)","v":3},{"$f":"'فصل شيفت'!A169","v":" كنافة مانجو كبير / بولة مركب"},{"$f":"'فصل شيفت'!E169","v":0}]
[{"$f":"_xlfn.AGGREGATE(3,5,$B$3:B164)","v":3},{"$f":"'فصل شيفت'!A170","v":" كنافة مانجو ديو نوتيلا وسط"},{"$f":"'فصل شيفت'!E170","v":0}]
[{"$f":"_xlfn.AGGREGATE(3,5,$B$3:B165)","v":3},{"$f":"'فصل شيفت'!A171","v":" كنافة مانجو ديو نوتيلا كبير"},{"$f":"'فصل شيفت'!E171","v":0}]
[{"$f":"_xlfn.AGGREGATE(3,5,$B$3:B166)","v":3},{"$f":"'فصل شيفت'!A172","v":"قشطوطه دبي "},{"$f":"'فصل شيفت'!E172","v":0}]
[{"$f":"_xlfn.AGGREGATE(3,5,$B$3:B167)","v":3},{"$f":"'فصل شيفت'!A173","v":"اساتوك"},{"$f":"'فصل شيفت'!E173","v":0}]
[{"$f":"_xlfn.AGGREGATE(3,5,$B$3:B168)","v":3},{"$f":"'فصل شيفت'!A174","v":"كب كنافة  صغير"},{"$f":"'فصل شيفت'!E174","v":0}]
[{"$f":"_xlfn.AGGREGATE(3,5,$B$3:B169)","v":3},{"$f":"'فصل شيفت'!A175","v":"عصير سوبيا"},{"$f":"'فصل شيفت'!E175","v":0}]
[{"$f":"_xlfn.AGGREGATE(3,5,$B$3:B170)","v":3},{"$f":"'فصل شيفت'!A176","v":"عصير مانجو فريش"},{"$f":"'فصل شيفت'!E176","v":0}]
[{"$f":"_xlfn.AGGREGATE(3,5,$B$3:B171)","v":3},{"$f":"'فصل شيفت'!A177","v":"عصير تمر هندى"},{"$f":"'فصل شيفت'!E177","v":0}]
[{"$f":"_xlfn.AGGREGATE(3,5,$B$3:B172)","v":3},{"$f":"'فصل شيفت'!A178","v":"عصير دووم"},{"$f":"'فصل شيفت'!E178","v":0}]
[{"$f":"_xlfn.AGGREGATE(3,5,$B$3:B173)","v":3},{"$f":"'فصل شيفت'!A179","v":"عصير عناب"},{"$f":"'فصل شيفت'!E179","v":0}]
[{"$f":"_xlfn.AGGREGATE(3,5,$B$3:B174)","v":3},{"$f":"'فصل شيفت'!A180","v":"عصير بطيخ"},{"$f":"'فصل شيفت'!E180","v":0}]
[{"$f":"_xlfn.AGGREGATE(3,5,$B$3:B175)","v":3},{"$f":"'فصل شيفت'!A181","v":"عصير بلح"},{"$f":"'فصل شيفت'!E181","v":0}]
[{"$f":"_xlfn.AGGREGATE(3,5,$B$3:B176)","v":3},{"$f":"'فصل شيفت'!A182","v":"عصير خروب"},{"$f":"'فصل شيفت'!E182","v":0}]
[{"$f":"_xlfn.AGGREGATE(3,5,$B$3:B177)","v":3},{"$f":"'فصل شيفت'!A183","v":"عصير توت"},{"$f":"'فصل شيفت'!E183","v":0}]
[{"$f":"_xlfn.AGGREGATE(3,5,$B$3:B178)","v":3},{"$f":"'فصل شيفت'!A184","v":"عصير فراوله"},{"$f":"'فصل شيفت'!E184","v":0}]
[{"$f":"_xlfn.AGGREGATE(3,5,$B$3:B179)","v":3},{"$f":"'فصل شيفت'!A185","v":"وجــبــة بـطـيـخ"},{"$f":"'فصل شيفت'!E185","v":0}]
[{"$f":"_xlfn.AGGREGATE(3,5,$B$3:B180)","v":3},{"$f":"'فصل شيفت'!A186","v":"وجــبــة بـلـح "},{"$f":"'فصل شيفت'!E186","v":0}]
[{"$f":"_xlfn.AGGREGATE(3,5,$B$3:B181)","v":3},{"$f":"'فصل شيفت'!A187","v":"كنافه بين نارين كريمة"},{"$f":"'فصل شيفت'!E187","v":0}]
[{"$f":"_xlfn.AGGREGATE(3,5,$B$3:B182)","v":3},{"$f":"'فصل شيفت'!A188","v":"كنافه بين نارين كريمة لوتس"},{"$f":"'فصل شيفت'!E188","v":0}]
[{"$f":"_xlfn.AGGREGATE(3,5,$B$3:B183)","v":3},{"$f":"'فصل شيفت'!A189","v":"كنافه بين نارين نوتيلا"},{"$f":"'فصل شيفت'!E189","v":0}]
[{"$f":"_xlfn.AGGREGATE(3,5,$B$3:B184)","v":3},{"$f":"'فصل شيفت'!A190","v":"كسكسي بلبن ومكسرات"},{"$f":"'فصل شيفت'!E190","v":0}]
[{"$f":"_xlfn.AGGREGATE(3,5,$B$3:B185)","v":3},{"$f":"'فصل شيفت'!A191","v":"بسبوسة بين نارين بالقشطة"},{"$f":"'فصل شيفت'!E191","v":0}]
[{"$f":"_xlfn.AGGREGATE(3,5,$B$3:B186)","v":3},{"$f":"'فصل شيفت'!A192","v":"زلابيا"},{"$f":"'فصل شيفت'!E192","v":0}]
[{"$f":"_xlfn.AGGREGATE(3,5,$B$3:B187)","v":3},{"$f":"'فصل شيفت'!A193","v":"زلابيا ص"},{"$f":"'فصل شيفت'!E193","v":0}]
[{"$f":"_xlfn.AGGREGATE(3,5,$B$3:B188)","v":3},{"$f":"'فصل شيفت'!A194","v":"زلابيا ك"},{"$f":"'فصل شيفت'!E194","v":0}]
[{"$f":"_xlfn.AGGREGATE(3,5,$B$3:B189)","v":3},{"$f":"'فصل شيفت'!A195","v":"فطير سادة"},{"$f":"'فصل شيفت'!E195","v":114}]
[{"$f":"_xlfn.AGGREGATE(3,5,$B$3:B190)","v":3},{"$f":"'فصل شيفت'!A196","v":"فطير سكر"},{"$f":"'فصل شيفت'!E196","v":0}]
[{"$f":"_xlfn.AGGREGATE(3,5,$B$3:B191)","v":3},{"$f":"'فصل شيفت'!A197","v":"فطير لوتس"},{"$f":"'فصل شيفت'!E197","v":0}]
[{"$f":"_xlfn.AGGREGATE(3,5,$B$3:B192)","v":3},{"$f":"'فصل شيفت'!A198","v":"فطير نوتيلا"},{"$f":"'فصل شيفت'!E198","v":0}]
[{"$f":"_xlfn.AGGREGATE(3,5,$B$3:B193)","v":3},{"$f":"'فصل شيفت'!A199","v":"فطير اوريو"},{"$f":"'فصل شيفت'!E199","v":0}]
[{"$f":"_xlfn.AGGREGATE(3,5,$B$3:B194)","v":3},{"$f":"'فصل شيفت'!A200","v":"غلة بليلة سادة وزن"},{"$f":"'فصل شيفت'!E200","v":0}]
[{"$f":"_xlfn.AGGREGATE(3,5,$B$3:B195)","v":3},{"$f":"'فصل شيفت'!A201","v":"بليلة مكسرات"},{"$f":"'فصل شيفت'!E201","v":0}]
[{"$f":"_xlfn.AGGREGATE(3,5,$B$3:B196)","v":3},{"$f":"'فصل شيفت'!A202","v":"بليلة اسبيشيال"},{"$f":"'فصل شيفت'!E202","v":0}]
[{"$f":"_xlfn.AGGREGATE(3,5,$B$3:B197)","v":3},{"$f":"'فصل شيفت'!A203","v":"بليلة سوبر اسبيشيال"},{"$f":"'فصل شيفت'!E203","v":0}]
[{"$f":"_xlfn.AGGREGATE(3,5,$B$3:B198)","v":3},{"$f":"'فصل شيفت'!A204","v":"استيك ايس كريم"},{"$f":"'فصل شيفت'!E204","v":0}]
[{"$f":"_xlfn.AGGREGATE(3,5,$B$3:B199)","v":3},{"$f":"'فصل شيفت'!A205","v":"بسكوت/بوله فاضي"},{"$f":"'فصل شيفت'!E205","v":1000}]
[{"$f":"_xlfn.AGGREGATE(3,5,$B$3:B200)","v":3},{"$f":"'فصل شيفت'!A206","v":"بسكوته صوص ورده"},{"$f":"'فصل شيفت'!E206","v":0}]
[{"$f":"_xlfn.AGGREGATE(3,5,$B$3:B201)","v":3},{"$f":"'فصل شيفت'!A207","v":"جيلى ساده"},{"$f":"'فصل شيفت'!E207","v":0}]
[{"$f":"_xlfn.AGGREGATE(3,5,$B$3:B202)","v":3},{"$f":"'فصل شيفت'!A208","v":"شمع ارقام"},{"$f":"'فصل شيفت'!E208","v":0}]
[{"$f":"_xlfn.AGGREGATE(3,5,$B$3:B203)","v":3},{"$f":"'فصل شيفت'!A209","v":"عاشورة سادة"},{"$f":"'فصل شيفت'!E209","v":0}]
[{"$f":"_xlfn.AGGREGATE(3,5,$B$3:B204)","v":3},{"$f":"'فصل شيفت'!A210","v":"عاشورة مكسرات"},{"$f":"'فصل شيفت'!E210","v":0}]
[{"$f":"_xlfn.AGGREGATE(3,5,$B$3:B205)","v":3},{"$f":"'فصل شيفت'!A211","v":"علبة فرحة العيد"},{"$f":"'فصل شيفت'!E211","v":0}]
[{"$f":"_xlfn.AGGREGATE(3,5,$B$3:B206)","v":3},{"$f":"'فصل شيفت'!A212","v":"مسقسقة"},{"$f":"'فصل شيفت'!E212","v":0}]
[{"$f":"_xlfn.AGGREGATE(3,5,$B$3:B207)","v":3},{"$f":"'فصل شيفت'!A213","v":"مشكل جبن"},{"$f":"'فصل شيفت'!E213","v":0}]
[{"$f":"_xlfn.AGGREGATE(3,5,$B$3:B208)","v":3},{"$f":"'فصل شيفت'!A214","v":"مشكل رمضان"},{"$f":"'فصل شيفت'!E214","v":0}]
[{"$f":"_xlfn.AGGREGATE(3,5,$B$3:B209)","v":3},{"$f":"'فصل شيفت'!A215","v":"كريمة - خام"},{"$f":"'فصل شيفت'!E215","v":0}]
[{"$f":"_xlfn.AGGREGATE(3,5,$B$3:B210)","v":3},{"$f":"'فصل شيفت'!A216","v":"مشكل لحوم"},{"$f":"'فصل شيفت'!E216","v":0}]
[{"$f":"_xlfn.AGGREGATE(3,5,$B$3:B211)","v":3},{"$f":"'فصل شيفت'!A217","v":"كانز"},{"$f":"'فصل شيفت'!E217","v":0}]
[{"$f":"_xlfn.AGGREGATE(3,5,$B$3:B212)","v":4},{"$f":"'فصل شيفت'!A218","v":"مياة معدنية"},{"$f":"'فصل شيفت'!E218","v":120}]
[{"$f":"_xlfn.AGGREGATE(3,5,$B$3:B213)","v":4},{"$f":"'فصل شيفت'!A219","v":"كانز كبير - كافيتريا 20ج"},{"$f":"'فصل شيفت'!E219","v":0}]
[{"$f":"_xlfn.AGGREGATE(3,5,$B$3:B214)","v":4},{"$f":"'فصل شيفت'!A220","v":"مياة معدنيه كاقتيريا"},{"$f":"'فصل شيفت'!E220","v":0}]
[{"$f":"_xlfn.AGGREGATE(3,5,$B$3:B215)","v":4},{"$f":"'فصل شيفت'!A221","v":"كانز صغير تيك اوي 20ج"},{"$f":"'فصل شيفت'!E221","v":0}]
[{"$f":"_xlfn.AGGREGATE(3,5,$B$3:B216)","v":4},{"$f":"'فصل شيفت'!A222","v":"مياة معدنية تيك اوي"},{"$f":"'فصل شيفت'!E222","v":0}]
[{"$f":"_xlfn.AGGREGATE(3,5,$B$3:B217)","v":4},{"$f":"'فصل شيفت'!A223","v":"فاكهة تقطيع وزن"},{"$f":"'فصل شيفت'!E223","v":0}]
[{"$f":"_xlfn.AGGREGATE(3,5,$B$3:B218)","v":4},{"$f":"'فصل شيفت'!A224","v":"فخفخينا بالايس كريم"},{"$f":"'فصل شيفت'!E224","v":0}]
[{"$f":"_xlfn.AGGREGATE(3,5,$B$3:B219)","v":4},{"$f":"'فصل شيفت'!A225","v":"فروت سلاط كريمة"},{"$f":"'فصل شيفت'!E225","v":0}]
[{"$f":"_xlfn.AGGREGATE(3,5,$B$3:B220)","v":4},{"$f":"'فصل شيفت'!A226","v":"فروت سلاط توينكي"},{"$f":"'فصل شيفت'!E226","v":0}]
[{"$f":"_xlfn.AGGREGATE(3,5,$B$3:B221)","v":4},{"$f":"'فصل شيفت'!A227","v":"قهوة تركي"},{"$f":"'فصل شيفت'!E227","v":0}]
[{"$f":"_xlfn.AGGREGATE(3,5,$B$3:B222)","v":4},{"$f":"'فصل شيفت'!A228","v":"بن فليفر بندق"},{"$f":"'فصل شيفت'!E228","v":0}]
[{"$f":"_xlfn.AGGREGATE(3,5,$B$3:B223)","v":4},{"$f":"'فصل شيفت'!A229","v":"بن اسبريسو وزن"},{"$f":"'فصل شيفت'!E229","v":0}]
[{"$f":"_xlfn.AGGREGATE(3,5,$B$3:B224)","v":4},{"$f":"'فصل شيفت'!A230","v":"اسبريسو سنجل"},{"$f":"'فصل شيفت'!E230","v":0}]
[{"$f":"_xlfn.AGGREGATE(3,5,$B$3:B225)","v":4},{"$f":"'فصل شيفت'!A231","v":"اسبريسو دبل"},{"$f":"'فصل شيفت'!E231","v":0}]
[{"$f":"_xlfn.AGGREGATE(3,5,$B$3:B226)","v":4},{"$f":"'فصل شيفت'!A232","v":"شاي سادة"},{"$f":"'فصل شيفت'!E232","v":0}]
[{"$f":"_xlfn.AGGREGATE(3,5,$B$3:B227)","v":5},{"$f":"'فصل شيفت'!A233","v":"شاي نكهات ( اخضر + فراولة + تفاح )"},{"$f":"'فصل شيفت'!E233","v":25}]
[{"$f":"_xlfn.AGGREGATE(3,5,$B$3:B228)","v":6},{"$f":"'فصل شيفت'!A234","v":"عجين كبير"},{"$f":"'فصل شيفت'!E234","v":64}]
[{"$f":"_xlfn.AGGREGATE(3,5,$B$3:B229)","v":7},{"$f":"'فصل شيفت'!A235","v":"عجين وسط"},{"$f":"'فصل شيفت'!E235","v":15}]
[{"$f":"_xlfn.AGGREGATE(3,5,$B$3:B230)","v":8},{"$f":"'فصل شيفت'!A236","v":"حشو بيتزا - سلامي L"},{"$f":"'فصل شيفت'!E236","v":2}]
[{"$f":"_xlfn.AGGREGATE(3,5,$B$3:B231)","v":9},{"$f":"'فصل شيفت'!A237","v":"حشو بيتزا - سلامي M"},{"$f":"'فصل شيفت'!E237","v":6}]
[{"$f":"_xlfn.AGGREGATE(3,5,$B$3:B232)","v":10},{"$f":"'فصل شيفت'!A238","v":"حشو بيتزا - سوبر سوبريم L"},{"$f":"'فصل شيفت'!E238","v":10}]
[{"$f":"_xlfn.AGGREGATE(3,5,$B$3:B233)","v":11},{"$f":"'فصل شيفت'!A239","v":"حشو بيتزا - سوبر سوبريم M"},{"$f":"'فصل شيفت'!E239","v":8}]
[{"$f":"_xlfn.AGGREGATE(3,5,$B$3:B234)","v":12},{"$f":"'فصل شيفت'!A240","v":"حشو بيتزا - صياد L"},{"$f":"'فصل شيفت'!E240","v":1}]
[{"$f":"_xlfn.AGGREGATE(3,5,$B$3:B235)","v":12},{"$f":"'فصل شيفت'!A241","v":"حشو بيتزا - صياد M"},{"$f":"'فصل شيفت'!E241","v":3}]
[{"$f":"_xlfn.AGGREGATE(3,5,$B$3:B236)","v":13},{"$f":"'فصل شيفت'!A242","v":"حشو بيتزا - شاورما لحم L"},{"$f":"'فصل شيفت'!E242","v":3}]
[{"$f":"_xlfn.AGGREGATE(3,5,$B$3:B237)","v":14},{"$f":"'فصل شيفت'!A243","v":"حشو بيتزا - شاورما لحم M"},{"$f":"'فصل شيفت'!E243","v":5}]
[{"$f":"_xlfn.AGGREGATE(3,5,$B$3:B238)","v":15},{"$f":"'فصل شيفت'!A244","v":"حشو بيتزا - سجق L"},{"$f":"'فصل شيفت'!E244","v":3}]
[{"$f":"_xlfn.AGGREGATE(3,5,$B$3:B239)","v":16},{"$f":"'فصل شيفت'!A245","v":"حشو بيتزا - سجق M"},{"$f":"'فصل شيفت'!E245","v":7}]
[{"$f":"_xlfn.AGGREGATE(3,5,$B$3:B240)","v":17},{"$f":"'فصل شيفت'!A246","v":"حشو بيتزا - لحمه مفرومه L"},{"$f":"'فصل شيفت'!E246","v":1}]
[{"$f":"_xlfn.AGGREGATE(3,5,$B$3:B241)","v":18},{"$f":"'فصل شيفت'!A247","v":"حشو بيتزا - لحمه مفرومه M"},{"$f":"'فصل شيفت'!E247","v":8}]
[{"$f":"_xlfn.AGGREGATE(3,5,$B$3:B242)","v":19},{"$f":"'فصل شيفت'!A248","v":"حشو بيتزا - هوت دوج L"},{"$f":"'فصل شيفت'!E248","v":4}]
[{"$f":"_xlfn.AGGREGATE(3,5,$B$3:B243)","v":20},{"$f":"'فصل شيفت'!A249","v":"حشو بيتزا - هوت دوج M"},{"$f":"'فصل شيفت'!E249","v":3}]
[{"$f":"_xlfn.AGGREGATE(3,5,$B$3:B244)","v":21},{"$f":"'فصل شيفت'!A250","v":"حشو بيتزا - سي فود L"},{"$f":"'فصل شيفت'!E250","v":6}]
[{"$f":"_xlfn.AGGREGATE(3,5,$B$3:B245)","v":22},{"$f":"'فصل شيفت'!A251","v":"حشو بيتزا - سي فود M"},{"$f":"'فصل شيفت'!E251","v":6}]
[{"$f":"_xlfn.AGGREGATE(3,5,$B$3:B246)","v":23},{"$f":"'فصل شيفت'!A252","v":"حشو بيتزا - جمبري L"},{"$f":"'فصل شيفت'!E252","v":9}]
[{"$f":"_xlfn.AGGREGATE(3,5,$B$3:B247)","v":23},{"$f":"'فصل شيفت'!A253","v":"حشو بيتزا - جمبري M"},{"$f":"'فصل شيفت'!E253","v":6}]
[{"$f":"_xlfn.AGGREGATE(3,5,$B$3:B248)","v":24},{"$f":"'فصل شيفت'!A254","v":"حشو بيتزا - سوبريم دجاج L"},{"$f":"'فصل شيفت'!E254","v":2}]
[{"$f":"_xlfn.AGGREGATE(3,5,$B$3:B249)","v":25},{"$f":"'فصل شيفت'!A255","v":"حشو بيتزا - سوبريم دجاج M"},{"$f":"'فصل شيفت'!E255","v":7}]
[{"$f":"_xlfn.AGGREGATE(3,5,$B$3:B250)","v":26},{"$f":"'فصل شيفت'!A256","v":"حشو بيتزا - شاورما فراخ L"},{"$f":"'فصل شيفت'!E256","v":4}]
[{"$f":"_xlfn.AGGREGATE(3,5,$B$3:B251)","v":26},{"$f":"'فصل شيفت'!A257","v":"حشو بيتزا - شاورما فراخ M"},{"$f":"'فصل شيفت'!E257","v":3}]
[{"$f":"_xlfn.AGGREGATE(3,5,$B$3:B252)","v":27},{"$f":"'فصل شيفت'!A258","v":"حشو بيتزا - زنجر سوبريم L"},{"$f":"'فصل شيفت'!E258","v":2}]
[{"$f":"_xlfn.AGGREGATE(3,5,$B$3:B253)","v":28},{"$f":"'فصل شيفت'!A259","v":"حشو بيتزا - زنجر سوبريم M"},{"$f":"'فصل شيفت'!E259","v":3}]
[{"$f":"_xlfn.AGGREGATE(3,5,$B$3:B254)","v":28},{"$f":"'فصل شيفت'!A260","v":"حشو بيتزا - شيش L"},{"$f":"'فصل شيفت'!E260","v":4}]
[{"$f":"_xlfn.AGGREGATE(3,5,$B$3:B255)","v":28},{"$f":"'فصل شيفت'!A261","v":"حشو بيتزا - شيش M"},{"$f":"'فصل شيفت'!E261","v":1}]
[{"$f":"_xlfn.AGGREGATE(3,5,$B$3:B256)","v":29},{"$f":"'فصل شيفت'!A262","v":"حشو بيتزا - بسطرمه L"},{"$f":"'فصل شيفت'!E262","v":4}]
[{"$f":"_xlfn.AGGREGATE(3,5,$B$3:B257)","v":30},{"$f":"'فصل شيفت'!A263","v":"حشو بيتزا - بسطرمه M"},{"$f":"'فصل شيفت'!E263","v":2}]
[{"$f":"_xlfn.AGGREGATE(3,5,$B$3:B258)","v":30},{"$f":"'فصل شيفت'!A264","v":"حشو بيتزا - تونة M"},{"$f":"'فصل شيفت'!E264","v":0}]
[{"$f":"_xlfn.AGGREGATE(3,5,$B$3:B259)","v":31},{"$f":"'فصل شيفت'!A265","v":"جبنة موتزريلا - بيتزا"},{"$f":"'فصل شيفت'!E265","v":7.4}]
[{"$f":"_xlfn.AGGREGATE(3,5,$B$3:B260)","v":32},{"$f":"'فصل شيفت'!A266","v":"جبنة موتزريلا - جريل"},{"$f":"'فصل شيفت'!E266","v":0}]
[{"$f":"_xlfn.AGGREGATE(3,5,$B$3:B261)","v":32},{"$f":"'فصل شيفت'!A267","v":"سيخ شاورما فراخ"},{"$f":"'فصل شيفت'!E267","v":0}]
[{"$f":"_xlfn.AGGREGATE(3,5,$B$3:B262)","v":33},{"$f":"'فصل شيفت'!A268","v":"سيخ شاورما لحم"},{"$f":"'فصل شيفت'!E268","v":3.1999999999999993}]
[{"$f":"_xlfn.AGGREGATE(3,5,$B$3:B263)","v":34},{"$f":"'فصل شيفت'!A269","v":"عيش ريتش * 12"},{"$f":"'فصل شيفت'!E269","v":0}]
[{"$f":"_xlfn.AGGREGATE(3,5,$B$3:B264)","v":34},{"$f":"'فصل شيفت'!A271","v":"عيش سوري *25"},{"$f":"'فصل شيفت'!E271","v":22}]
[{"$f":"_xlfn.AGGREGATE(3,5,$B$3:B265)","v":34},{"$f":"'فصل شيفت'!A272","v":"عيش فرنساوي صغير  *5"},{"$f":"'فصل شيفت'!E272","v":0}]
[{"$f":"_xlfn.AGGREGATE(3,5,$B$3:B266)","v":34},{"$f":"'فصل شيفت'!A273","v":"عيش فرنساوي كبير   *4"},{"$f":"'فصل شيفت'!E273","v":0}]
[{"$f":"_xlfn.AGGREGATE(3,5,$B$3:B267)","v":35},{"$f":"'فصل شيفت'!A274","v":"حشو سندوتش  - كبده"},{"$f":"'فصل شيفت'!E274","v":8}]
[{"$f":"_xlfn.AGGREGATE(3,5,$B$3:B268)","v":35},{"$f":"'فصل شيفت'!A275","v":"حشو سندوتش  - برجر"},{"$f":"'فصل شيفت'!E275","v":0}]
[{"$f":"_xlfn.AGGREGATE(3,5,$B$3:B269)","v":36},{"$f":"'فصل شيفت'!A276","v":"حشو سندوتش  - كفته"},{"$f":"'فصل شيفت'!E276","v":0}]
[{"$f":"_xlfn.AGGREGATE(3,5,$B$3:B270)","v":36},{"$f":"'فصل شيفت'!A277","v":"حشو سندوتش  - هوت دوج"},{"$f":"'فصل شيفت'!E277","v":0}]
[{"$f":"_xlfn.AGGREGATE(3,5,$B$3:B271)","v":36},{"$f":"'فصل شيفت'!A278","v":"حشو سندوتش  - بانيه"},{"$f":"'فصل شيفت'!E278","v":0}]
[{"$f":"_xlfn.AGGREGATE(3,5,$B$3:B272)","v":37},{"$f":"'فصل شيفت'!A279","v":"حشو سندوتش  - زنجر"},{"$f":"'فصل شيفت'!E279","v":0}]
[{"$f":"_xlfn.AGGREGATE(3,5,$B$3:B273)","v":37},{"$f":"'فصل شيفت'!A280","v":"حشو سندوتش  - كوردن بلو"},{"$f":"'فصل شيفت'!E280","v":0}]
[null,1]

{"sheet":"اذون صرف واستلام","index":4,"n_rows":57,"n_cols":5,"rows_kept":57,"cut":false,"hidden":false,"merged":[[0,0,0,2],[39,0,39,2],[19,0,19,2]]}
["إذن حركة أصناف بضاعة "]
[null,null,null,null,"نوع الإذن "]
["التاريخ :     ",null,null,null,"وارد                  "]
["مــــــــــــــــن  :   ",null,null,null,"منصرف"]
["إلـــــــــــــــــــى :   "]
[]
["م ","الصنف","الكمية","الوحدة","مـــلاحظــــــــــــــــــــــــــــــــات"]
[1]
[2]
[3]
[4]
[5]
[6]
[7]
[8]
[9]
[10]
["توقيع المحاسب",null,"توقيع السائق",null,"توقيع مدير الفرع"]
[]
["إذن حركة أصناف بضاعة "]
[null,null,null,null,"نوع الإذن "]
["التاريخ :",null,null,null,"وارد"]
["مــــــــــــــــن  :",null,null,null,"منصرف "]
["إلـــــــــــــــــــى :"]
[]
["م ","الصنف","الكمية","الوحدة","مـــلاحظــــــــــــــــــــــــــــــــات"]
[1]
[2]
[3]
[4]
[5]
[6]
[7]
[8]
[9]
[10]
["توقيع المحاسب",null,"توقيع السائق",null,"توقيع مدير الفرع"]
[]
[]
["إذن حركة أصناف بضاعة "]
[null,null,null,null,"نوع الإذن "]
["التاريخ :",null,null,null,"وارد"]
["مــــــــــــــــن  :",null,null,null,"منصرف "]
["إلـــــــــــــــــــى :",null,null,null,"تحويلات"]
[]
["م ","الصنف","الكمية","الوحدة","مـــلاحظــــــــــــــــــــــــــــــــات"]
[1]
[2]
[3]
[4]
[5]
[6]
[7]
[8]
[9]
[10]
["توقيع مدير الفرع",null,"توقيع المحاسب",null,"توقيع السائق"]

{"sheet":"تحويل","index":5,"n_rows":71,"n_cols":6,"rows_kept":71,"cut":false,"hidden":false,"merged":[[7,5,12,5],[39,5,48,5],[59,5,68,5],[23,5,28,5]]}
[null,"إذن حركة أصناف بضاعة "]
[null,null,null,null,null,"نوع الإذن "]
[null,"التاريخ           :      25 /04 /2025",null,null,null,"وارد                 "]
[null,"مــــــــــــــــن    :    فرع شكري القوتلي",null,null,null,"منصرف                 √"]
[null,"إلـــــــــــــــــــى :   الدائري"]
[]
[null,"م ","الصنف","الوحدة","الكمية","مـــلاحظــــــــــــــــــــــــــــــــات"]
[null,1,"قشطات","وزن",null,"تحويل من فرع شكري الي الدائري"]
[null,2]
[null,3]
[null,4]
[null,5]
[null,6]
[null,"توقيع المحاسب",null,"    توقيع السائق",null,"                  توقيع مدير الفرع"]
[null,"أحمد الصواف",null,null,null,"هشام رجب"]
[]
[null,"إذن حركة أصناف بضاعة "]
[null,null,null,null,null,"نوع الإذن "]
[null,"التاريخ           :      25 /04 /2025",null,null,null,"وارد                 "]
[null,"مــــــــــــــــن    :    فرع شكري القوتلي",null,null,null,"منصرف                 √"]
[null,"إلـــــــــــــــــــى :   فرع السبع بنات"]
[]
[null,"م ","الصنف","الكمية","الوحدة","مـــلاحظــــــــــــــــــــــــــــــــات"]
[null,1,"جاتوه كلاسيك","عدد",120,"تحويل من\n فرع شكري القوتلي \nإلي المصنع\n"]
[null,2,"تورت ","عدد ",15]
[null,3,"بسبوسه ساده ","وزن",1.95]
[null,4]
[null,5]
[null,6]
[null,"توقيع المحاسب",null,"  توقيع السائق",null,"                        توقيع مدير الفرع"]
[null,"مصطفي عيد ",null,null,null,"                هشام رجب"]
[]
[null,"إذن حركة أصناف بضاعة "]
[null,null,null,null,null,"نوع الإذن "]
[null,"التاريخ           :    31 /1 /2025",null,null,null,"وارد                  "]
[null,"مــــــــــــــــن    :    فرع شكري القوتلي",null,null,null,"منصرف                √"]
[null,"إلـــــــــــــــــــى :   فرع الدائري"]
[]
[null,"م ","الصنف","الكمية","الوحدة","مـــلاحظــــــــــــــــــــــــــــــــات"]
[null,1,"قراقيش سادة",null,"عدد","تحويل من \nفرع شكري القوتلي\n إلي \n"]
[null,2,"باتون سالية",null,"عدد"]
[null,3,"كيك شاي",null,"عدد"]
[null,4,"سابلية",null,"عدد"]
[null,5,"بيتي فور",null,"عدد"]
[null,6,"غريبة",null,"عدد"]
[null,7,"كوكيز",null,"عدد"]
[null,8,"فطير",null,"عدد"]
[null,9,"قشطات",null,"وزن"]
[null,10,"رموش / هريسه",null,"وزن"]
[null,"توقيع المحاسب",null,"            توقيع السائق",null,"                                  توقيع مدير الفرع"]
[null,"أحمد الصواف",null,null,null,"                                        محمود خضر"]
[]
[null,"إذن حركة أصناف بضاعة "]
[null,null,null,null,null,"نوع الإذن "]
[null,"التاريخ           :       23 /01 //2025",null,null,null,"وارد                 "]
[null,"مــــــــــــــــن    :    فرع شكري القوتلي",null,null,null,"منصرف                 √"]
[null,"إلـــــــــــــــــــى :   فرع السبع بنات"]
[]
[null,"م ","الصنف","الكمية","الوحدة","مـــلاحظــــــــــــــــــــــــــــــــات"]
[null,1,"بسكويت / بوله فاضي",300,"عدد","تحويل من\n فرع شكري القوتلي\n إلي \nفرع السبع بنات"]
[null,2]
[null,3]
[null,4]
[null,5]
[null,6]
[null,7]
[null,8]
[null,9]
[null,10]
[null,"توقيع المحاسب",null,"            توقيع السائق",null,"                                  توقيع مدير الفرع"]
[null,"أحمد الصواف",null,null,null,"                                       محمود خضر"]